Workbook

Sheet Title Page
A1: U.S. EPA Office of Ground Water and Drininking Water
A2: Work Breakdown Structure (WBS) Model for Reverse Osmosis/Nanofiltration Drinking Water Treatment
A3: Release Date: June 30, 2019
A4: · The primary purpose of this model is to assist EPA in estimating national compliance costs.
A5: · As such, the costs are intended to be representative of typical facilities.
A6: · The default settings, however, do not account for all of the site-specific factors that could affect the cost of any given individual facility or project.
A7: · Still, other uses of the model might be reasonable if sufficient care is taken by the user to account for site- or project-specific factors.
A8: · The model results are point estimates shown to the nearest $1, but this precision is not meant to imply that the results are accurate to $1.
A9: · Instead, users should review all documentation, modify inputs/assumptions as appropriate to their specific purpose, and form their own informed opinions about the accuracy and suitability of the results.
A10: · Use of this model requires Excel 2007 or later.
A11: · The model should be opened as Read-only, so that any changes you make are saved under a new file name.
A12: · To function properly, macros ("active content") must be enabled. If a security warning appears, click "options" and "enable this content."
A13: · For further information see the following document distributed with this file:
A14: USEPA. 2019. Work Breakdown Structure-Based Cost Model for Reverse Osmosis/Nanofiltration Drinking Water Treatment. Office of Water.
A15: · To begin using the model, go to the INPUT sheet.

Sheet Index
A1: INDEX
A2: This page provides an index to all user-adjustable inputs and assumptions. Click on a variable name to go directly to the adjustable cells.
A4: User-adjustable Input or Assumption | B4: Variable Name and Link
A5: 16-18" membrane element weight (for disposal cost) | B5: elem_wt_16
A6: 4" membrane element weight (for disposal cost) | B6: elem_wt_4
A7: 8" membrane element weight (for disposal cost) | B7: elem_wt_8
A8: Absolute tolerance for permeate flow difference | B8: perm_flow_abs_tol
A9: Access space for element replacement | B9: element_extra_space
A10: Access space for other equipment | B10: space_other_equip
A11: Access space per pump | B11: space_pumps
A12: Acid for pretreatment | B12: pretreat_acid_I
A13: Acid used in acidic cleaning cycle | B13: clean_acid
A14: Additional freeboard | B14: sec_cont_freeboard
A15: Additional redundant cartridge filter per x MGD inflow | B15: addl_redund_cart_per_flow
A16: Additional sampling ports | B16: add_ports
A17: Administrative LOE as a percent of average technical labor | B17: Clerical_percent
A18: Air conditioning EER | B18: EER
A19: Always include NEPA compliance costs? | B19: include_NEPA
A20: Annual cooling degree days | B20: cool_DD
A21: Annual heating degree days | B21: heat_DD
A22: Antiscalant | B22: use_antiscalant_I
A23: Antiscalant density | B23: anti_density
A24: Antiscalant dose for pretreatment | B24: anti_dose_conc
A25: Apply POTW discharge base charge (i.e., $/month) | B25: POTW_base_fee
A26: Apply POTW discharge TSS charge (i.e., $/lb of TSS over limit below) | B26: POTW_TSS_fee
A27: Apply POTW discharge volume charge (i.e., $/1000 gallons) | B27: POTW_volume_fee
A28: Average annual pan evaporation rate | B28: pan_evap
A29: Average annual precipitation | B29: precip
A30: Average Flow (including bypass) | B30: average_flow_I
A31: Average recovery per element, as fraction of spec | B31: avg_Y_el_targ_frac
A32: Bedding depth below pipe | B32: bedding_depth
A33: Bedding depth surrounding the pipe | B33: bedding_pct
A34: Boost vs. throttle, stages 1-2 | B34: P_adj_method_12
A35: Boost vs. throttle, stages 2-3 | B35: P_adj_method_23
A36: Borehole depth | B36: bore_depth_p
A37: Borehole depth for deep basins | B37: bore_depth_max
A38: Borehole depth for shallow basins | B38: bore_depth_min
A39: Borehole needed every x square feet | B39: hole_per_sf
A40: Boreholes per job | B40: hole_per_job
A41: Buffer space around other sides of buildings, Non-fire buffer | B41: non_fire_buffer
A42: Builder's risk insurance percentage | B42: br_ins_pct
A43: Building height | B43: Building_height
A44: Bypass pump efficiency | B44: bp_pump_eff
A45: Bypass pump head | B45: bp_pump_head
A46: Change in cleaning interval with SDI | B46: cleaning_freq_change
A47: Characteristics of solids or spent membranes for disposal | B47: solids_haz_I
A48: Chemical resistant coating coverage | B48: sec_cont_coating_cvg
A49: Chemical tank mixer horsepower | B49: cmix_hp_per
A50: Chemical used in high-pH cleaning cycle | B50: clean_high_pH
A51: Citric acid density | B51: citric_density
A52: Cleaning interval | B52: clean_interval_override
A53: Cleaning Temperature | B53: cleaning_temp
A54: Clearance space beneath the ceiling | B54: ceiling_clearance
A55: Coefficient of passive pressure | B55: Coeff_Kp
A56: Complete cleaning cycle length | B56: cleaning_cycle
A57: Component level | B57: component_level_I
A58: Computer workstations per x operators | B58: workstation_ratio
A59: Concentrated strength of caustic (% by weight) | B59: caustic_strength
A60: Concentrated strength of H2SO4 (% by weight) | B60: acid_strength_H2SO4
A61: Concentrated strength of HCl (% by weight) | B61: acid_strength_HCl
A62: Concrete pad thickness | B62: pad_thick
A63: Concrete pad thickness for area below pressure vessels | B63: pad_vessels
A64: Concrete pad thickness for small systems | B64: pad_thick_small
A65: Concrete thickness for basins | B65: conc_thick
A66: Conductivity meters on inlet and outlet | B66: inout_cond_meter
A67: Conductivity meters per rack | B67: cond_rack
A68: Cooling table for buildings 500 square feet or greater | B68: cooling_table
A69: Cooling table for buildings less than 500 ft2 | B69: cooling_table_shed
A70: Cooling ventilation/infiltration load | B70: cool_viload
A71: Cost estimating method | B71: curve
A72: Days of winter (i.e., days of storage during periods with no net evaporation) | B72: winter_days
A73: Depth of injection well | B73: injection_well_depth
A74: Design Flow (including bypass) | B74: design_flow_I
A75: Design flux | B75: design_flux
A76: Design safety factor for standby power | B76: std_safety_factor
A77: Dilution of high pH proprietary cleaners, by volume | B77: proprietary_dilution_highpH
A78: Dilution of low pH proprietary cleaners, by volume | B78: proprietary_dilution_lowpH
A79: Discharge option for reject/cleaning solution | B79: res_s2_opt_I
A80: Disposal method for non-hazardous evaporation pond solids | B80: solids_method
A81: Distance to direct discharge point or deep well injection | B81: add_res_pipe_length_direct
A82: Distance to recycle point or evaporation pond | B82: add_res_pipe_length
A83: Drive controllers per acid pretreatment metering pump | B83: S_cm_pump
A84: Drive controllers per antiscalant pump | B84: S_anti_pump
A85: Drive controllers per booster pump | B85: S_booster_pump
A86: Drive controllers per bypass pump | B86: S_bypass_pump
A87: Drive controllers per chemical pump for cleaning system | B87: S_chem_pump
A88: Drive controllers per eductor | B88: S_eductor
A89: Drive controllers per feed pump | B89: S_feed_pump
A90: Drive controllers per mixer | B90: S_mix
A91: Drive controllers per residuals pump | B91: S_res_pump
A92: Drive controllers per slurry pump system | B92: S_slurry
A93: Dry chemical storage height | B93: storage_height
A94: Electric resistance heating efficiency | B94: resist_eff
A95: Electrical enclosure | B95: electric_encl
A96: Electrical percentage | B96: elect_pct
A97: Engineering percentage for large systems | B97: eng_pct_large
A98: Engineering percentage for medium systems | B98: eng_pct_medium
A99: Engineering percentage for small systems | B99: eng_pct_small
A100: Ethernet modules | B100: plc_ethernet
A101: Evaporation pond dike cross-sectional area | B101: dike_xsection
A102: Evaporation pond freeboard | B102: ep_freeboard
A103: Evaporation pond safety factor | B103: ep_safety_factor
A104: Evaporation pond solids density | B104: ep_solids_density
A105: Evaporation pond solids density | B105: ht_solids_density
A106: Evaporation pond solids removal frequency | B106: dredging_freq
A107: Evaporation ratio | B107: evap_ratio
A108: Extra rack height, in addition to that for PVs | B108: extra_rack_height
A109: Extra rack length, in addition to length of elements | B109: extra_rack_length
A110: Extra rack width, in addition to that for PVs | B110: extra_rack_width
A111: Feed and concentrate port diameter, 16-18" pressure vessel | B111: feed_port_diam_16
A112: Feed and concentrate port diameter, 4" pressure vessel | B112: feed_port_diam_4
A113: Feed and concentrate port diameter, 8" pressure vessel | B113: feed_port_diam_8
A114: Feed temperature | B114: T_feed
A115: Financing percentage | B115: finance_pct
A116: Financing percentage for small systems | B116: finance_pct_small
A117: Fire truck buffer requirements | B117: fire_buffer
A118: Flow equalization for reject/cleaning solution | B118: res_s1_opt_I
A119: Flow meters for influent and effluent line | B119: tot_fm_in
A120: Flow meters for residuals line | B120: tot_fm_res
A121: Flow meters per cleaning pump | B121: fm_clean
A122: Flow meters per membrane rack, concentrate line | B122: fm_rack_conc
A123: Flow meters per membrane rack, feed side | B123: fm_rack_feed
A124: Flow meters per membrane rack, permeate side | B124: fm_rack_perm
A125: Flow rate for rapid recirculation phase, per PV, 16-18" elements | B125: high_circ_flow_PV_16
A126: Flow rate for rapid recirculation phase, per PV, 4" elements | B126: high_circ_flow_PV_4
A127: Flow rate for rapid recirculation phase, per PV, 8" elements | B127: high_circ_flow_PV_8
A128: Flow rate to drain cleaning solution and flush system, as fraction of high-rate flow | B128: drain_rate_frac
A129: Flow speed in injection well | B129: injection_well_flow_speed
A130: Frost depth | B130: frost
A131: HCl quantity to trigger RMP requirement | B131: HCl_quant_RMP
A132: HCl strength to trigger RMP requirement | B132: HCl_strength_RMP
A133: Head loss sensors per cartridge filter | B133: headloss_cart
A134: Head loss sensors per rack | B134: head_rack
A135: Heat pump cooling EER | B135: hp_EER
A136: Heat pump heating coefficient of performance | B136: COP
A137: Heating Oil Heat Content | B137: diesel_heat_content
A138: Heating table for buildings 500 square feet or greater | B138: heating_table
A139: Heating table for buildings less than 500 ft2 | B139: heating_table_shed
A140: Heating ventilation/infiltration load | B140: heat_viload
A141: High/Low alarms per chemical storage tank | B141: chem_alarm_cst
A142: High/Low alarms per holding tank or basin | B142: alarm_res
A143: High/Low alarms per pretreatment chemical tank | B143: chem_alarm_pre
A144: Holding basin depth to volume ratio | B144: hbasin_ratio
A145: Holding basin freeboard | B145: hbasin_freeboard
A146: Holding lagoon dike cross-sectional area | B146: ldike_xsection
A147: Holding lagoon freeboard | B147: hl_freeboard
A148: Holding system capacity safety factor | B148: res_cap_factor
A149: Hours for manual removal of holding tank solids | B149: uloe_solids
A150: I/O port table | B150: port_table
A151: Immersion heater heat-up time | B151: cleaning_heat_time
A152: Include a separate day tank if daily volume is x or greater | B152: day_tank_needed
A153: Include architectural fee for small systems? | B153: include_arch_small
A154: Include architectural fee? | B154: include_arch
A155: Include buildings? | B155: include_buildings_I
A156: Include concrete pad in total capital cost? | B156: include_pad
A157: Include construction management cost? | B157: include_cm
A158: Include contingency costs for high cost systems? | B158: include_conting_high
A159: Include contingency costs for low cost systems? | B159: include_conting_low
A160: Include contingency costs for medium cost systems? | B160: include_conting_medium
A161: Include cooling in standby power | B161: need_cool
A162: Include geotechnical costs for high cost systems? | B162: include_geo_high
A163: Include geotechnical costs for low cost systems? | B163: include_geo_low
A164: Include geotechnical costs for medium cost systems? | B164: include_geo_medium
A165: Include heating in standby power | B165: need_heat
A166: Include HVAC? | B166: include_HVAC_I
A167: Include land? | B167: include_land_I
A168: Include mixers for chemical tanks | B168: include_cmix
A169: Include performance bond cost? | B169: include_bond
A170: Include Permit Costs? | B170: include_permits
A171: Include pilot study costs? | B171: include_pilot
A172: Include redundant train? | B172: redundancy_I
A173: Include secondary containment | B173: include_sec_cont
A174: Include sitework costs? | B174: include_sitework
A175: Include standby power costs for small systems? | B175: include_standby_small
A176: Include standby power costs? | B176: include_standby
A177: Include yard piping costs? | B177: include_yardpipe
A178: Injection well pump head | B178: well_pump_psi
A179: Installation, Transportatation, and O&P percentage | B179: inst_pct
A180: Instrumentation and control percentage | B180: i_c_pct
A181: Labor hours per cartridge filter | B181: hrs_filter
A182: Labor hours per month for auto prescreens | B182: monthly_labor_auto_screen
A183: Labor hours per week for simplex prescreens | B183: labor_simplex_screen
A184: Legal percentage | B184: legal_pct
A185: Level switch/alarms per cleaning makeup tank | B185: level_switch_clean_tank
A186: Life of cartridge filters for high SDI | B186: cart_life_short
A187: Life of cartridge filters for low SDI | B187: cart_life_long
A188: Lighting power per sf, high-quality buildings | B188: lighting_power_high
A189: Lighting power per sf, low-quality buildings and sheds | B189: lighting_power_low
A190: Lighting power per sf, mid-quality buildings | B190: lighting_power_mid
A191: Linear feet bored per day | B191: hole_per_day
A192: Losses between booster pump and pressure vessels | B192: boost_headloss
A193: Losses between pump and pressure vessels | B193: influent_headloss
A194: Maintenance LOE for chemical supply systems | B194: uloe_chem_maint
A195: Maintenance LOE for instruments (includes calibration) | B195: uloe_inst_maint
A196: Maintenance LOE for pumps | B196: uloe_pump_maint
A197: Maintenance LOE for valves | B197: uloe_valve_maint
A198: Mangerial LOE as a percent of average technical labor | B198: Manager_percent
A199: Markup for assembly of rack | B199: rack_assembly_markup
A200: Max flux for 1 < SDI < 3 | B200: flux_max_SDI3_GW
A201: Max flux for 1 < SDI < 3 | B201: flux_max_SDI3_SW
... 205 more rows

Sheet INPUT
A1: REVERSE OSMOSIS/NANOFILTRATION SYSTEM DESIGN AND COST INPUT
E3: STEP 1 | H3: =IF(water_index>7,"Note: There is no standard design for this water.","") ->  | I3: Feed water analyses may be reviewed and entered on the Water Specs sheet.
E4: Select Feed Water
I5: Click here to go to the Water Specs sheet.
E6: For information: | G6: Water type: | H6: =CHOOSE(feed_water_type,"Ground","Surface") -> Ground
G7: Feed SDI: | H7: =IF(ISERROR(water_index),"",feed_sdi) -> 1.1
G8: Untreated feed pH: | H8: =IF(ISERROR(water_index),"",TEXT(feed_pH,"0.00")) -> 7.30
G9: Untreated feed TDS: | H9: =IF(ISERROR(water_index),"",treated_feed_tds) -> 511.0286307
G10: Untreated feed LSI: | H10: =IF(ISERROR(water_index),"",feed_LSI) -> -0.2594418605
G11: Untreated feed CaSO4 saturation: | H11: =IF(ISERROR(water_index),"",feed_caso4_sat_pct) -> 0.02872647286
G12: Untreated feed BaSO4 saturation: | H12: =IF(ISERROR(water_index),"",feed_baso4_sat_pct) -> 0.09823558364
G13: Untreated feed SrSO4 saturation: | H13: =IF(ISERROR(water_index),"",feed_srso4_sat_pct) -> 0.03846929172
G14: Untreated feed CaF2 saturation: | H14: =IF(ISERROR(water_index),"",feed_caf2_sat_pct) -> 0.001334796472
G15: Untreated feed SiO2 saturation: | H15: =IF(ISERROR(water_index),"",feed_sio2_sat_pct) -> 0.09523809524
B17: Used? | C17: Valid input? | D17: Invalid reason? | E17: STEP 2: | H17: =IF('Standard Inputs'!AB9,"<- Using this design",IF('Standard Inputs'!AC9,"<- You modified this design","")) -> <- Using this design | I17: The standard design buttons are for EPA's use in estimating national costs, but other users might find them useful as a starting point. See documentation for more information
E18: Select one of the eight standard designs at right OR select "CLEAR FOR MANUAL ENTRY" | H18: =IF('Standard Inputs'!AB10,"<- Using this design",IF('Standard Inputs'!AC10,"<- You modified this design","")) -> 
H19: =IF('Standard Inputs'!AB11,"<- Using this design",IF('Standard Inputs'!AC11,"<- You modified this design","")) -> 
H20: =IF('Standard Inputs'!AB12,"<- Using this design",IF('Standard Inputs'!AC12,"<- You modified this design","")) -> 
H21: =IF('Standard Inputs'!AB13,"<- Using this design",IF('Standard Inputs'!AC13,"<- You modified this design","")) -> 
H22: =IF('Standard Inputs'!AB14,"<- Using this design",IF('Standard Inputs'!AC14,"<- You modified this design","")) -> 
H23: =IF('Standard Inputs'!AB15,"<- Using this design",IF('Standard Inputs'!AC15,"<- You modified this design","")) -> 
H24: =IF('Standard Inputs'!AB16,"<- Using this design",IF('Standard Inputs'!AC16,"<- You modified this design","")) -> 
H25: =IF(OR('Standard Inputs'!AB9:AC16),"","Using a manual design") -> 
C27: =AND($C28,C41) -> TRUE | E27: STEP 3:
C28: =AND(C76,C87,C93,C102,C111) -> TRUE | E28: (Optional for standard designs) | G28: =IF(tune_in_prog,"Input Complete -- Computation In Progress",IF(inputs_ok,IF(C41,IF('Standard Inputs'!Z91,"Input Complete -- Results Ready","Input Complete -- Press 'Generate Results'"),"Design unsuccessful -- modify flux or recovery goal"),"Input Incomplete -- Check for Error Messages Below")) -> Input Complete -- Results Ready | I28: Verify that this box reads "Input Complete" before proceeding
E29: Enter or change values in the gold and blue cells below, under "Manual Inputs"
I32: Results Summary (See OUTPUT sheet for details)
E33: STEP 4: | I33: ="Direct Capital Cost: " & IF(input_status<>"input complete -- results ready",input_status,IF(missing_cost,"Missing cost!",IF(cost_buildup_error,"Cost buildup error!",IF(ISERROR(direct_cost),"Calculation error!",TEXT(direct_cost,"$0,0"))))) -> Direct Capital Cost: $515,654
E34: =IF(inputs_ok,IF('Standard Inputs'!Z91,"Results are ready--no need to click button","Click here to generate results -->"),"Check inputs, then click here to generate results -->") -> Results are ready--no need to click button | I34: ="Total Capital Cost: " & IF(input_status<>"input complete -- results ready",input_status,IF(missing_cost,"Missing cost!",IF(cost_buildup_error,"Cost buildup error!",IF(ISERROR(system_cost),"Calculation error!",TEXT(system_cost,"$0,0"))))) -> Total Capital Cost: $819,035
I35: ="Annualized Capital Cost: "&IF(input_status<>"Input Complete -- Results Ready",input_status,IF(missing_cost,"Missing Price!",IF(cost_buildup_error,"Cost buildup error!",IF(ISERROR(Annualized_Capital_Cost),"Calculation error!",TEXT(Annualized_Capital_Cost,"$0,0")&" per year"&" (over "&useful_life&" years at "&discount_rate*100&"%)")))) -> Annualized Capital Cost: $73,334 per year (over 22.5 years at 7%)
I36: ="Annual O&M Cost: "&IF(input_status<>"input complete -- results ready",input_status,IF(ISERROR(OM_cost),"Calculation error!",TEXT(OM_cost,"$0,0")&" per year")) -> Annual O&M Cost: $37,213 per year
I37: ="Total Annualized Cost: "&IF(input_status<>"input complete -- results ready",input_status,IF(missing_cost,"Missing Price!",IF(cost_buildup_error,"Cost buildup error!",IF(ISERROR(Annualized_Cost),"Calculation error!",TEXT(Annualized_Cost,"$0,0")&" per year")))) -> Total Annualized Cost: $110,547 per year
I38: =IF(missing_cost,"A price is not available for at least one required component. See Use? column on OUTPUT sheet.",IF(cost_buildup_error,"There is an Excel error in the price for at least one component. Please see the Use? column on OUTPUT sheet.","")) -> 
E39: Design results: | G39: =IF(inputs_ok,IF(inputs_are_current,calc_result,"Inputs have changed. Please rerun the system design."),"Inputs are incomplete. Please check for error messages below.") -> Calculation completed OK.
C41: =AND(inputs_ok,OR(comp_in_prog,calc_result="Calculation completed OK.")) -> TRUE
E43: Recovery: | G43: =recovery_rate -> 0.6973964164
E44: Permeate TDS: | G44: =perm_tds_sys -> 7.998909785 | H44: ppm
E45: Permeate TDS at 180 degrees C: | G45: =perm_tds_sys_180c -> 6.176855955 | H45: ppm | I45: TDS is typically measured at 180 degrees C for regulatory compliance purposes. At this temperature approximately half of the bicarbonate is converted to carbon dioxide.
E46: Permeate CO2 concentration: | G46: =perm_gas_concs -> 27.50549839 | H46: ppm
E47: Salt rejection: | G47: =salt_rej_sys -> 0.9843474332
E48: Blended TDS: | G48: =IF(bp_pct=0,"no blending",blend_TDS) -> no blending | H48: =IF(bp_pct=0,"","ppm") -> 
E49: Blended TDS at 180 degrees C: | G49: =IF(bp_pct=0,"no blending",blend_TDS_180c) -> no blending | H49: =IF(bp_pct=0,"","ppm") -> 
E51: Feed pressure: | G51: =P_feed_try -> 94.39617227 | H51: psi
E52: Stage 2 boost pressure: | G52: =P_boost_2_try -> 0 | H52: psi
E53: Stage 3 boost pressure: | G53: =P_boost_3_try -> 0 | H53: psi
E54: Stage 1 throttle pressure: | G54: =P_throttle_1_try -> 0 | H54: psi
E55: Stage 2 throttle pressure: | G55: =P_throttle_2_try -> 0 | H55: psi
E56: Pump energy: | G56: =pump_energy -> 3.693872253 | H56: MWh/yr
E58: Concentrate LSI: | G58: =conc_LSI_sys -> 0.7618951983
E59: Concentrate CaSO4 saturation: | G59: =conc_CaSO4_sat_sys -> 0.2104546261
E60: Concentrate BaSO4 saturation: | G60: =conc_BaSO4_sat_sys -> 0.5948262681
E61: Concentrate SrSO4 saturation: | G61: =conc_SrSO4_sat_sys -> 0.2059136988
E62: Concentrate CaF2 saturation: | G62: =conc_CaF2_sat_sys -> 0.03115149438
E63: Concentrate SiO2 saturation: | G63: =conc_SiO2_sat_sys -> 0.3103664473
C64: =(scaling_recommend=1) -> TRUE | D64: =CHOOSE(scaling_recommend,"OK","Saturation too high; use basic antiscalant.","Saturation too high; use premium antiscalant.","Saturation too high; decrease recovery and rerun.") -> OK | G64: =IF(C64,"Scaling OK.",D64) -> Scaling OK.
E66: MANUAL INPUTS
E67: Cells in gold are required; cells in blue are optional
H68: Select Units
C69: =AND(df_units<>"",design_flow_I>0) -> TRUE | D69: =IF(C69,"OK","Flow inputs incomplete") -> OK | E69: Design Flow (including bypass) | F69: design_flow_I | G69: 0.03 | H69: MGD
C70: =AND(af_units<>"",average_flow_I>0,average_flow<=design_flow,average_flow>=design_flow*min_avg_flow) -> TRUE | D70: =IF(C70,"OK",IF(average_flow>design_flow,"The average flow should not be greater than design flow",IF(average_flow<design_flow*min_avg_flow,"The average flow must be at least " & min_avg_flow & " times design flow","Flow inputs incomplete"))) -> OK | E70: Average Flow (including bypass) | F70: average_flow_I | G70: 0.007 | H70: MGD
C71: =IF(ISERROR(max_temp),FALSE,AND(T_feed>0,T_feed<max_temp)) -> TRUE | D71: =IF(C71,"OK",IF(ISERROR(max_temp),"Please choose a membrane element","Feed temperature must be between 0 and " & TEXT(max_temp,"0") & " degrees C")) -> OK | E71: Feed temperature | F71: T_feed | G71: 15 | H71: deg C
E72: Include redundant train? | F72: redundancy_I | G72: no | H72: <-- pick one
E73: For information:
E74: Treatment system design flow | G74: =IF(ISERROR(design_flow),"",IF(df_units="gpm",design_flow_rate, design_flow)) -> 0.03 | H74: =IF(df_units="","",df_units) -> MGD | I74: ="Current bypass percentage is "&TEXT(bp_pct,"0%")&". It may be revised in the Critical Design Assumptions." -> Current bypass percentage is 0%. It may be revised in the Critical Design Assumptions.
E75: Bypass design flow | G75: =IF(ISERROR(design_flow),"",IF(df_units="gpm",bp_flow_rate, bp_flow_rate*60*24/10^6)) -> 0 | H75: =IF(df_units="","",df_units) -> MGD | I75: Click here to go to the bypass setting on the Critical Design Assumptions sheet.
C76: =AND(C69,C70,C71) -> TRUE | D76: =IF(C76,"OK",IF(NOT(C69),D69,IF(NOT(C70),D70,D71))) -> OK | G76: =IF(C76,"System size inputs OK",D76) -> System size inputs OK
C78: =IF(OR(ISERROR(element_index),ISERROR(water_index)),FALSE,OR(max_feed_SDI=0,max_feed_SDI>=feed_sdi)) -> TRUE | D78: =IF(C78,"OK",IF(LEN(element_I)=0,"Please choose a membrane element.",IF(ISERROR(element_index),"Invalid element--please choose another.",IF(ISERROR(water_index),"Invalid feed water--please choose another.","Maximum feed SDI for this element is " & TEXT(max_feed_SDI,"0.0") & ".")))) -> OK | E78: Membrane element | F78: element_I | G78: 4 inch Low Pressure RO | H78: <-- pick one
C79: =IF(ISBLANK(op_trains_I),TRUE,IF(ISERROR(op_trains_I),FALSE,IF(NOT(ISNUMBER(op_trains_I)),FALSE,IF(op_trains_I<=0,FALSE,IF(ISERROR(total_area_op),FALSE,TRUE))))) -> TRUE | D79: =IF(ISBLANK(op_trains_I),"OK",IF(OR(ISERROR(op_trains_I),NOT(ISNUMBER(op_trains_I))),"Please enter a positive number of trains or clear the cell.",IF(op_trains_I<=0,"Please enter a positive number of trains or clear the cell.",IF(ISERROR(total_area_op),"Cannot stage successfully. Please adjust the number of trains, recovery rate, or target flux.","OK")))) -> OK | E79: Number of operating RO trains | F79: op_trains_I | H79: trains | I79: If this cell is blank, the model determines the number of trains based on a minimum number of trains and a maximum permeate flow per train. Does not include redundancy.
C80: =IF(C78,AND(target_recovery>0,target_recovery<100,n_stages<=3),TRUE) -> TRUE | D80: =IF(C80,"OK",IF(OR(target_recovery<=0,target_recovery>=1),"Target recovery must be between 0% and 100%.","Can't achieve target recovery in three stages. Decrease recovery or increase the allowable recovery per element.")) -> OK | E80: Target recovery rate | F80: target_recovery | G80: 0.7 | I80: =IF(ISERROR(element_index),"","Typical " & sys_element_type & " recovery is " & min_sys_recovery*100 & "-" & max_sys_recovery*100 & "%." & IF(design_flow<0.5," Small systems may use lower recoveries.","")) -> Typical RO recovery is 50-85%. Small systems may use lower recoveries.
C81: =IF(ISERROR(water_index),FALSE,AND(design_flux<=flux_max,design_flux>=flux_min)) -> TRUE | D81: =IF(C81,"OK",IF(ISERROR(water_index),"Please choose a feed water.",IF(design_flux>flux_max,"Flux must be below "&flux_max&" gfd.","Flux must be greater than "&flux_min&" gfd."))) -> OK | E81: Design flux | F81: design_flux | G81: 19 | H81: gfd | I81: =IF(ISERROR(water_index),"","Flux should be between " & TEXT(flux_min,"0") & " and " & TEXT(flux_max,"0") & " gfd, based on feed SDI. You may change these limits by following the link below.") -> Flux should be between 16 and 20 gfd, based on feed SDI. You may change these limits by following the link below.
E82: For information: Element area | G82: =IF(ISERROR(sys_element_area_I),"",sys_element_area_I) -> 80 | H82: square feet | I82: Click here to go to the flux limits on the Critical Design Assumptions sheet.
E83: ="Total system area"&IF(ISERROR(redundancy),"",IF(redundancy=1," (before redundancy)","")) -> Total system area | G83: =IF(OR(ISERROR(total_area_op),ISERROR(redundancy)),"",TEXT(total_area_op,"0,000")) -> 2,880 | H83: square feet | I83: ="Note:" & " Decreasing the target recovery rate or increasing the design flux will decrease salt passage of the system." -> Note: Decreasing the target recovery rate or increasing the design flux will decrease salt passage of the system.
E84: ="Number of trains"&IF(ISERROR(redundancy),"",IF(redundancy=1," (before redundancy)","")) -> Number of trains | G84: =IF(ISERROR(op_trains),"",op_trains) -> 2 | H84: trains
E85: Train configuration | G85: =IF(OR(ISERROR(n_stages),ISERROR(train_config),ISERROR(nves_1)),"",IF(n_stages>1,train_config,nves_1)) -> 2:1 | H85: =IF(OR(ISERROR(n_stages),ISERROR(train_config),ISERROR(nves_1)),"",IF(n_stages>1,"","vessels in parallel")) -> 
E86: Number of elements per vessel | G86: =IF(ISERROR(el_per_vess),"",IF(el_per_vess>0,el_per_vess,"")) -> 6 | H86: elements/vessel
C87: =AND(C78,C80,C81,C79) -> TRUE | D87: =IF(C87,"OK",IF(NOT(C78),D78,IF(NOT(C80),D80,IF(NOT(C81),D81,D79)))) -> OK | H87: =IF(C87,"Train design inputs OK.",D87) -> Train design inputs OK.
C89: =(LEN(pretreat_acid_I)>0) -> TRUE | D89: =IF(C89,"OK","Choose an acid pretreatment option.") -> OK | E89: Acid for pretreatment | F89: pretreat_acid_I | G89: H2SO4 | H89: <-- pick one
B90: =(pretreat_acid<>0) -> TRUE | C90: =IF(B90,AND(LEN(treated_feed_pH)>0,treated_feed_pH>=min_feed_pH,treated_feed_pH<feed_pH),TRUE) -> TRUE | D90: =IF(C90,"OK",IF(LEN(treated_feed_pH)=0,"Enter the pH of the feed after acid addition.",IF(treated_feed_pH<min_feed_pH,"Minimum feed pH for this element is "& TEXT(min_feed_pH,"0.0")&".","The treated feed pH must be less than the original feed pH."))) -> OK | E90: Treated feed pH | F90: treated_feed_pH | G90: 7 | H90: =IF(B90,"S.U.","not required") -> S.U.
C91: =IF(LEN(use_antiscalant_I)>0,NOT(ISERROR(use_antiscalant)),FALSE) -> TRUE | D91: =IF(C91,"OK",IF(LEN(use_antiscalant_I)>0,"Choose an antiscalant option from the dropdown.","Choose an antiscalant option.")) -> OK | E91: Antiscalant | F91: use_antiscalant_I | G91: Basic (carbonate) | H91: <-- pick one
E92: For information: | G92: =IF(AND(pretreat_acid>0,C89,C90),"pH adjustment requires " & TEXT(acid_dose,"0") & " mg/L " & pretreat_acid_I & ", at " & TEXT(CHOOSE(pretreat_acid,acid_strength_HCl,acid_strength_H2SO4),"0%") & " strength.","") -> pH adjustment requires 19 mg/L H2SO4, at 78% strength.
C93: =AND(C89,C90,C91) -> TRUE | D93: =IF(NOT(C89),D89,IF(NOT(C90),D90,IF(NOT(C91),D91,"OK"))) -> OK | G93: =IF(C93,"Pretreatment inputs OK",D93) -> Pretreatment inputs OK
C95: =IF(ISBLANK(clean_interval_override),TRUE,IF(ISNUMBER(clean_interval_override),AND(clean_interval_override<=cleaning_freq_max,clean_interval_override>0),FALSE)) -> TRUE | D95: =IF(C95,"OK",IF(ISNUMBER(clean_interval_override),IF(clean_interval_override>cleaning_freq_max,"Cleaning must take place at least every " & cleaning_freq_max & " months.","Cleaning interval must be greater than zero."),"Cleaning interval must be between 0 and " & cleaning_freq_max & " months.")) -> OK | E95: Cleaning interval | F95: clean_interval_override | H95: months | I95: If left blank, the model will estimate a cleaning interval based on the feed water SDI.
E96: For information: | G96: =IF(ISERROR(water_index),"","Default cleaning interval is " & default_cleaning_interval & " months, based on feed SDI.") -> Default cleaning interval is 15.6 months, based on feed SDI.
C97: =C95 -> TRUE | D97: =IF(C97,"OK",D95) -> OK | G97: =IF(C97,"Cleaning input OK",D97) -> Cleaning input OK
C99: =IF(ISERROR(res_s2_opt),FALSE,OR(res_s2_opt<=4, res_s2_opt=6)) -> TRUE | D99: =IF(C99,"OK",IF(ISERROR(res_s2_opt),"Please choose a residuals discharge option.",CHOOSE(res_s2_opt,"OK","OK","OK","OK","Concentrate recycling is not currently implemented.","OK"))) -> OK | E99: Discharge option for reject/cleaning solution | F99: res_s2_opt_I | G99: direct discharge / ocean outfall | H99: <--pick one | I99: =IF(C99,CHOOSE(res_s2_opt,"","","To accurately estimate evaporation pond area, please check the climate parameters on the Critical Design Assumptions sheet. Please also review the climate assumptions on the O&M Assumptions and Indirect Assumptions sheets.","","Note: Simulation and feed pressure determination do not take recycling into account.","",""),"") -> 
B100: =IF(ISERROR(res_s2_opt),FALSE,(res_s2_opt<>3)) -> TRUE | C100: =IF(NOT(B100),TRUE,IF(ISERROR(res_s1_opt),FALSE,NOT(AND(OR(res_s2_opt=5,res_s2_opt=6),res_s1_opt=4)))) -> TRUE | D100: =IF(C100,"OK",IF(ISERROR(res_s1_opt),"Please choose a flow equalization option.","Flow equalization is required.")) -> OK | E100: Flow equalization for reject/cleaning solution | F100: res_s1_opt_I | G100: no flow equalization | H100: =IF(B100,"<--pick one","not required") -> <--pick one | I100: =IF(ISERROR(res_s2_opt),"",IF(res_s2_opt=3,"Click here to go to the evaporation pond climate parameters.","")) -> 
C101: =NOT(ISERROR(solids_haz)) -> TRUE | D101: =IF(C101,"OK","Solids characteristics required.") -> OK | E101: ="Characteristics of "&IF(ISERROR(res_s2_opt),"solids",IF(res_s2_opt=3,"solids","spent membranes"))&" for disposal" -> Characteristics of spent membranes for disposal | F101: solids_haz_I | G101: non-hazardous | H101: <--pick one | I101: =IF(res_s2_opt=3,"Applies to both spent membranes and evaporation pond solids","") -> 
C102: =AND(C99:C101) -> TRUE | D102: =IF(NOT(C99),D99,IF(NOT(C100),D100,D101)) -> OK | G102: =IF(C102,"Residuals inputs OK" & IF(res_s2_opt=5," (see note about recycling)",""),D102) -> Residuals inputs OK
C104: =NOT(ISERROR(component_level)) -> TRUE | D104: =IF(C104,"OK","Invalid component level input") -> OK | E104: Component level | F104: component_level_I | G104: low cost | H104: <-- pick or leave blank | I104: If blank, the model will use low-cost components.
C105: =NOT(ISERROR(manual)) -> TRUE | D105: =IF(C105,"OK","Invalid system automation input") -> OK | E105: System automation | F105: manual_I | H105: <-- pick or leave blank | I105: If blank, the system will be fully automated.
E106: Include buildings? | F106: include_buildings_I | H106: <-- pick or leave blank | I106: Leave blank to include buildings
E107: Include HVAC? | F107: include_HVAC_I | H107: <-- pick or leave blank | I107: Leave blank to allow model to pick based on component level and building type
E108: Include land? | F108: include_land_I | H108: <-- pick or leave blank | I108: Leave blank to include land
E109: For information: Component Level | G109: =IF(component_level=2,"high cost",IF(component_level=1,"mid cost","low cost")) -> low cost
E110: Automation | G110: =IF(manual=1,"manual",IF(manual=2,"semi-automated",IF(manual=3,"fully automated"))) -> fully automated
C111: =AND(C104:C105) -> TRUE | D111: =IF(NOT(C104),D104,IF(NOT(C105),D105,"OK")) -> OK | G111: =IF(C111,"Automation and component level inputs OK",D111) -> Automation and component level inputs OK

Sheet OUTPUT
A1: OUTPUT SUMMARY
B2: Parameter | C2: Value | D2: Units
B3: Technology | C3: =sys_element_type -> RO
B4: System Size Category | C4: =IF(design_flow<1,"small","large") -> small
B5: Design Flow | C5: =design_flow -> 0.03 | D5: MGD
B6: Average Flow | C6: =average_flow -> 0.007 | D6: MGD
B7: Design flux | C7: =design_flux -> 19 | D7: gfd
B8: Feed water | C8: =INDEX(water_names,water_index,1) -> High Qual GW
B9: Total membrane area | C9: =total_area -> 2880 | D9: ft^2
B10: Recovery | C10: =recovery_rate -> 0.6973964164
B11: Train configuration | C11: =IF(n_stages>1,train_config,nves_1 & " vessels in parallel") -> 2:1
B12: Elements/vessel | C12: =el_per_vess -> 6
B13: Feed pressure | C13: =P_feed_try -> 94.39617227 | D13: psi
B14: Feed/booster pump energy | C14: =pump_energy -> 3.693872253 | D14: MWh/yr
B15: Salt rejection | C15: =salt_rej_sys -> 0.9843474332
B16: ="Resulting Costs (in year "&TEXT(current_year_cl,0)&" dollars)" -> Resulting Costs (in year 2017 dollars)
B17: Direct Capital Cost | C17: =IF(input_status<>"input complete -- results ready","Action required",IF(missing_cost,"Missing cost!",IF(cost_buildup_error,"Error in buildup!",direct_cost))) -> 515654.4507 | D17: Details | E17: =IF(input_status<>"input complete -- results ready",IF(input_complete,"Press Generate Results","Check INPUT sheet for errors"),IF(missing_cost,"A price is not available for at least one required component. See Use? column below.",IF(cost_buildup_error,"There is an Excel error in the price for at least one component. See Use? column below.",""))) -> 
B18: Add-on Cost | C18: =IF(input_status<>"input complete -- results ready","Action required",IF(missing_cost,"Missing cost!",IF(cost_buildup_error,"Error in buildup!",addon_cost))) -> 7622.124141 | D18: Details
B19: Indirect Capital Cost | C19: =IF(input_status<>"input complete -- results ready","Action required",IF(missing_cost,"Missing cost!",IF(cost_buildup_error,"Error in buildup!",C388))) -> 295757.9618 | D19: Details
B20: Total Capital Cost | C20: =IF(input_status<>"input complete -- results ready","Action required",IF(missing_cost,"Missing cost!",IF(cost_buildup_error,"Error in buildup!",system_cost))) -> 819034.5367 | D20: Details
B21: ="Annualized Capital Cost "&IF(OR(input_status<>"input complete -- results ready",missing_cost,cost_buildup_error),"","(per year over "&useful_life&" years at "&discount_rate*100&"%)") -> Annualized Capital Cost (per year over 22.5 years at 7%) | C21: =IF(input_status<>"input complete -- results ready","Action required",Annualized_Capital_Cost) -> 73334.35079 | D21: Details
B22: Annual O&M Cost (per year) | C22: =IF(input_status<>"input complete -- results ready","Action required",OM_cost) -> 37213.00291 | D22: Details
B23: ="Total Annualized Cost (per year)" -> Total Annualized Cost (per year) | C23: =IF(input_status<>"input complete -- results ready","Action required",IF(missing_cost,"Missing cost!",IF(cost_buildup_error,"Error in buildup!",Annualized_Cost))) -> 110547.3537 | D23: Details
B24: Per 1,000 gallons average flow | C24: =IF(input_status<>"input complete -- results ready","Action required",IF(missing_cost,"Missing cost!",IF(cost_buildup_error,"Error in buildup!",C461))) -> 43.26706603
B25: Per household per year | C25: =IF(input_status<>"input complete -- results ready","Action required",IF(missing_cost,"Missing cost!",IF(cost_buildup_error,"Error in buildup!",C462))) -> 4480.594161
A27: Direct Capital Cost Details (items in italics, without a 1 in the "Use?" column, represent alternate costs and are excluded from total)
A28: WBS # | B28: Item | C28: Design Quanitity | E28: Design Size | G28: Size used in estimate | I28: Unit Cost | J28: Total Cost | K28: Useful Life | L28: Use? | M28: Full Line Item Name | N28: Priority selection | W28: Useful Life
N29: Small (<1 mgd) | Q29: Medium (1-10 mgd) | T29: Large (>10 mgd)
N30: Low | O30: Mid | P30: High | Q30: Low | R30: Mid | S30: High | T30: Low | U30: Mid | V30: High | W30: Count? | X30: Depreciation | Y30: Buildings
A31: 1 | B31: Membrane Process | W31: =IF(ISERROR(K31*L31),0,IF(K31<1,0,L31)) -> 0 | X31: =IF(W31,J31/K31,0) -> 0
A32: 1.1 | B32: Membrane Elements | C32: =total_elements -> 36 | D32: units | E32: NA | G32: NA | I32: =element_cost -> 221.0512677 | J32: =IF(I32="contact vendor","contact vendor",C32*I32) -> 7957.845638 | K32: N/A | L32: 1 | M32: =$B$31&" - "&B32 -> Membrane Process - Membrane Elements | N32: 1 | O32: 1 | P32: 1 | Q32: 1 | R32: 1 | S32: 1 | T32: 1 | U32: 1 | V32: 1 | W32: 0 | X32: 0
A33: 1.2 | B33: RO Pressure Vessels | C33: =total_PVs -> 6 | D33: units | E33: =PV_rating -> 150 | F33: psi | G33: =PV_rating -> 150 | H33: psi | I33: =pv_cost -> 783.098888 | J33: =IF(I33="contact vendor","contact vendor",C33*I33) -> 4698.593328 | K33: =IF(C33=0,"NA",VLOOKUP(PV_rating,CHOOSE(element_class,pv4_base_cost_cl,pv8_base_cost_cl,pv1618_base_cost_cl),IF(ss_cat="large",4,5))) -> 17 | L33: 1 | M33: =$B$31&" - "&B33 -> Membrane Process - RO Pressure Vessels | N33: 1 | O33: 1 | P33: 1 | Q33: 1 | R33: 1 | S33: 1 | T33: 1 | U33: 1 | V33: 1 | W33: 1 | X33: 276.3878428
A34: 1.3 | B34: Feed Line Connectors | W34: 0 | X34: 0
A35: 1.3.1 | B35: Victaulic, Painted | C35: =conn_feed_total -> 12 | D35: units | E35: =IF(C35=0,"NA",conn_feed_diam) -> 1 | F35: =IF(C35=0,"","in. diam") -> in. diam | G35: =IF(C35=0,"NA",VLOOKUP(conn_feed_diam, pv_conn_paint_cost_cl, 2)) -> 1 | H35: =IF(C35=0,"","in. diam") -> in. diam | I35: =IF(C35=0,"NA",VLOOKUP(conn_feed_diam, pv_conn_paint_cost_cl, 3)) -> 41.58738051 | J35: =IF(OR(I35="contact vendor",I35="NA"),"--",C35*I35) -> 499.0485661 | K35: =IF(C35=0,"NA",VLOOKUP(conn_feed_diam,pv_conn_paint_cost_cl,IF(ss_cat="large",4,5))) -> 20 | L35: 1 | M35: =$B$31&" - "&$B$34&" - "&B35 -> Membrane Process - Feed Line Connectors - Victaulic, Painted | N35: 1 | O35: 2 | P35: 2 | Q35: 1 | R35: 2 | S35: 2 | T35: 1 | U35: 2 | V35: 2 | W35: 1 | X35: 24.9524283
A36: 1.3.1 | B36: Victaulic, Galvanized | C36: =conn_feed_total -> 12 | D36: units | E36: =IF(C36=0,"NA",conn_feed_diam) -> 1 | F36: =IF(C36=0,"","in. diam") -> in. diam | G36: =IF(C36=0,"NA",VLOOKUP(conn_feed_diam, pv_conn_paint_cost_cl, 2)) -> 1 | H36: =IF(C36=0,"","in. diam") -> in. diam | I36: =IF(C36=0,"NA",VLOOKUP(conn_feed_diam, pv_conn_galv_cost_cl, 3)) -> 54.03710588 | J36: =IF(OR(I36="contact vendor",I36="NA"),"--",C36*I36) -> 648.4452706 | K36: =IF(C36=0,"NA",VLOOKUP(conn_feed_diam,pv_conn_galv_cost_cl,IF(ss_cat="large",4,5))) -> 20 | L36: 0 | M36: =$B$31&" - "&$B$34&" - "&B36 -> Membrane Process - Feed Line Connectors - Victaulic, Galvanized | N36: 2 | O36: 1 | P36: 1 | Q36: 2 | R36: 1 | S36: 1 | T36: 2 | U36: 1 | V36: 1 | W36: 0 | X36: 0
A37: 1.4 | B37: Permeate Line Connectors | W37: 0 | X37: 0
A38: 1.4.1 | B38: Victaulic, Painted | C38: =conn_perm_total -> 0 | D38: units | E38: =IF(C38=0,"NA",conn_perm_diam) -> NA | F38: =IF(C38=0,"","in. diam") ->  | G38: =IF(C38=0,"NA",VLOOKUP(conn_perm_diam, pv_conn_paint_cost_cl, 2)) -> NA | H38: =IF(C38=0,"","in. diam") ->  | I38: =IF(C38=0,"NA",VLOOKUP(conn_perm_diam, pv_conn_paint_cost_cl, 3)) -> NA | J38: =IF(OR(I38="contact vendor",I38="NA"),"--",C38*I38) -> -- | K38: =IF(C38=0,"NA",VLOOKUP(conn_feed_diam,pv_conn_paint_cost_cl,IF(ss_cat="large",4,5))) -> NA | M38: =$B$31&" - "&$B$37&" - "&B38 -> Membrane Process - Permeate Line Connectors - Victaulic, Painted | N38: 1 | O38: 2 | P38: 2 | Q38: 1 | R38: 2 | S38: 2 | T38: 1 | U38: 2 | V38: 2 | W38: 0 | X38: 0
A39: 1.4.1 | B39: Victaulic, Galvanized | C39: =conn_perm_total -> 0 | D39: units | E39: =IF(C39=0,"NA",conn_perm_diam) -> NA | G39: =IF(C39=0,"NA",VLOOKUP(conn_perm_diam, pv_conn_galv_cost_cl, 2)) -> NA | H39: =IF(C39=0,"","in. diam") ->  | I39: =IF(C39=0,"NA",VLOOKUP(conn_perm_diam, pv_conn_galv_cost_cl, 3)) -> NA | J39: =IF(OR(I39="contact vendor",I39="NA"),"--",C39*I39) -> -- | K39: =IF(C39=0,"NA",VLOOKUP(conn_feed_diam,pv_conn_galv_cost_cl,IF(ss_cat="large",4,5))) -> NA | M39: =$B$31&" - "&$B$37&" - "&B39 -> Membrane Process - Permeate Line Connectors - Victaulic, Galvanized | N39: 2 | O39: 1 | P39: 1 | Q39: 2 | R39: 1 | S39: 1 | T39: 2 | U39: 1 | V39: 1 | W39: 0 | X39: 0
A40: 1.5 | B40: Piping On Rack | W40: 0 | X40: 0
A41: 1.5.1 | B41: Feed - Stainless Steel | C41: =feed_pipe_len -> 24 | D41: lf | E41: =feed_hdr_diam -> 2 | F41: in. diam | G41: =feed_hdr_diam -> 2 | H41: =IF(E41=0,"","in. diam") -> in. diam | I41: =IF(curve=1,ss_pipe_eq_feed_rack,VLOOKUP(feed_hdr_diam,ss_pipe_cost_cl,3)) -> 64.04244501 | J41: =IF(OR(I41="contact vendor",I41="NA"),"--",C41*I41) -> 1537.01868 | K41: =IF(C41=0,"NA",VLOOKUP(E41,ss_pipe_cost_cl,IF(ss_cat="large",4,5))) -> 40 | L41: 1 | M41: =$B$31&" - "&$B$40&" - "&B41 -> Membrane Process - Piping On Rack - Feed - Stainless Steel | N41: 1 | O41: 1 | P41: 1 | Q41: 1 | R41: 1 | S41: 1 | T41: 1 | U41: 1 | V41: 1 | W41: 1 | X41: 38.425467
A42: 1.5.2 | B42: Permeate - PVC | C42: =perm_pipe_len -> 24 | D42: lf | E42: =perm_hdr_diam -> 1.5 | F42: in. diam | G42: =perm_hdr_diam -> 1.5 | H42: =IF(E42=0,"","in. diam") -> in. diam | I42: =IF(curve=1,pvc_pipe_eq_perm_rack,VLOOKUP(perm_hdr_diam,pvc_pipe_cost_cl,3)) -> 2.992616126 | J42: =IF(OR(I42="contact vendor",I42="NA"),"--",C42*I42) -> 71.82278702 | K42: =IF(C42=0,"NA",VLOOKUP(E42,pvc_pipe_cost_cl,IF(ss_cat="large",4,5))) -> 17 | L42: 1 | M42: =$B$31&" - "&$B$40&" - "&B42 -> Membrane Process - Piping On Rack - Permeate - PVC | N42: 1 | O42: 1 | P42: 1 | Q42: 1 | R42: 1 | S42: 1 | T42: 1 | U42: 1 | V42: 1 | W42: 1 | X42: 4.224869825
A43: 1.5.3 | B43: Concentrate - Stainless Steel | C43: =conc_pipe_len -> 24 | D43: lf | E43: =conc_hdr_diam -> 1.5 | F43: in. diam | G43: =conc_hdr_diam -> 1.5 | H43: =IF(E43=0,"","in. diam") -> in. diam | I43: =IF(curve=1,ss_pipe_eq_conc_rack,VLOOKUP(conc_hdr_diam,ss_pipe_cost_cl,3)) -> 48.76188922 | J43: =IF(OR(I43="contact vendor",I43="NA"),"--",C43*I43) -> 1170.285341 | K43: =IF(C43=0,"NA",VLOOKUP(E43,ss_pipe_cost_cl,IF(ss_cat="large",4,5))) -> 40 | L43: 1 | M43: =$B$31&" - "&$B$40&" - "&B43 -> Membrane Process - Piping On Rack - Concentrate - Stainless Steel | N43: 1 | O43: 1 | P43: 1 | Q43: 1 | R43: 1 | S43: 1 | T43: 1 | U43: 1 | V43: 1 | W43: 1 | X43: 29.25713353
A44: 1.6 | B44: Vessel Support Rack - Steel Beams | C44: =total_beam_length -> 342.541575 | D44: lf | E44: NA | G44: NA | I44: =VLOOKUP(0,pv_rack_member_cost_cl,3) -> 33.16450891 | J44: =IF(I44="contact vendor","contact vendor",C44*I44) -> 11360.22311 | K44: =VLOOKUP(0,pv_rack_member_cost_cl,IF(ss_cat="large",4,5)) -> 20 | L44: 1 | M44: =$B$31&" - "&B44 -> Membrane Process - Vessel Support Rack - Steel Beams | N44: 1 | O44: 1 | P44: 1 | Q44: 1 | R44: 1 | S44: 1 | T44: 1 | U44: 1 | V44: 1 | W44: 1 | X44: 568.0111557
A45: 1.7 | B45: Markup for Rack Assembly | C45: =total_racks -> 2 | D45: units | E45: NA | G45: NA | I45: =J45/C45 -> 8278.932504 | J45: =rack_assembly_markup*(SUMPRODUCT(J33:J40,L33:L40)+J44*L44) -> 16557.86501 | K45: =Rack_cost_for_UL/Rack_depreciation -> 20.54375462 | L45: 1 | M45: =$B$31&" - "&B45 -> Membrane Process - Markup for Rack Assembly | N45: 1 | O45: 1 | P45: 1 | Q45: 1 | R45: 1 | S45: 1 | T45: 1 | U45: 1 | V45: 1 | W45: 1 | X45: 805.9804702
A46: 2 | B46: Tanks, Basins, and Lagoons | W46: 0 | X46: 0
A47: 2.1 | B47: Pretreatment Acid Storage Tanks | W47: 0 | X47: 0
A48: 2.1.1 | B48: Plastic (HXLPE) | C48: =acid_tanks -> 1 | D48: units | E48: =IF(C48=0,"NA",acid_tank_size) -> 4 | F48: =IF(C48=0,"","gal") -> gal | G48: =IF(C48=0,"NA",IF(curve=1,acid_tank_size,VLOOKUP(acid_tank_size,pl_cst_cost_cl,2))) -> 4 | H48: =IF(C48=0,"","gal") -> gal | I48: =IF(C48=0,"NA",IF(curve=1,pl_cst_eq_acid,VLOOKUP(acid_tank_size,pl_cst_cost_cl,3))) -> 796.9394732 | J48: =IF(OR(I48="contact vendor",I48="NA"),"--",C48*I48) -> 796.9394732 | K48: =IF(C48=0,"NA",VLOOKUP(acid_tank_size,pl_cst_cost_cl,IF(ss_cat="large",4,5))) -> 7 | L48: 1 | M48: =$B$47&" - "&B48 -> Pretreatment Acid Storage Tanks - Plastic (HXLPE) | N48: 1 | O48: 2 | P48: 2 | Q48: 1 | R48: 2 | S48: 2 | T48: 1 | U48: 2 | V48: 2 | W48: 1 | X48: 113.8484962
A49: 2.1.1 | B49: Fiberglass | C49: =acid_tanks -> 1 | D49: units | E49: =IF(C49=0,"NA",acid_tank_size) -> 4 | F49: =IF(C49=0,"","gal") -> gal | G49: =IF(C49=0,"NA",IF(curve=1,acid_tank_size,VLOOKUP(acid_tank_size,fg_cst_cost_cl,2))) -> 4 | H49: =IF(C49=0,"","gal") -> gal | I49: =IF(C49=0,"NA",IF(curve=1,fg_cst_eq_acid,VLOOKUP(acid_tank_size,fg_cst_cost_cl,3))) -> 4684.471806 | J49: =IF(OR(I49="contact vendor",I49="NA"),"--",C49*I49) -> 4684.471806 | K49: =IF(C49=0,"NA",VLOOKUP(acid_tank_size,fg_cst_cost_cl,IF(ss_cat="large",4,5))) -> 7 | L49: 0 | M49: =$B$47&" - "&B49 -> Pretreatment Acid Storage Tanks - Fiberglass | N49: 2 | O49: 1 | P49: 1 | Q49: 2 | R49: 1 | S49: 1 | T49: 2 | U49: 1 | V49: 1 | W49: 0 | X49: 0
A50: 2.1.2 | B50: Secondary Containment - Concrete Curbing | C50: =IF(OR(include_sec_cont=0,acid_tanks=0),0,acid_st_curb_concrete) -> 1 | D50: cy | E50: NA | G50: NA | I50: =IF(C50=0,"NA",VLOOKUP(0,conc_basin_cost_cl,3)) -> 601.2651172 | J50: =IF(C50=0,"--",IF(I50="contact vendor","--",C50*I50)) -> 601.2651172 | K50: =IF(C50=0,"NA",VLOOKUP(0,conc_basin_cost_cl,IF(ss_cat="large",4,5))) -> 37 | L50: 1 | M50: =$B$47&" - "&B50 -> Pretreatment Acid Storage Tanks - Secondary Containment - Concrete Curbing | N50: 1 | O50: 1 | P50: 1 | Q50: 1 | R50: 1 | S50: 1 | T50: 1 | U50: 1 | V50: 1 | W50: =IF(ISERROR(K50*L50),0,IF(K50<1,0,L50)) -> 1 | X50: =IF(W50,J50/K50,0) -> 16.25040857
A51: 2.1.3 | B51: Secondary Containment - Chemical Resistant Coating | C51: =IF(OR(include_sec_cont=0,acid_tanks=0),0,acid_st_coating_gal) -> 1 | D51: gal | E51: NA | G51: NA | I51: =IF(C51=0,"NA",VLOOKUP(0,conc_coating_cost_cl,3)) -> 257.0253154 | J51: =IF(C51=0,"--",IF(I51="contact vendor","--",C51*I51)) -> 257.0253154 | K51: =IF(C51=0,"NA",VLOOKUP(0,conc_coating_cost_cl,IF(ss_cat="large",4,5))) -> 10 | L51: 1 | M51: =$B$47&" - "&B51 -> Pretreatment Acid Storage Tanks - Secondary Containment - Chemical Resistant Coating | N51: 1 | O51: 1 | P51: 1 | Q51: 1 | R51: 1 | S51: 1 | T51: 1 | U51: 1 | V51: 1 | W51: 1 | X51: 25.70253154
A52: 2.2 | B52: Pretreatment Acid Day Tanks | W52: 0 | X52: 0
A53: 2.2.1 | B53: Plastic/XLPE | C53: =acid_day_tanks -> 0 | D53: units | E53: =IF(C53=0,"NA",acid_day_tank_vol) -> NA | F53: =IF(C53=0,"","gal") ->  | G53: =IF(C53=0,"NA",IF(curve=1,acid_day_tank_vol,VLOOKUP(acid_day_tank_vol,pl_cst_cost_cl,2))) -> NA | H53: =IF(C53=0,"","gal") ->  | I53: =IF(C53=0,"NA",IF(curve=1,pl_acid_day_eq,VLOOKUP(acid_day_tank_vol,pl_cst_cost_cl,3))) -> NA | J53: =IF(C53=0,"--",IF(I53="contact vendor","--",C53*I53)) -> -- | K53: =IF(C53=0,"NA",VLOOKUP(acid_day_tank_vol,pl_cst_cost_cl,IF(ss_cat="large",4,5))) -> NA | M53: =$B$52&" - "&B53 -> Pretreatment Acid Day Tanks - Plastic/XLPE | N53: 1 | O53: 2 | P53: 2 | Q53: 1 | R53: 2 | S53: 2 | T53: 1 | U53: 2 | V53: 2 | W53: 0 | X53: 0
A54: 2.2.1 | B54: Fiberglass | C54: =acid_day_tanks -> 0 | D54: units | E54: =IF(C54=0,"NA",acid_day_tank_vol) -> NA | F54: =IF(C54=0,"","gal") ->  | G54: =IF(C54=0,"NA",IF(curve=1,acid_day_tank_vol,VLOOKUP(acid_day_tank_vol,fg_cst_cost_cl,2))) -> NA | H54: =IF(C54=0,"","gal") ->  | I54: =IF(C54=0,"NA",IF(curve=1,fg_acid_day_eq,VLOOKUP(acid_day_tank_vol,fg_cst_cost_cl,3))) -> NA | J54: =IF(C54=0,"--",IF(I54="contact vendor","--",C54*I54)) -> -- | K54: =IF(C54=0,"NA",VLOOKUP(acid_day_tank_vol,fg_cst_cost_cl,IF(ss_cat="large",4,5))) -> NA | M54: =$B$52&" - "&B54 -> Pretreatment Acid Day Tanks - Fiberglass | N54: 2 | O54: 1 | P54: 1 | Q54: 2 | R54: 1 | S54: 1 | T54: 2 | U54: 1 | V54: 1 | W54: 0 | X54: 0
A55: 2.2.2 | B55: Secondary Containment - Concrete Curbing | C55: =IF(OR(include_sec_cont=0,acid_day_tanks=0),0,acid_dt_curb_concrete) -> 0 | D55: cy | E55: NA | G55: NA | I55: =IF(C55=0,"NA",VLOOKUP(0,conc_basin_cost_cl,3)) -> NA | J55: =IF(C55=0,"--",IF(I55="contact vendor","--",C55*I55)) -> -- | K55: =IF(C55=0,"NA",VLOOKUP(0,conc_basin_cost_cl,IF(ss_cat="large",4,5))) -> NA | M55: =$B$52&" - "&B55 -> Pretreatment Acid Day Tanks - Secondary Containment - Concrete Curbing | N55: 1 | O55: 1 | P55: 1 | Q55: 1 | R55: 1 | S55: 1 | T55: 1 | U55: 1 | V55: 1 | W55: 0 | X55: 0
A56: 2.2.3 | B56: Secondary Containment - Chemical Resistant Coating | C56: =IF(OR(include_sec_cont=0,acid_day_tanks=0),0,acid_dt_coating_gal) -> 0 | D56: gal | E56: NA | G56: NA | I56: =IF(C56=0,"NA",VLOOKUP(0,conc_coating_cost_cl,3)) -> NA | J56: =IF(C56=0,"--",IF(I56="contact vendor","--",C56*I56)) -> -- | K56: =IF(C56=0,"NA",VLOOKUP(0,conc_coating_cost_cl,IF(ss_cat="large",4,5))) -> NA | M56: =$B$52&" - "&B56 -> Pretreatment Acid Day Tanks - Secondary Containment - Chemical Resistant Coating | N56: 1 | O56: 1 | P56: 1 | Q56: 1 | R56: 1 | S56: 1 | T56: 1 | U56: 1 | V56: 1 | W56: 0 | X56: 0
A57: 2.3 | B57: Pretreatment Antiscalant Tanks | W57: 0 | X57: 0
A58: 2.3.1 | B58: Plastic (XLPE) | C58: =anti_tanks -> 1 | D58: units | E58: =IF(C58=0,"NA",anti_tank_size) -> 2 | F58: =IF(C58=0,"","gal") -> gal | G58: =IF(C58=0,"NA",IF(curve=1,anti_tank_size,VLOOKUP(anti_tank_size,pl_cst_cost_cl,2))) -> 2 | H58: =IF(C58=0,"","gal") -> gal | I58: =IF(C58=0,"NA",IF(curve=1,pl_cst_eq_anti,VLOOKUP(anti_tank_size,pl_cst_cost_cl,3))) -> 793.7938939 | J58: =IF(OR(I58="contact vendor",I58="NA"),"--",C58*I58) -> 793.7938939 | K58: =IF(C58=0,"NA",VLOOKUP(anti_tank_size,pl_cst_cost_cl,IF(ss_cat="large",4,5))) -> 7 | L58: 1 | M58: =$B$57&" - "&B58 -> Pretreatment Antiscalant Tanks - Plastic (XLPE) | N58: 1 | O58: 2 | P58: 3 | Q58: 1 | R58: 2 | S58: 3 | T58: 1 | U58: 2 | V58: 3 | W58: 1 | X58: 113.3991277
A59: 2.3.1 | B59: Fiberglass | C59: =anti_tanks -> 1 | D59: units | E59: =IF(C59=0,"NA",anti_tank_size) -> 2 | F59: =IF(C59=0,"","gal") -> gal | G59: =IF(C59=0,"NA",IF(curve=1,anti_tank_size,VLOOKUP(anti_tank_size,fg_cst_cost_cl,2))) -> 2 | H59: =IF(C59=0,"","gal") -> gal | I59: =IF(C59=0,"NA",IF(curve=1,fg_cst_eq_anti,VLOOKUP(anti_tank_size,fg_cst_cost_cl,3))) -> 4680.923036 | J59: =IF(OR(I59="contact vendor",I59="NA"),"--",C59*I59) -> 4680.923036 | K59: =IF(C59=0,"NA",VLOOKUP(anti_tank_size,fg_cst_cost_cl,IF(ss_cat="large",4,5))) -> 7 | L59: 0 | M59: =$B$57&" - "&B59 -> Pretreatment Antiscalant Tanks - Fiberglass | N59: 2 | O59: 1 | P59: 2 | Q59: 2 | R59: 1 | S59: 2 | T59: 2 | U59: 1 | V59: 2 | W59: 0 | X59: 0
A60: 2.3.1 | B60: Stainless Steel | C60: =anti_tanks -> 1 | D60: units | E60: =IF(C60=0,"NA",anti_tank_size) -> 2 | F60: =IF(C60=0,"","gal") -> gal | G60: =IF(C60=0,"NA",IF(curve=1,anti_tank_size,VLOOKUP(anti_tank_size,ss_cst_cost_cl,2))) -> 2 | H60: =IF(C60=0,"","gal") -> gal | I60: =IF(C60=0,"NA",IF(curve=1,ss_cst_eq_anti,VLOOKUP(anti_tank_size,ss_cst_cost_cl,3))) -> 4408.163464 | J60: =IF(OR(I60="contact vendor",I60="NA"),"--",C60*I60) -> 4408.163464 | K60: =IF(C60=0,"NA",VLOOKUP(anti_tank_size,ss_cst_cost_cl,IF(ss_cat="large",4,5))) -> 30 | L60: 0 | M60: =$B$57&" - "&B60 -> Pretreatment Antiscalant Tanks - Stainless Steel | N60: 3 | O60: 3 | P60: 1 | Q60: 3 | R60: 3 | S60: 1 | T60: 3 | U60: 3 | V60: 1 | W60: 0 | X60: 0
A61: 2.3.2 | B61: Secondary Containment - Concrete Curbing | C61: =IF(OR(include_sec_cont=0,anti_tanks=0),0,anti_st_curb_concrete) -> 1 | D61: cy | E61: NA | G61: NA | I61: =IF(C61=0,"NA",VLOOKUP(0,conc_basin_cost_cl,3)) -> 601.2651172 | J61: =IF(C61=0,"--",IF(I61="contact vendor","--",C61*I61)) -> 601.2651172 | K61: =IF(C61=0,"NA",VLOOKUP(0,conc_basin_cost_cl,IF(ss_cat="large",4,5))) -> 37 | L61: 1 | M61: =$B$57&" - "&B61 -> Pretreatment Antiscalant Tanks - Secondary Containment - Concrete Curbing | N61: 1 | O61: 1 | P61: 1 | Q61: 1 | R61: 1 | S61: 1 | T61: 1 | U61: 1 | V61: 1 | W61: 1 | X61: 16.25040857
A62: 2.3.3 | B62: Secondary Containment - Chemical Resistant Coating | C62: =IF(OR(include_sec_cont=0,anti_tanks=0),0,anti_st_coating_gal) -> 1 | D62: gal | E62: NA | G62: NA | I62: =IF(C62=0,"NA",VLOOKUP(0,conc_coating_cost_cl,3)) -> 257.0253154 | J62: =IF(C62=0,"--",IF(I62="contact vendor","--",C62*I62)) -> 257.0253154 | K62: =IF(C62=0,"NA",VLOOKUP(0,conc_coating_cost_cl,IF(ss_cat="large",4,5))) -> 10 | L62: 1 | M62: =$B$57&" - "&B62 -> Pretreatment Antiscalant Tanks - Secondary Containment - Chemical Resistant Coating | N62: 1 | O62: 1 | P62: 1 | Q62: 1 | R62: 1 | S62: 1 | T62: 1 | U62: 1 | V62: 1 | W62: 1 | X62: 25.70253154
A63: 2.4 | B63: Pretreatment Antiscalant Day Tanks | W63: 0 | X63: 0
A64: 2.4.1 | B64: Plastic/XLPE | C64: =anti_day_tanks -> 0 | D64: units | E64: =IF(C64=0,"NA",anti_day_tank_vol) -> NA | F64: =IF(C64=0,"","gal") ->  | G64: =IF(C64=0,"NA",IF(curve=1,anti_day_tank_vol,VLOOKUP(anti_day_tank_vol,pl_cst_cost_cl,2))) -> NA | H64: =IF(C64=0,"","gal") ->  | I64: =IF(C64=0,"NA",IF(curve=1,pl_anti_day_eq,VLOOKUP(anti_day_tank_vol,pl_cst_cost_cl,3))) -> NA | J64: =IF(C64=0,"--",IF(I64="contact vendor","--",C64*I64)) -> -- | K64: =IF(C64=0,"NA",VLOOKUP(anti_day_tank_vol,pl_cst_cost_cl,IF(ss_cat="large",4,5))) -> NA | M64: =$B$63&" - "&B64 -> Pretreatment Antiscalant Day Tanks - Plastic/XLPE | N64: 1 | O64: 2 | P64: 3 | Q64: 1 | R64: 2 | S64: 3 | T64: 1 | U64: 2 | V64: 3 | W64: 0 | X64: 0
A65: 2.4.1 | B65: Fiberglass | C65: =anti_day_tanks -> 0 | D65: units | E65: =IF(C65=0,"NA",anti_day_tank_vol) -> NA | F65: =IF(C65=0,"","gal") ->  | G65: =IF(C65=0,"NA",IF(curve=1,anti_day_tank_vol,VLOOKUP(anti_day_tank_vol,fg_cst_cost_cl,2))) -> NA | H65: =IF(C65=0,"","gal") ->  | I65: =IF(C65=0,"NA",IF(curve=1,fg_anti_day_eq,VLOOKUP(anti_day_tank_vol,fg_cst_cost_cl,3))) -> NA | J65: =IF(C65=0,"--",IF(I65="contact vendor","--",C65*I65)) -> -- | K65: =IF(C65=0,"NA",VLOOKUP(anti_day_tank_vol,fg_cst_cost_cl,IF(ss_cat="large",4,5))) -> NA | M65: =$B$63&" - "&B65 -> Pretreatment Antiscalant Day Tanks - Fiberglass | N65: 2 | O65: 1 | P65: 2 | Q65: 2 | R65: 1 | S65: 2 | T65: 2 | U65: 1 | V65: 2 | W65: 0 | X65: 0
A66: 2.4.1 | B66: Stainless Steel | C66: =anti_day_tanks -> 0 | D66: units | E66: =IF(C66=0,"NA",anti_day_tank_vol) -> NA | F66: =IF(C66=0,"","gal") ->  | G66: =IF(C66=0,"NA",IF(curve=1,anti_day_tank_vol,VLOOKUP(anti_day_tank_vol,ss_cst_cost_cl,2))) -> NA | H66: =IF(C66=0,"","gal") ->  | I66: =IF(C66=0,"NA",IF(curve=1,ss_anti_day_eq,VLOOKUP(anti_day_tank_vol,ss_cst_cost_cl,3))) -> NA | J66: =IF(C66=0,"--",IF(I66="contact vendor","--",C66*I66)) -> -- | K66: =IF(C66=0,"NA",VLOOKUP(anti_day_tank_vol,ss_cst_cost_cl,IF(ss_cat="large",4,5))) -> NA | M66: =$B$63&" - "&B66 -> Pretreatment Antiscalant Day Tanks - Stainless Steel | N66: 3 | O66: 3 | P66: 1 | Q66: 3 | R66: 3 | S66: 1 | T66: 3 | U66: 3 | V66: 1 | W66: 0 | X66: 0
A67: 2.4.2 | B67: Secondary Containment - Concrete Curbing | C67: =IF(OR(include_sec_cont=0,anti_day_tanks=0),0,anti_dt_curb_concrete) -> 0 | D67: cy | E67: NA | G67: NA | I67: =IF(C67=0,"NA",VLOOKUP(0,conc_basin_cost_cl,3)) -> NA | J67: =IF(C67=0,"--",IF(I67="contact vendor","--",C67*I67)) -> -- | K67: =IF(C67=0,"NA",VLOOKUP(0,conc_basin_cost_cl,IF(ss_cat="large",4,5))) -> NA | M67: =$B$63&" - "&B67 -> Pretreatment Antiscalant Day Tanks - Secondary Containment - Concrete Curbing | N67: 1 | O67: 1 | P67: 1 | Q67: 1 | R67: 1 | S67: 1 | T67: 1 | U67: 1 | V67: 1 | W67: 0 | X67: 0
A68: 2.4.3 | B68: Secondary Containment - Chemical Resistant Coating | C68: =IF(OR(include_sec_cont=0,anti_day_tanks=0),0,anti_dt_coating_gal) -> 0 | D68: gal | E68: NA | G68: NA | I68: =IF(C68=0,"NA",VLOOKUP(0,conc_coating_cost_cl,3)) -> NA | J68: =IF(C68=0,"--",IF(I68="contact vendor","--",C68*I68)) -> -- | K68: =IF(C68=0,"NA",VLOOKUP(0,conc_coating_cost_cl,IF(ss_cat="large",4,5))) -> NA | M68: =$B$63&" - "&B68 -> Pretreatment Antiscalant Day Tanks - Secondary Containment - Chemical Resistant Coating | N68: 1 | O68: 1 | P68: 1 | Q68: 1 | R68: 1 | S68: 1 | T68: 1 | U68: 1 | V68: 1 | W68: 0 | X68: 0
A69: 2.5 | B69: Mixers for Antiscalant Storage Tanks | W69: =IF(ISERROR(K69*L69),0,IF(K69<1,0,L69)) -> 0 | X69: =IF(W69,J69/K69,0) -> 0
A70: 2.5.1 | B70: Portable | C70: =cmixers -> 0 | D70: units | E70: =IF(C70=0,"NA",cmix_size) -> NA | F70: =IF(C70=0,"","hp") ->  | G70: =IF(C70=0,"NA",VLOOKUP(cmix_size,port_mix_cost_cl,2)) -> NA | H70: =IF(C70=0,"","hp") ->  | I70: =IF(C70=0,"NA",VLOOKUP(cmix_size,port_mix_cost_cl,3)) -> NA | J70: =IF(C70=0,"--",IF(I70="contact vendor","--",C70*I70)) -> -- | K70: =IF(C70=0,"NA",VLOOKUP(cmix_size,port_mix_cost_cl,IF(ss_cat="large",4,5))) -> NA | M70: =$B$69&" - "&B70 -> Mixers for Antiscalant Storage Tanks - Portable | N70: 3 | O70: 3 | P70: 3 | Q70: 3 | R70: 3 | S70: 3 | T70: 3 | U70: 3 | V70: 3 | W70: 0 | X70: 0
A71: 2.5.1 | B71: Mounted | C71: =cmixers -> 0 | D71: units | E71: =IF(C71=0,"NA",cmix_size) -> NA | F71: =IF(C71=0,"","hp") ->  | G71: =IF(C71=0,"NA",IF(curve=1,cmix_size,VLOOKUP(cmix_size,mount_mix_cost_cl,2))) -> NA | H71: =IF(C71=0,"","hp") ->  | I71: =IF(C71=0,"NA",IF(curve=1,cmount_mix_eq,VLOOKUP(cmix_size,mount_mix_cost_cl,3))) -> NA | J71: =IF(C71=0,"--",IF(I71="contact vendor","--",C71*I71)) -> -- | K71: =IF(C71=0,"NA",VLOOKUP(cmix_size,mount_mix_cost_cl,IF(ss_cat="large",4,5))) -> NA | M71: =$B$69&" - "&B71 -> Mixers for Antiscalant Storage Tanks - Mounted | N71: 1 | O71: 1 | P71: 1 | Q71: 1 | R71: 1 | S71: 1 | T71: 1 | U71: 1 | V71: 1 | W71: 0 | X71: 0
A72: 2.5.1 | B72: Impeller | C72: =cmixers -> 0 | D72: units | E72: =IF(C72=0,"NA",cmix_size) -> NA | F72: =IF(C72=0,"","hp") ->  | G72: =IF(C72=0,"NA",IF(curve=1,cmix_size,VLOOKUP(cmix_size,imp_mix_cost_cl,2))) -> NA | H72: =IF(C72=0,"","hp") ->  | I72: =IF(C72=0,"NA",IF(curve=1,cimp_mix_eq,VLOOKUP(cmix_size,imp_mix_cost_cl,3))) -> NA | J72: =IF(C72=0,"--",IF(I72="contact vendor","--",C72*I72)) -> -- | K72: =IF(C72=0,"NA",VLOOKUP(cmix_size,imp_mix_cost_cl,IF(ss_cat="large",4,5))) -> NA | M72: =$B$69&" - "&B72 -> Mixers for Antiscalant Storage Tanks - Impeller | N72: 2 | O72: 2 | P72: 2 | Q72: 2 | R72: 2 | S72: 2 | T72: 2 | U72: 2 | V72: 2 | W72: 0 | X72: 0
A73: 2.6 | B73: Mixers for Antiscalant Day Tanks | W73: 0 | X73: 0
A74: 2.6.1 | B74: Portable | C74: =dmixers -> 0 | D74: units | E74: =IF(C74=0,"NA",dmix_size) -> NA | F74: =IF(C74=0,"","hp") ->  | G74: =IF(C74=0,"NA",VLOOKUP(dmix_size,port_mix_cost_cl,2)) -> NA | H74: =IF(C74=0,"","hp") ->  | I74: =IF(C74=0,"NA",VLOOKUP(dmix_size,port_mix_cost_cl,3)) -> NA | J74: =IF(C74=0,"--",IF(I74="contact vendor","--",C74*I74)) -> -- | K74: =IF(C74=0,"NA",VLOOKUP(dmix_size,port_mix_cost_cl,IF(ss_cat="large",4,5))) -> NA | M74: =$B$73&" - "&B74 -> Mixers for Antiscalant Day Tanks - Portable | N74: 3 | O74: 3 | P74: 3 | Q74: 3 | R74: 3 | S74: 3 | T74: 3 | U74: 3 | V74: 3 | W74: 0 | X74: 0
A75: 2.6.1 | B75: Mounted | C75: =dmixers -> 0 | D75: units | E75: =IF(C75=0,"NA",dmix_size) -> NA | F75: =IF(C75=0,"","hp") ->  | G75: =IF(C75=0,"NA",IF(curve=1,dmix_size,VLOOKUP(dmix_size,mount_mix_cost_cl,2))) -> NA | H75: =IF(C75=0,"","hp") ->  | I75: =IF(C75=0,"NA",IF(curve=1,dmount_mix_eq,VLOOKUP(dmix_size,mount_mix_cost_cl,3))) -> NA | J75: =IF(C75=0,"--",IF(I75="contact vendor","--",C75*I75)) -> -- | K75: =IF(C75=0,"NA",VLOOKUP(dmix_size,mount_mix_cost_cl,IF(ss_cat="large",4,5))) -> NA | M75: =$B$73&" - "&B75 -> Mixers for Antiscalant Day Tanks - Mounted | N75: 1 | O75: 1 | P75: 1 | Q75: 1 | R75: 1 | S75: 1 | T75: 1 | U75: 1 | V75: 1 | W75: 0 | X75: 0
A76: 2.6.1 | B76: Impeller | C76: =dmixers -> 0 | D76: units | E76: =IF(C76=0,"NA",dmix_size) -> NA | F76: =IF(C76=0,"","hp") ->  | G76: =IF(C76=0,"NA",IF(curve=1,dmix_size,VLOOKUP(dmix_size,imp_mix_cost_cl,2))) -> NA | H76: =IF(C76=0,"","hp") ->  | I76: =IF(C76=0,"NA",IF(curve=1,dimp_mix_eq,VLOOKUP(dmix_size,imp_mix_cost_cl,3))) -> NA | J76: =IF(C76=0,"--",IF(I76="contact vendor","--",C76*I76)) -> -- | K76: =IF(C76=0,"NA",VLOOKUP(dmix_size,imp_mix_cost_cl,IF(ss_cat="large",4,5))) -> NA | M76: =$B$73&" - "&B76 -> Mixers for Antiscalant Day Tanks - Impeller | N76: 2 | O76: 2 | P76: 2 | Q76: 2 | R76: 2 | S76: 2 | T76: 2 | U76: 2 | V76: 2 | W76: 0 | X76: 0
A77: 2.7 | B77: Cleaning Solution Makeup Tanks | W77: =IF(ISERROR(K77*L77),0,IF(K77<1,0,L77)) -> 0 | X77: =IF(W77,J77/K77,0) -> 0
A78: 2,7,1 | B78: Plastic (XLPE) | C78: =total_chem_tanks -> 2 | D78: units | E78: =chem_tank_vol -> 28 | F78: gal | G78: =IF(curve=1,chem_tank_vol,VLOOKUP(chem_tank_vol,pl_cst_cost_cl,2)) -> 28 | H78: gal | I78: =IF(curve=1,pl_makeup_eq,VLOOKUP(chem_tank_vol,pl_cst_cost_cl,3)) -> 834.7046261 | J78: =IF(I78="contact vendor","--",C78*I78) -> 1669.409252 | K78: =VLOOKUP(chem_tank_vol,pl_cst_cost_cl,IF(ss_cat="large",4,5)) -> 7 | L78: 1 | M78: =$B$77&" - "&B78 -> Cleaning Solution Makeup Tanks - Plastic (XLPE) | N78: 1 | O78: 2 | P78: 3 | Q78: 1 | R78: 2 | S78: 3 | T78: 1 | U78: 2 | V78: 3 | W78: 1 | X78: 238.487036
A79: 2,7,1 | B79: Fiberglass | C79: =total_chem_tanks -> 2 | D79: units | E79: =chem_tank_vol -> 28 | F79: gal | G79: =IF(curve=1,chem_tank_vol,VLOOKUP(chem_tank_vol,fg_cst_cost_cl,2)) -> 28 | H79: gal | I79: =IF(curve=1,fg_makeup_eq,VLOOKUP(chem_tank_vol,fg_cst_cost_cl,3)) -> 4727.042369 | J79: =IF(I79="contact vendor","--",C79*I79) -> 9454.084738 | K79: =VLOOKUP(chem_tank_vol,fg_cst_cost_cl,IF(ss_cat="large",4,5)) -> 7 | L79: 0 | M79: =$B$77&" - "&B79 -> Cleaning Solution Makeup Tanks - Fiberglass | N79: 2 | O79: 1 | P79: 2 | Q79: 2 | R79: 1 | S79: 2 | T79: 2 | U79: 1 | V79: 2 | W79: 0 | X79: 0
A80: 2,7,1 | B80: Stainless Steel | C80: =total_chem_tanks -> 2 | D80: units | E80: =chem_tank_vol -> 28 | F80: gal | G80: =IF(curve=1,chem_tank_vol,VLOOKUP(chem_tank_vol,ss_cst_cost_cl,2)) -> 28 | H80: gal | I80: =IF(curve=1,ss_makeup_eq,VLOOKUP(chem_tank_vol,ss_cst_cost_cl,3)) -> 4478.77998 | J80: =IF(I80="contact vendor","--",C80*I80) -> 8957.55996 | K80: =VLOOKUP(chem_tank_vol,ss_cst_cost_cl,IF(ss_cat="large",4,5)) -> 30 | L80: 0 | M80: =$B$77&" - "&B80 -> Cleaning Solution Makeup Tanks - Stainless Steel | N80: 3 | O80: 3 | P80: 1 | Q80: 3 | R80: 3 | S80: 1 | T80: 3 | U80: 3 | V80: 1 | W80: 0 | X80: 0
A81: 2.8 | B81: Cleaning Chemical Storage Tanks | W81: 0 | X81: 0
A82: 2.8.1 | B82: Acid - Plastic (XLPE) | C82: =clean_acid_store_tanks -> 0 | D82: units | E82: =IF(C82=0,"NA",clean_acid_store_tank_size) -> NA | F82: =IF(C82=0,"","gal") ->  | G82: =IF(C82=0,"NA",IF(curve=1,clean_acid_store_tank_size,VLOOKUP(clean_acid_store_tank_size,pl_cst_cost_cl,2))) -> NA | H82: =IF(C82=0,"","gal") ->  | I82: =IF(C82=0,"NA",IF(curve=1,pl_clncst_eq_acid,VLOOKUP(clean_acid_store_tank_size,pl_cst_cost_cl,3))) -> NA | J82: =IF(OR(I82="contact vendor",I82="NA"),"--",C82*I82) -> -- | K82: =IF(C82=0,"NA",VLOOKUP(clean_acid_store_tank_size,pl_cst_cost_cl,IF(ss_cat="large",4,5))) -> NA | M82: =$B$81&" - "&B82 -> Cleaning Chemical Storage Tanks - Acid - Plastic (XLPE) | N82: 1 | O82: 2 | P82: 2 | Q82: 1 | R82: 2 | S82: 2 | T82: 1 | U82: 2 | V82: 2 | W82: 0 | X82: 0
A83: 2.8.1 | B83: Acid - Fiberglass | C83: =clean_acid_store_tanks -> 0 | D83: units | E83: =IF(C83=0,"NA",clean_acid_store_tank_size) -> NA | G83: =IF(C83=0,"NA",IF(curve=1,clean_acid_store_tank_size,VLOOKUP(clean_acid_store_tank_size,fg_cst_cost_cl,2))) -> NA | I83: =IF(C83=0,"NA",IF(curve=1,fg_clncst_eq_acid,VLOOKUP(clean_acid_store_tank_size,fg_cst_cost_cl,3))) -> NA | J83: =IF(OR(I83="contact vendor",I83="NA"),"--",C83*I83) -> -- | K83: =IF(C83=0,"NA",VLOOKUP(clean_acid_store_tank_size,fg_cst_cost_cl,IF(ss_cat="large",4,5))) -> NA | M83: Cleaning Chemical Storage Tanks - Acid - Fiberglass | N83: 2 | O83: 1 | P83: 1 | Q83: 2 | R83: 1 | S83: 1 | T83: 2 | U83: 1 | V83: 1 | W83: 0 | X83: 0
A84: 2.8.2 | B84: Acid - Secondary Containment - Concrete Curbing | C84: =IF(OR(include_sec_cont=0,clean_acid_store_tanks=0),0,acid_tank_curb_concrete) -> 0 | D84: cy | E84: NA | G84: NA | I84: =IF(C84=0,"NA",VLOOKUP(0,conc_basin_cost_cl,3)) -> NA | J84: =IF(C84=0,"--",IF(I84="contact vendor","--",C84*I84)) -> -- | K84: =IF(C84=0,"NA",VLOOKUP(0,conc_basin_cost_cl,IF(ss_cat="large",4,5))) -> NA | M84: Cleaning Chemical Storage Tanks - Acid - Secondary Containment - Concrete Curbing | N84: 1 | O84: 1 | P84: 1 | Q84: 1 | R84: 1 | S84: 1 | T84: 1 | U84: 1 | V84: 1 | W84: 0
A85: 2.8.3 | B85: Acid - Secondary Containment - Chemical Resistant Coating | C85: =IF(OR(include_sec_cont=0,clean_acid_store_tanks=0),0,acid_tank_coating_gal) -> 0 | D85: gal | E85: NA | G85: NA | I85: =IF(C85=0,"NA",VLOOKUP(0,conc_coating_cost_cl,3)) -> NA | J85: =IF(C85=0,"--",IF(I85="contact vendor","--",C85*I85)) -> -- | K85: =IF(C85=0,"NA",VLOOKUP(0,conc_coating_cost_cl,IF(ss_cat="large",4,5))) -> NA | M85: Cleaning Chemical Storage Tanks - Acid - Secondary Containment - Chemical Resistant Coating | N85: 1 | O85: 1 | P85: 1 | Q85: 1 | R85: 1 | S85: 1 | T85: 1 | U85: 1 | V85: 1 | W85: =IF(ISERROR(K85*L85),0,IF(K85<1,0,L85)) -> 0
A86: 2.8.4 | B86: High pH - Plastic (XLPE) | C86: =clean_caustic_store_tanks -> 0 | D86: units | E86: =IF(C86=0,"NA",clean_caustic_store_tank_size) -> NA | G86: =IF(C86=0,"NA",IF(curve=1,clean_caustic_store_tank_size,VLOOKUP(clean_caustic_store_tank_size,pl_cst_cost_cl,2))) -> NA | I86: =IF(C86=0,"NA",IF(curve=1,pl_clncst_eq_caustic,VLOOKUP(clean_caustic_store_tank_size,pl_cst_cost_cl,3))) -> NA | J86: =IF(OR(I86="contact vendor",I86="NA"),"--",C86*I86) -> -- | K86: =IF(C86=0,"NA",VLOOKUP(clean_caustic_store_tank_size,pl_cst_cost_cl,IF(ss_cat="large",4,5))) -> NA | M86: Cleaning Chemical Storage Tanks - High pH - Plastic (XLPE) | N86: 1 | O86: 2 | P86: 3 | Q86: 1 | R86: 2 | S86: 3 | T86: 1 | U86: 2 | V86: 3 | W86: 0 | X86: =IF(W86,J86/K86,0) -> 0
A87: 2.8.4 | B87: High pH - Fiberglass | C87: =clean_caustic_store_tanks -> 0 | D87: units | E87: =IF(C87=0,"NA",clean_caustic_store_tank_size) -> NA | G87: =IF(C87=0,"NA",IF(curve=1,clean_caustic_store_tank_size,VLOOKUP(clean_caustic_store_tank_size,fg_cst_cost_cl,2))) -> NA | I87: =IF(C87=0,"NA",IF(curve=1,fg_clncst_eq_caustic,VLOOKUP(clean_caustic_store_tank_size,fg_cst_cost_cl,3))) -> NA | J87: =IF(OR(I87="contact vendor",I87="NA"),"--",C87*I87) -> -- | K87: =IF(C87=0,"NA",VLOOKUP(clean_caustic_store_tank_size,fg_cst_cost_cl,IF(ss_cat="large",4,5))) -> NA | M87: Cleaning Chemical Storage Tanks - High pH - Fiberglass | N87: 2 | O87: 1 | P87: 2 | Q87: 2 | R87: 1 | S87: 2 | T87: 2 | U87: 1 | V87: 2 | W87: 0 | X87: =IF(W87,J87/K87,0) -> 0
A88: 2.8.4 | B88: High pH - Stainless Steel | C88: =clean_caustic_store_tanks -> 0 | D88: units | E88: =IF(C88=0,"NA",clean_caustic_store_tank_size) -> NA | F88: =IF(C88=0,"","gal") ->  | G88: =IF(C88=0,"NA",IF(curve=1,clean_caustic_store_tank_size,VLOOKUP(clean_caustic_store_tank_size,ss_cst_cost_cl,2))) -> NA | H88: =IF(C88=0,"","gal") ->  | I88: =IF(C88=0,"NA",IF(curve=1,ss_clncst_eq_caustic,VLOOKUP(clean_caustic_store_tank_size,ss_cst_cost_cl,3))) -> NA | J88: =IF(OR(I88="contact vendor",I88="NA"),"--",C88*I88) -> -- | K88: =IF(C88=0,"NA",VLOOKUP(clean_caustic_store_tank_size,ss_cst_cost_cl,IF(ss_cat="large",4,5))) -> NA | M88: Cleaning Chemical Storage Tanks - High pH - Stainless Steel | N88: 3 | O88: 3 | P88: 1 | Q88: 3 | R88: 3 | S88: 1 | T88: 3 | U88: 3 | V88: 1 | W88: 0 | X88: =IF(W88,J88/K88,0) -> 0
A89: 2.8.5 | B89: High pH - Secondary Containment - Concrete Curbing | C89: =IF(OR(include_sec_cont=0,clean_caustic_store_tanks=0),0,caustic_curb_concrete) -> 0 | D89: cy | E89: NA | G89: NA | I89: =IF(C89=0,"NA",VLOOKUP(0,conc_basin_cost_cl,3)) -> NA | J89: =IF(C89=0,"--",IF(I89="contact vendor","--",C89*I89)) -> -- | K89: =IF(C89=0,"NA",VLOOKUP(0,conc_basin_cost_cl,IF(ss_cat="large",4,5))) -> NA | M89: Cleaning Chemical Storage Tanks - High pH - Secondary Containment - Concrete Curbing | N89: 1 | O89: 1 | P89: 1 | Q89: 1 | R89: 1 | S89: 1 | T89: 1 | U89: 1 | V89: 1 | W89: 0 | X89: =IF(W89,J89/K89,0) -> 0
A90: 2.8.6 | B90: High pH - Secondary Containment - Chemical Resistant Coating | C90: =IF(OR(include_sec_cont=0,clean_caustic_store_tanks=0),0,caustic_coating_gal) -> 0 | D90: gal | E90: NA | G90: NA | I90: =IF(C90=0,"NA",VLOOKUP(0,conc_coating_cost_cl,3)) -> NA | J90: =IF(C90=0,"--",IF(I90="contact vendor","--",C90*I90)) -> -- | K90: =IF(C90=0,"NA",VLOOKUP(0,conc_coating_cost_cl,IF(ss_cat="large",4,5))) -> NA | M90: Cleaning Chemical Storage Tanks - High pH - Secondary Containment - Chemical Resistant Coating | N90: 1 | O90: 1 | P90: 1 | Q90: 1 | R90: 1 | S90: 1 | T90: 1 | U90: 1 | V90: 1 | W90: 0 | X90: =IF(W90,J90/K90,0) -> 0
A91: 2.8.7 | B91: High pH - Heat Tracing | C91: =IF(clean_high_pH=1,clean_caustic_store_tanks,0) -> 0 | D91: units | E91: =IF(C91=0,"NA",clean_caustic_store_tank_size) -> NA | G91: =IF(C91=0,"NA",IF(curve=1,clean_caustic_store_tank_size,VLOOKUP(clean_caustic_store_tank_size,cst_heat_cost_cl,2))) -> NA | I91: =IF(C91=0,0,IF(curve=1,cst_heat_eq,VLOOKUP(clean_caustic_store_tank_size,cst_heat_cost_cl,3))) -> 0 | J91: =IF(I91="contact vendor","--",C91*I91) -> 0 | K91: =IF(C91=0,"NA",VLOOKUP(E91,cst_heat_cost_cl,IF(ss_cat="large",4,5))) -> NA | M91: Cleaning Chemical Storage Tanks - High pH - Heat Tracing | N91: 1 | O91: 1 | P91: 1 | Q91: 1 | R91: 1 | S91: 1 | T91: 1 | U91: 1 | V91: 1 | W91: =IF(ISERROR(K91*L91),0,IF(K91<1,0,L91)) -> 0 | X91: =IF(W91,J91/K91,0) -> 0
A92: 2.8.8 | B92: High pH - Insulation | C92: =IF(clean_high_pH=1,clean_caustic_store_tanks,0) -> 0 | D92: units | E92: =IF(C91=0,"NA",clean_caustic_store_tank_size) -> NA | G92: =IF(C92=0,"NA",IF(curve=1,clean_caustic_store_tank_size,VLOOKUP(clean_caustic_store_tank_size,cst_insul_cost_cl,2))) -> NA | I92: =IF(C92=0,0,IF(curve=1,cst_insul_eq,VLOOKUP(clean_caustic_store_tank_size,cst_insul_cost_cl,3))) -> 0 | J92: =IF(I92="contact vendor","--",C92*I92) -> 0 | K92: =IF(C92=0,"NA",VLOOKUP(E92,cst_insul_cost_cl,IF(ss_cat="large",4,5))) -> NA | M92: Cleaning Chemical Storage Tanks - High pH - Insulation | N92: 1 | O92: 1 | P92: 1 | Q92: 1 | R92: 1 | S92: 1 | T92: 1 | U92: 1 | V92: 1 | W92: 0 | X92: 0
A93: 2.9 | B93: Residuals Holding Tanks | W93: 0 | X93: 0
A94: 2.9.1 | B94: Steel Tanks | C94: =htanks -> 0 | D94: units | E94: =IF(C94=0,"NA",htank_vol) -> NA | F94: =IF(C94=0,"","gal") ->  | G94: =IF(htanks=0,"NA",IF(curve=1,htank_vol,VLOOKUP(htank_vol,st_bwt_cost_cl,2))) -> NA | H94: =IF(C94=0,"","gal") ->  | I94: =IF(htanks=0,0,IF(curve=1,st_ht_eq,VLOOKUP(htank_vol,st_bwt_cost_cl,3))) -> 0 | J94: =IF(I94="contact vendor","--",C94*I94) -> 0 | K94: =IF(htanks=0,"NA",VLOOKUP(htank_vol,st_bwt_cost_cl,IF(ss_cat="large",4,5))) -> NA | M94: =$B$93&" - "&B94 -> Residuals Holding Tanks - Steel Tanks | N94: 3 | O94: 3 | P94: 1 | Q94: 3 | R94: 3 | S94: 1 | T94: 3 | U94: 3 | V94: 1 | W94: 0 | X94: 0
A95: 2.9.1 | B95: Fiberglass Tanks | C95: =htanks -> 0 | D95: units | E95: =IF(C95=0,"NA",htank_vol) -> NA | F95: =IF(C95=0,"","gal") ->  | G95: =IF(htanks=0,"NA",IF(curve=1,htank_vol,VLOOKUP(htank_vol,fg_bwt_cost_cl,2))) -> NA | H95: =IF(C95=0,"","gal") ->  | I95: =IF(htanks=0,0,IF(curve=1,fg_ht_eq,VLOOKUP(htank_vol,fg_bwt_cost_cl,3))) -> 0 | J95: =IF(I95="contact vendor","--",C95*I95) -> 0 | K95: =IF(htanks=0,"NA",VLOOKUP(htank_vol,fg_bwt_cost_cl,IF(ss_cat="large",4,5))) -> NA | M95: =$B$93&" - "&B95 -> Residuals Holding Tanks - Fiberglass Tanks | N95: 2 | O95: 1 | P95: 2 | Q95: 2 | R95: 1 | S95: 2 | T95: 2 | U95: 1 | V95: 2 | W95: 0 | X95: 0
A96: 2.9.1 | B96: Plastic/HDPE Tanks | C96: =htanks -> 0 | D96: units | E96: =IF(C96=0,"NA",htank_vol) -> NA | F96: =IF(C96=0,"","gal") ->  | G96: =IF(htanks=0,"NA",IF(curve=1,htank_vol,VLOOKUP(htank_vol,hdpe_bwt_cost_cl,2))) -> NA | H96: =IF(C96=0,"","gal") ->  | I96: =IF(htanks=0,0,IF(curve=1,hdpe_ht_eq,VLOOKUP(htank_vol,hdpe_bwt_cost_cl,3))) -> 0 | J96: =IF(I96="contact vendor","--",C96*I96) -> 0 | K96: =IF(htanks=0,"NA",VLOOKUP(htank_vol,hdpe_bwt_cost_cl,IF(ss_cat="large",4,5))) -> NA | M96: =$B$93&" - "&B96 -> Residuals Holding Tanks - Plastic/HDPE Tanks | N96: 1 | O96: 2 | P96: 3 | Q96: 1 | R96: 2 | S96: 3 | T96: 1 | U96: 2 | V96: 3 | W96: 0 | X96: 0
A97: 2.10 | B97: Residuals Holding Basins | W97: 0 | X97: 0
A98: 2.10.1 | B98: Concrete | C98: =hbasins -> 0 | D98: units | E98: =IF(C98=0,"NA",hbasin_vol) -> NA | F98: =IF(C98=0,"","gal") ->  | G98: =IF(C98=0,"NA",hbasin_vol) -> NA | H98: =IF(C98=0,"","gal") ->  | I98: =IF(hbasins=0,0,hbasin_conc_vol/hbasins*VLOOKUP(0,conc_basin_cost_cl,3)) -> 0 | J98: =IF(I98="contact vendor","--",C98*I98) -> 0 | K98: =IF(hbasins=0,"NA",VLOOKUP(0,conc_basin_cost_cl,IF(ss_cat="large",4,5))) -> NA | M98: =$B$97&" - "&B98 -> Residuals Holding Basins - Concrete | N98: 1 | O98: 1 | P98: 1 | Q98: 1 | R98: 1 | S98: 1 | T98: 1 | U98: 1 | V98: 1 | W98: 0 | X98: 0
A99: 2.10.2 | B99: Aluminum Railing | C99: =hbasin_railing -> 0 | D99: lf | E99: NA | G99: NA | I99: =IF(hbasins=0,0,VLOOKUP(B99,metal_cost_cl,3)) -> 0 | J99: =IF(I99="contact vendor","--",C99*I99) -> 0 | K99: =IF(hbasins=0,"NA",VLOOKUP(B99,metal_cost_cl,IF(ss_cat="large",4,5))) -> NA | M99: =$B$97&" - "&B99 -> Residuals Holding Basins - Aluminum Railing | N99: 1 | O99: 1 | P99: 1 | Q99: 1 | R99: 1 | S99: 1 | T99: 1 | U99: 1 | V99: 1 | W99: 0 | X99: 0
A100: 2.10.3 | B100: Aluminum Stairs | C100: =IF(hbasins=0,0,risers*hbasins) -> 0 | D100: risers | E100: NA | G100: NA | I100: =IF(hbasins=0,0,VLOOKUP(B100,metal_cost_cl,3)) -> 0 | J100: =IF(I100="contact vendor","--",C100*I100) -> 0 | K100: =IF(hbasins=0,"NA",VLOOKUP(B100,metal_cost_cl,IF(ss_cat="large",4,5))) -> NA | M100: =$B$97&" - "&B100 -> Residuals Holding Basins - Aluminum Stairs | N100: 1 | O100: 1 | P100: 1 | Q100: 1 | R100: 1 | S100: 1 | T100: 1 | U100: 1 | V100: 1 | W100: 0 | X100: 0
A101: 2.10.4 | B101: Excavation | C101: =IF(hbasins=0,0,1) -> 0 | D101: units | E101: =IF(C101=0,"NA",hbasin_excavation_vol) -> NA | F101: =IF(C101=0,"","cy") ->  | G101: =IF(C101=0,"NA",hbasin_excavation_vol) -> NA | H101: =IF(C101=0,"","cy") ->  | I101: =IF(hbasins=0,0,VLOOKUP(0,excavate_cost_cl,3)) -> 0 | J101: =IF(hbasins=0,0,IF(I101="contact vendor","--",E101*I101)) -> 0 | K101: =IF(C101=0,"NA",VLOOKUP(0,conc_basin_cost_cl,IF(ss_cat="large",4,5))) -> NA | M101: =$B$97&" - "&B101 -> Residuals Holding Basins - Excavation | N101: 1 | O101: 1 | P101: 1 | Q101: 1 | R101: 1 | S101: 1 | T101: 1 | U101: 1 | V101: 1 | W101: 0 | X101: 0
A102: 2.10.5 | B102: Backfill and Compaction | C102: =IF(hbasins=0,0,1) -> 0 | D102: units | E102: =IF(C102=0,"NA",hbasin_backfill_vol) -> NA | F102: =IF(C102=0,"","cy") ->  | G102: =IF(C102=0,"NA",hbasin_backfill_vol) -> NA | H102: =IF(C102=0,"","cy") ->  | I102: =IF(hbasins=0,0,VLOOKUP(0,backfill_cost_cl,3)) -> 0 | J102: =IF(hbasins=0,0,IF(I102="contact vendor","--",E102*I102)) -> 0 | K102: =IF(C102=0,"NA",VLOOKUP(0,conc_basin_cost_cl,IF(ss_cat="large",4,5))) -> NA | M102: =$B$97&" - "&B102 -> Residuals Holding Basins - Backfill and Compaction | N102: 1 | O102: 1 | P102: 1 | Q102: 1 | R102: 1 | S102: 1 | T102: 1 | U102: 1 | V102: 1 | W102: 0 | X102: 0
A103: 2.11 | B103: Residuals Holding Lagoons | W103: 0 | X103: 0
A104: 2.11.1 | B104: Excavation | C104: =hlagoons -> 0 | D104: cells | E104: =IF(C104=0,"NA",hl_excavation_vol/hlagoons) -> NA | F104: =IF(C104=0,"","cy") ->  | G104: =IF(C104=0,"NA",hl_excavation_vol/hlagoons) -> NA | H104: =IF(C104=0,"","cy") ->  | I104: =IF(C104=0,"NA",VLOOKUP(0,excavate_cost_cl,3)) -> NA | J104: =IF(C104=0,"--",IF(I104="contact vendor","--",E104*I104)) -> -- | K104: =IF(C104=0,"NA",VLOOKUP(0,ep_liner_cost_cl,IF(ss_cat="large",4,5))) -> NA | M104: =$B$103&" - "&B104 -> Residuals Holding Lagoons - Excavation | N104: 1 | O104: 1 | P104: 1 | Q104: 1 | R104: 1 | S104: 1 | T104: 1 | U104: 1 | V104: 1 | W104: 0 | X104: 0
A105: 2.11.2 | B105: Backfill | C105: =hlagoons -> 0 | D105: cells | E105: =IF(C105=0,"NA",hl_backfill_vol/hlagoons) -> NA | F105: =IF(C105=0,"","cy") ->  | G105: =IF(C105=0,"NA",hl_backfill_vol/hlagoons) -> NA | H105: =IF(C105=0,"","cy") ->  | I105: =IF(C105=0,"NA",VLOOKUP(0,backfill_cost_cl,3)) -> NA | J105: =IF(C105=0,"--",IF(I105="contact vendor","--",E105*I105)) -> -- | K105: =IF(C105=0,"NA",VLOOKUP(0,ep_liner_cost_cl,IF(ss_cat="large",4,5))) -> NA | M105: =$B$103&" - "&B105 -> Residuals Holding Lagoons - Backfill | N105: 1 | O105: 1 | P105: 1 | Q105: 1 | R105: 1 | S105: 1 | T105: 1 | U105: 1 | V105: 1 | W105: 0 | X105: 0
A106: 2.11.3 | B106: Liner | C106: =hlagoons -> 0 | D106: cells | E106: =IF(C106=0,"NA",hl_liner_area/hlagoons) -> NA | F106: =IF(C106=0,"","sf") ->  | G106: =IF(C106=0,"NA",hl_liner_area/hlagoons) -> NA | H106: =IF(C106=0,"","sf") ->  | I106: =IF(C106=0,"NA",VLOOKUP(0,ep_liner_cost_cl,3)) -> NA | J106: =IF(C106=0,"--",IF(I106="contact vendor","--",E106*I106)) -> -- | K106: =IF(C106=0,"NA",VLOOKUP(0,ep_liner_cost_cl,IF(ss_cat="large",4,5))) -> NA | M106: =$B$103&" - "&B106 -> Residuals Holding Lagoons - Liner | N106: 1 | O106: 1 | P106: 1 | Q106: 1 | R106: 1 | S106: 1 | T106: 1 | U106: 1 | V106: 1 | W106: 0 | X106: 0
A107: 2.11.4 | B107: Dike Construction | C107: =hlagoons -> 0 | D107: cells | E107: =IF(C107=0,"NA",hl_dike_volume/hlagoons) -> NA | F107: =IF(C107=0,"","cy") ->  | G107: =IF(C107=0,"NA",hl_dike_volume/hlagoons) -> NA | H107: =IF(C107=0,"","cy") ->  | I107: =IF(C107=0,"NA",ep_dike_construct_cl) -> NA | J107: =IF(C107=0,"--",IF(I107="contact vendor","--",E107*I107)) -> -- | K107: =IF(C107=0,"NA",VLOOKUP(0,ep_liner_cost_cl,IF(ss_cat="large",4,5))) -> NA | M107: =$B$103&" - "&B107 -> Residuals Holding Lagoons - Dike Construction | N107: 1 | O107: 1 | P107: 1 | Q107: 1 | R107: 1 | S107: 1 | T107: 1 | U107: 1 | V107: 1 | W107: 0 | X107: 0
A108: 3 | B108: Piping (not associated with racks) | W108: =IF(ISERROR(K108*L108),0,IF(K108<1,0,L108)) -> 0 | X108: =IF(W108,J108/K108,0) -> 0
A109: 3.1 | B109: Inlet and Outlet Piping | W109: 0 | X109: 0
A110: 3.1.1 | B110: Ductile Iron | C110: =in_out_pipe_length -> 80 | D110: lf | E110: =in_out_pipe_diam -> 2 | F110: in. diam | G110: =IF(curve=1,in_out_pipe_diam,VLOOKUP(in_out_pipe_diam,di_pipe_cost_cl,2)) -> 2 | H110: in. diam | I110: =IF(curve=1,di_pipe_eq_in_out,VLOOKUP(in_out_pipe_diam,di_pipe_cost_cl,3)) -> contact vendor | J110: =IF(OR(I110="contact vendor",I110="NA"),"--",C110*I110) -> -- | K110: =IF(C110=0,"NA",VLOOKUP(E110,di_pipe_cost_cl,IF(ss_cat="large",4,5))) -> 35 | L110: 0 | M110: =$B$109&" "&" - "&B110 -> Inlet and Outlet Piping - Ductile Iron | N110: 3 | O110: 3 | P110: 3 | Q110: 3 | R110: 3 | S110: 3 | T110: 3 | U110: 3 | V110: 3 | W110: 0 | X110: 0
A111: 3.1.1 | B111: CPVC | C111: =in_out_pipe_length -> 80 | D111: lf | E111: =in_out_pipe_diam -> 2 | F111: in. diam | G111: =IF(curve=1,in_out_pipe_diam,VLOOKUP(in_out_pipe_diam,cpvc_pipe_cost_cl,2)) -> 2 | H111: in. diam | I111: =IF(curve=1,cpvc_pipe_eq_in_out,VLOOKUP(in_out_pipe_diam,cpvc_pipe_cost_cl,3)) -> 9.742456106 | J111: =IF(OR(I111="contact vendor",I111="NA"),"--",C111*I111) -> 779.3964885 | K111: =IF(C111=0,"NA",VLOOKUP(E111,cpvc_pipe_cost_cl,IF(ss_cat="large",4,5))) -> 17 | L111: 0 | M111: =$B$109&" "&" - "&B111 -> Inlet and Outlet Piping - CPVC | N111: 2 | O111: 1 | P111: 4 | Q111: 2 | R111: 1 | S111: 4 | T111: 2 | U111: 1 | V111: 4 | W111: 0 | X111: 0
A112: 3.1.1 | B112: PVC | C112: =in_out_pipe_length -> 80 | D112: lf | E112: =in_out_pipe_diam -> 2 | F112: in. diam | G112: =IF(curve=1,in_out_pipe_diam,VLOOKUP(in_out_pipe_diam,pvc_pipe_cost_cl,2)) -> 2 | H112: in. diam | I112: =IF(curve=1,pvc_pipe_eq_in_out,VLOOKUP(in_out_pipe_diam,pvc_pipe_cost_cl,3)) -> 3.303354553 | J112: =IF(OR(I112="contact vendor",I112="NA"),"--",C112*I112) -> 264.2683642 | K112: =IF(C112=0,"NA",VLOOKUP(E112,pvc_pipe_cost_cl,IF(ss_cat="large",4,5))) -> 17 | L112: 1 | M112: =$B$109&" "&" - "&B112 -> Inlet and Outlet Piping - PVC | N112: 1 | O112: 2 | P112: 5 | Q112: 1 | R112: 2 | S112: 5 | T112: 1 | U112: 2 | V112: 5 | W112: 1 | X112: 15.5451979
A113: 3.1.1 | B113: Stainless Steel | C113: =in_out_pipe_length -> 80 | D113: lf | E113: =in_out_pipe_diam -> 2 | F113: in. diam | G113: =IF(curve=1,in_out_pipe_diam,VLOOKUP(in_out_pipe_diam,ss_pipe_cost_cl,2)) -> 2 | H113: in. diam | I113: =IF(curve=1,ss_pipe_eq_in_out,VLOOKUP(in_out_pipe_diam,ss_pipe_cost_cl,3)) -> 64.04244501 | J113: =IF(OR(I113="contact vendor",I113="NA"),"--",C113*I113) -> 5123.3956 | K113: =IF(C113=0,"NA",VLOOKUP(E113,ss_pipe_cost_cl,IF(ss_cat="large",4,5))) -> 40 | L113: 0 | M113: =$B$109&" "&" - "&B113 -> Inlet and Outlet Piping - Stainless Steel | N113: 5 | O113: 5 | P113: 1 | Q113: 5 | R113: 5 | S113: 1 | T113: 5 | U113: 5 | V113: 1 | W113: 0 | X113: 0
A114: 3.1.1 | B114: Steel | C114: =in_out_pipe_length -> 80 | D114: lf | E114: =in_out_pipe_diam -> 2 | F114: in. diam | G114: =IF(curve=1,in_out_pipe_diam,VLOOKUP(in_out_pipe_diam,st_pipe_cost_cl,2)) -> 2 | H114: in. diam | I114: =IF(curve=1,st_pipe_eq_in_out,VLOOKUP(in_out_pipe_diam,st_pipe_cost_cl,3)) -> 34.68423099 | J114: =IF(OR(I114="contact vendor",I114="NA"),"--",C114*I114) -> 2774.73848 | K114: =IF(C114=0,"NA",VLOOKUP(E114,st_pipe_cost_cl,IF(ss_cat="large",4,5))) -> 33 | L114: 0 | M114: =$B$109&" "&" - "&B114 -> Inlet and Outlet Piping - Steel | N114: 4 | O114: 4 | P114: 2 | Q114: 4 | R114: 4 | S114: 2 | T114: 4 | U114: 4 | V114: 2 | W114: 0 | X114: 0
A115: 3.2 | B115: Cleaning System Piping | W115: 0 | X115: 0
A116: 3.2.1 | B116: CPVC | C116: =clean_pipe_length -> 40 | D116: lf | E116: =clean_pipe_diam -> 1.5 | F116: in. diam | G116: =IF(curve=1,clean_pipe_diam,VLOOKUP(clean_pipe_diam,cpvc_pipe_cost_cl,2)) -> 1.5 | H116: in. diam | I116: =IF(curve=1,cpvc_pipe_eq_clean,VLOOKUP(clean_pipe_diam,cpvc_pipe_cost_cl,3)) -> 7.094422356 | J116: =IF(OR(I116="contact vendor",I116="NA"),"--",C116*I116) -> 283.7768942 | K116: =VLOOKUP(clean_pipe_diam,cpvc_pipe_cost_cl,IF(ss_cat="large",4,5)) -> 17 | L116: 0 | M116: =$B$115&" - "&B116 -> Cleaning System Piping - CPVC | N116: 2 | O116: 1 | P116: 2 | Q116: 2 | R116: 1 | S116: 2 | T116: 2 | U116: 1 | V116: 2 | W116: 0 | X116: 0
A117: 3.2.1 | B117: PVC | C117: =clean_pipe_length -> 40 | D117: lf | E117: =clean_pipe_diam -> 1.5 | F117: in. diam | G117: =IF(curve=1,clean_pipe_diam,VLOOKUP(clean_pipe_diam,pvc_pipe_cost_cl,2)) -> 1.5 | H117: in. diam | I117: =IF(curve=1,pvc_pipe_eq_clean,VLOOKUP(clean_pipe_diam,pvc_pipe_cost_cl,3)) -> 2.992616126 | J117: =IF(OR(I117="contact vendor",I117="NA"),"--",C117*I117) -> 119.704645 | K117: =VLOOKUP(clean_pipe_diam,pvc_pipe_cost_cl,IF(ss_cat="large",4,5)) -> 17 | L117: 1 | M117: =$B$115&" - "&B117 -> Cleaning System Piping - PVC | N117: 1 | O117: 2 | P117: 3 | Q117: 1 | R117: 2 | S117: 3 | T117: 1 | U117: 2 | V117: 3 | W117: 1 | X117: 7.041449708
A118: 3.2.1 | B118: Stainless Steel | C118: =clean_pipe_length -> 40 | D118: lf | E118: =clean_pipe_diam -> 1.5 | F118: in. diam | G118: =IF(curve=1,clean_pipe_diam,VLOOKUP(clean_pipe_diam,ss_pipe_cost_cl,2)) -> 1.5 | H118: in. diam | I118: =IF(curve=1,ss_pipe_eq_clean,VLOOKUP(clean_pipe_diam,ss_pipe_cost_cl,3)) -> 48.76188922 | J118: =IF(OR(I118="contact vendor",I118="NA"),"--",C118*I118) -> 1950.475569 | K118: =VLOOKUP(clean_pipe_diam,ss_pipe_cost_cl,IF(ss_cat="large",4,5)) -> 40 | L118: 0 | M118: =$B$115&" - "&B118 -> Cleaning System Piping - Stainless Steel | N118: 3 | O118: 3 | P118: 1 | Q118: 3 | R118: 3 | S118: 1 | T118: 3 | U118: 3 | V118: 1 | W118: 0 | X118: 0
A119: 3.3 | B119: Residuals Piping | W119: 0 | X119: 0
A120: 3.3.1 | B120: CPVC | C120: =res_pipe_length -> 5080 | D120: lf | E120: =res_pipe_diam -> 1.5 | F120: in. diam | G120: =IF(curve=1,res_pipe_diam,VLOOKUP(res_pipe_diam,cpvc_pipe_cost_cl,2)) -> 1.5 | H120: in. diam | I120: =IF(curve=1,cpvc_pipe_eq_res,VLOOKUP(res_pipe_diam,cpvc_pipe_cost_cl,3)) -> 7.094422356 | J120: =IF(OR(I120="contact vendor",I120="NA"),"--",C120*I120) -> 36039.66557 | K120: =VLOOKUP(res_pipe_diam,cpvc_pipe_cost_cl,IF(ss_cat="large",4,5)) -> 17 | L120: 0 | M120: =$B$119&" "&" - "&B120 -> Residuals Piping - CPVC | N120: 2 | O120: 1 | P120: 2 | Q120: 2 | R120: 1 | S120: 2 | T120: 2 | U120: 1 | V120: 2 | W120: 0 | X120: 0
A121: 3.3.1 | B121: PVC | C121: =res_pipe_length -> 5080 | D121: lf | E121: =res_pipe_diam -> 1.5 | F121: in. diam | G121: =IF(curve=1,res_pipe_diam,VLOOKUP(res_pipe_diam,pvc_pipe_cost_cl,2)) -> 1.5 | H121: in. diam | I121: =IF(curve=1,pvc_pipe_eq_res,VLOOKUP(res_pipe_diam,pvc_pipe_cost_cl,3)) -> 2.992616126 | J121: =IF(OR(I121="contact vendor",I121="NA"),"--",C121*I121) -> 15202.48992 | K121: =VLOOKUP(res_pipe_diam,pvc_pipe_cost_cl,IF(ss_cat="large",4,5)) -> 17 | L121: 1 | M121: Residuals Piping - PVC | N121: 1 | O121: 2 | P121: 3 | Q121: 1 | R121: 2 | S121: 3 | T121: 1 | U121: 2 | V121: 3 | W121: 1 | X121: 894.2641129
A122: 3.3.1 | B122: Stainless Steel | C122: =res_pipe_length -> 5080 | D122: lf | E122: =res_pipe_diam -> 1.5 | F122: in. diam | G122: =IF(curve=1,res_pipe_diam,VLOOKUP(res_pipe_diam,ss_pipe_cost_cl,2)) -> 1.5 | H122: in. diam | I122: =IF(curve=1,ss_pipe_eq_res,VLOOKUP(res_pipe_diam,ss_pipe_cost_cl,3)) -> 48.76188922 | J122: =IF(OR(I122="contact vendor",I122="NA"),"--",C122*I122) -> 247710.3973 | K122: =VLOOKUP(res_pipe_diam,ss_pipe_cost_cl,IF(ss_cat="large",4,5)) -> 40 | L122: 0 | M122: Residuals Piping - Stainless Steel | N122: 0 | O122: 0 | P122: 0 | Q122: 0 | R122: 0 | S122: 0 | T122: 0 | U122: 0 | V122: 0 | W122: 0 | X122: 0
A123: 3.3.1 | B123: Steel | C123: =res_pipe_length -> 5080 | D123: lf | E123: =res_pipe_diam -> 1.5 | F123: in. diam | G123: =IF(curve=1,res_pipe_diam,VLOOKUP(res_pipe_diam,st_pipe_cost_cl,2)) -> 1.5 | H123: in. diam | I123: =IF(curve=1,st_pipe_eq_res,VLOOKUP(res_pipe_diam,st_pipe_cost_cl,3)) -> 25.18777166 | J123: =IF(OR(I123="contact vendor",I123="NA"),"--",C123*I123) -> 127953.88 | K123: =VLOOKUP(res_pipe_diam,st_pipe_cost_cl,IF(ss_cat="large",4,5)) -> 33 | L123: 0 | M123: Residuals Piping - Steel | N123: 3 | O123: 3 | P123: 1 | Q123: 3 | R123: 3 | S123: 1 | T123: 3 | U123: 3 | V123: 1 | W123: 0 | X123: 0
A124: 3.3.2 | B124: Excavation | C124: =res_trench_vol -> 4166.593738 | D124: cy | E124: NA | G124: NA | I124: =IF(C124=0,"NA",VLOOKUP(0,excavate_cost_cl,3)) -> 31.07454576 | J124: =IF(OR(I124="contact vendor",C124=0),"--",C124*I124) -> 129475.0078 | K124: =IF(I124="NA","N/A",IF(L120=1,K120,IF(L121=1,K121,IF(L122=1,K122,IF(L123=1,K123,"N/A"))))) -> 17 | L124: 1 | M124: Residuals Piping - Excavation | N124: 1 | O124: 1 | P124: 1 | Q124: 1 | R124: 1 | S124: 1 | T124: 1 | U124: 1 | V124: 1 | W124: 1 | X124: 7616.176927
A125: 3.3.3 | B125: Bedding | C125: =res_pipe_bedding_vol -> 130.4383012 | D125: cy | E125: NA | G125: NA | I125: =IF(C125=0,"NA",VLOOKUP(0,bedding_cost_cl,3)) -> 56.00739499 | J125: =IF(OR(I125="contact vendor",C125=0),"--",C125*I125) -> 7305.509457 | K125: =IF(I125="NA","N/A",IF(L120=1,K120,IF(L121=1,K121,IF(L122=1,K122,IF(L123=1,K123,"N/A"))))) -> 17 | L125: 1 | M125: Residuals Piping - Bedding | N125: 1 | O125: 1 | P125: 1 | Q125: 1 | R125: 1 | S125: 1 | T125: 1 | U125: 1 | V125: 1 | W125: 1 | X125: 429.7358504
A126: 3.3.4 | B126: Backfill and Compaction | C126: =res_trench_vol -> 4166.593738 | D126: cy | E126: NA | G126: NA | I126: =IF(C126=0,"NA",VLOOKUP(0,backfill_cost_cl,3)) -> 14.40625995 | J126: =IF(OR(I126="contact vendor",C126=0),"--",C126*I126) -> 60025.03248 | K126: =IF(I126="NA","N/A",IF(L120=1,K120,IF(L121=1,K121,IF(L122=1,K122,IF(L123=1,K123,"N/A"))))) -> 17 | L126: 1 | M126: Residuals Piping - Backfill and Compaction | N126: 1 | O126: 1 | P126: 1 | Q126: 1 | R126: 1 | S126: 1 | T126: 1 | U126: 1 | V126: 1 | W126: 1 | X126: 3530.884264
A127: 3.3.5 | B127: Thrust Blocks | C127: =res_block_vol -> 12.14414948 | D127: cy | E127: NA | G127: NA | I127: =IF(C127=0,"NA",VLOOKUP(0,conc_basin_cost_cl,3)) -> 601.2651172 | J127: =IF(OR(I127="contact vendor",C127=0),"--",C127*I127) -> 7301.853462 | K127: =IF(I127="NA","N/A",IF(L120=1,K120,IF(L121=1,K121,IF(L122=1,K122,IF(L123=1,K123,"N/A"))))) -> 17 | L127: 1 | M127: Residuals Piping - Thrust Blocks | N127: 1 | O127: 1 | P127: 1 | Q127: 1 | R127: 1 | S127: 1 | T127: 1 | U127: 1 | V127: 1 | W127: 1 | X127: 429.5207919
A128: 3.4 | B128: Bypass Piping | W128: 0 | X128: 0
A129: 3.4.1 | B129: CPVC | C129: =bp_pipe_length -> 0 | D129: lf | E129: =IF(C129=0,"NA",bp_pipe_diam) -> NA | F129: =IF(C129=0,"","in. diam") ->  | G129: =IF(C129=0,"NA",IF(curve=1,bp_pipe_diam,VLOOKUP(bp_pipe_diam,cpvc_pipe_cost_cl,2))) -> NA | H129: =IF(C129=0,"","in. diam") ->  | I129: =IF(C129=0,"NA",IF(curve=1,cpvc_pipe_eq_bp,VLOOKUP(bp_pipe_diam,cpvc_pipe_cost_cl,3))) -> NA | J129: =IF(OR(I129="contact vendor",I129="NA"),"--",C129*I129) -> -- | K129: =IF(C129=0,"NA",VLOOKUP(bp_pipe_diam,cpvc_pipe_cost_cl,IF(ss_cat="large",4,5))) -> NA | M129: =$B$128&" "&" - "&B129 -> Bypass Piping - CPVC | N129: 2 | O129: 1 | P129: 3 | Q129: 2 | R129: 1 | S129: 3 | T129: 2 | U129: 1 | V129: 3 | W129: 0 | X129: 0
A130: 3.4.1 | B130: PVC | C130: =bp_pipe_length -> 0 | D130: lf | E130: =IF(C130=0,"NA",bp_pipe_diam) -> NA | F130: =IF(C130=0,"","in. diam") ->  | G130: =IF(C130=0,"NA",IF(curve=1,bp_pipe_diam,VLOOKUP(bp_pipe_diam,pvc_pipe_cost_cl,2))) -> NA | H130: =IF(C130=0,"","in. diam") ->  | I130: =IF(C130=0,"NA",IF(curve=1,pvc_pipe_eq_bp,VLOOKUP(bp_pipe_diam,pvc_pipe_cost_cl,3))) -> NA | J130: =IF(OR(I130="contact vendor",I130="NA"),"--",C130*I130) -> -- | K130: =IF(C130=0,"NA",VLOOKUP(bp_pipe_diam,pvc_pipe_cost_cl,IF(ss_cat="large",4,5))) -> NA | M130: =$B$128&" "&" - "&B130 -> Bypass Piping - PVC | N130: 1 | O130: 2 | P130: 4 | Q130: 1 | R130: 2 | S130: 4 | T130: 1 | U130: 2 | V130: 4 | W130: 0 | X130: 0
A131: 3.4.1 | B131: Stainless Steel | C131: =bp_pipe_length -> 0 | D131: lf | E131: =IF(C131=0,"NA",bp_pipe_diam) -> NA | F131: =IF(C131=0,"","in. diam") ->  | G131: =IF(C131=0,"NA",IF(curve=1,bp_pipe_diam,VLOOKUP(bp_pipe_diam,ss_pipe_cost_cl,2))) -> NA | H131: =IF(C131=0,"","in. diam") ->  | I131: =IF(C131=0,"NA",IF(curve=1,ss_pipe_eq_bp,VLOOKUP(bp_pipe_diam,ss_pipe_cost_cl,3))) -> NA | J131: =IF(OR(I131="contact vendor",I131="NA"),"--",C131*I131) -> -- | K131: =IF(C131=0,"NA",VLOOKUP(bp_pipe_diam,ss_pipe_cost_cl,IF(ss_cat="large",4,5))) -> NA | M131: =$B$128&" "&" - "&B131 -> Bypass Piping - Stainless Steel | N131: 4 | O131: 4 | P131: 1 | Q131: 4 | R131: 4 | S131: 1 | T131: 4 | U131: 4 | V131: 1 | W131: 0 | X131: 0
A132: 3.4.1 | B132: Steel | C132: =bp_pipe_length -> 0 | D132: lf | E132: =IF(C132=0,"NA",bp_pipe_diam) -> NA | F132: =IF(C132=0,"","in. diam") ->  | G132: =IF(C132=0,"NA",IF(curve=1,bp_pipe_diam,VLOOKUP(bp_pipe_diam,st_pipe_cost_cl,2))) -> NA | H132: =IF(C132=0,"","in. diam") ->  | I132: =IF(C132=0,"NA",IF(curve=1,st_pipe_eq_bp,VLOOKUP(bp_pipe_diam,st_pipe_cost_cl,3))) -> NA | J132: =IF(OR(I132="contact vendor",I132="NA"),"--",C132*I132) -> -- | K132: =IF(C132=0,"NA",VLOOKUP(bp_pipe_diam,st_pipe_cost_cl,IF(ss_cat="large",4,5))) -> NA | M132: =$B$128&" "&" - "&B132 -> Bypass Piping - Steel | N132: 3 | O132: 3 | P132: 2 | Q132: 3 | R132: 3 | S132: 2 | T132: 3 | U132: 3 | V132: 2 | W132: =IF(ISERROR(K132*L132),0,IF(K132<1,0,L132)) -> 0 | X132: =IF(W132,J132/K132,0) -> 0
A133: 4 | B133: Valves | W133: 0 | X133: 0
A134: 4.1 | B134: Motor/Air Operated (on/off) | W134: 0 | X134: 0
A135: 4.1.1 | B135: Pretreatment acid - Polypropylene/PVC | C135: =tot_pretreat_acid_MOVs -> 4 | D135: units | E135: =IF(C135=0,"NA",pretreat_acid_valve_size) -> 0.5 | F135: =IF(C135=0,"","in. diam") -> in. diam | G135: =IF(C135=0,"NA",IF(curve=1,pretreat_acid_valve_size,VLOOKUP(pretreat_acid_valve_size,pp_mov_cost_cl,2))) -> 0.5 | H135: =IF(C135=0,"","in. diam") -> in. diam | I135: =IF(C135=0,"NA",IF(curve=1,pp_mov_eq_acid,VLOOKUP(pretreat_acid_valve_size,pp_mov_cost_cl,3))) -> 495.6549745 | J135: =IF(OR(I135="contact vendor",I135="NA"),"--",C135*I135) -> 1982.619898 | K135: =IF(C135=0,"NA",VLOOKUP(pretreat_acid_valve_size,pp_mov_cost_cl,IF(ss_cat="large",4,5))) -> 20 | L135: 1 | M135: =$B$134&" "&$B$133&" - "&B135 -> Motor/Air Operated (on/off) Valves - Pretreatment acid - Polypropylene/PVC | N135: 1 | O135: 2 | P135: 2 | Q135: 1 | R135: 2 | S135: 2 | T135: 1 | U135: 2 | V135: 2 | W135: 1 | X135: 99.13099489
A136: 4.1.1 | B136: Pretreatment acid - Stainless Steel | C136: =tot_pretreat_acid_MOVs -> 4 | D136: units | E136: =IF(C136=0,"NA",pretreat_acid_valve_size) -> 0.5 | F136: in. diam | G136: =IF(C136=0,"NA",IF(curve=1,pretreat_acid_valve_size,VLOOKUP(pretreat_acid_valve_size,ss_mov_cost_cl,2))) -> 0.5 | H136: in. diam | I136: =IF(C136=0,"NA",IF(curve=1,ss_mov_eq_acid,VLOOKUP(pretreat_acid_valve_size,ss_mov_cost_cl,3))) -> 416.3390585 | J136: 1665.356234 | K136: =IF(C136=0,"NA",VLOOKUP(pretreat_acid_valve_size,ss_mov_cost_cl,IF(ss_cat="large",4,5))) -> 20 | L136: 0 | M136: =$B$134&" "&$B$133&" - "&B136 -> Motor/Air Operated (on/off) Valves - Pretreatment acid - Stainless Steel | N136: 2 | O136: 1 | P136: 1 | Q136: 2 | R136: 1 | S136: 1 | T136: 2 | U136: 1 | V136: 1 | W136: 0 | X136: 0
A137: 4.1.2 | B137: Antiscalant - Polypropylene/PVC | C137: =tot_antiscalant_MOVs -> 4 | D137: units | E137: =IF(C137=0,"NA",antiscalant_valve_size) -> 0.5 | F137: in. diam | G137: =IF(C137=0,"NA",IF(curve=1,antiscalant_valve_size,VLOOKUP(antiscalant_valve_size,pp_mov_cost_cl,2))) -> 0.5 | H137: in. diam | I137: =IF(C137=0,"NA",IF(curve=1,pp_mov_eq_anti,VLOOKUP(antiscalant_valve_size,pp_mov_cost_cl,3))) -> 495.6549745 | J137: 1982.619898 | K137: =IF(C137=0,"NA",VLOOKUP(antiscalant_valve_size,pp_mov_cost_cl,IF(ss_cat="large",4,5))) -> 20 | L137: 1 | M137: Motor/Air Operated (on/off) Valves - Antiscalant - Polypropylene/PVC | N137: 1 | O137: 2 | P137: 2 | Q137: 1 | R137: 2 | S137: 2 | T137: 1 | U137: 2 | V137: 2 | W137: 1 | X137: 99.13099489
A138: 4.1.2 | B138: Antiscalant - Stainless Steel | C138: =tot_antiscalant_MOVs -> 4 | D138: units | E138: =IF(C138=0,"NA",antiscalant_valve_size) -> 0.5 | F138: in. diam | G138: =IF(C138=0,"NA",IF(curve=1,antiscalant_valve_size,VLOOKUP(antiscalant_valve_size,ss_mov_cost_cl,2))) -> 0.5 | H138: in. diam | I138: =IF(C138=0,"NA",IF(curve=1,ss_mov_eq_anti,VLOOKUP(antiscalant_valve_size,ss_mov_cost_cl,3))) -> 416.3390585 | J138: 1665.356234 | K138: =IF(C138=0,"NA",VLOOKUP(antiscalant_valve_size,ss_mov_cost_cl,IF(ss_cat="large",4,5))) -> 20 | L138: 0 | M138: Motor/Air Operated (on/off) Valves - Antiscalant - Stainless Steel | N138: 2 | O138: 1 | P138: 1 | Q138: 2 | R138: 1 | S138: 1 | T138: 2 | U138: 1 | V138: 1 | W138: 0 | X138: 0
A139: 4.1.3 | B139: Feed line - Polypropylene/PVC | C139: =tot_feed_MOVs -> 4 | D139: units | E139: =IF(C139=0,"NA",feed_valve_size) -> 1.5 | F139: in. diam | G139: =IF(C139=0,"NA",IF(curve=1,feed_valve_size,VLOOKUP(feed_valve_size,pp_mov_cost_cl,2))) -> 1.5 | H139: in. diam | I139: =IF(C139=0,"NA",IF(curve=1,pp_mov_eq_feed,VLOOKUP(feed_valve_size,pp_mov_cost_cl,3))) -> 613.1208175 | J139: 2452.48327 | K139: =IF(C139=0,"NA",VLOOKUP(feed_valve_size,pp_mov_cost_cl,IF(ss_cat="large",4,5))) -> 20 | L139: 1 | M139: Motor/Air Operated (on/off) Valves - Feed line - Polypropylene/PVC | N139: 1 | O139: 2 | P139: 3 | Q139: 1 | R139: 2 | S139: 3 | T139: 1 | U139: 2 | V139: 3 | W139: 1 | X139: 122.6241635
A140: 4.1.3 | B140: Feed line - Stainless Steel | C140: =tot_feed_MOVs -> 4 | D140: units | E140: =IF(C140=0,"NA",feed_valve_size) -> 1.5 | F140: in. diam | G140: =IF(C140=0,"NA",IF(curve=1,feed_valve_size,VLOOKUP(feed_valve_size,ss_mov_cost_cl,2))) -> 1.5 | H140: in. diam | I140: =IF(C140=0,"NA",IF(curve=1,ss_mov_eq_feed,VLOOKUP(feed_valve_size,ss_mov_cost_cl,3))) -> 963.2431708 | J140: 3852.972683 | K140: =IF(C140=0,"NA",VLOOKUP(feed_valve_size,ss_mov_cost_cl,IF(ss_cat="large",4,5))) -> 20 | L140: 0 | M140: Motor/Air Operated (on/off) Valves - Feed line - Stainless Steel | N140: 3 | O140: 3 | P140: 1 | Q140: 3 | R140: 3 | S140: 1 | T140: 3 | U140: 3 | V140: 1 | W140: 0 | X140: 0
A141: 4.1.3 | B141: Feed line - Cast Iron | C141: =tot_feed_MOVs -> 4 | D141: units | E141: =IF(C141=0,"NA",feed_valve_size) -> 1.5 | F141: in. diam | G141: =IF(C141=0,"NA",IF(curve=1,feed_valve_size,VLOOKUP(feed_valve_size,ci_mov_cost_cl,2))) -> 1.5 | H141: in. diam | I141: =IF(C141=0,"NA",IF(curve=1,ci_mov_eq_feed,VLOOKUP(feed_valve_size,ci_mov_cost_cl,3))) -> 1199.336347 | J141: 4797.345388 | K141: =IF(C141=0,"NA",VLOOKUP(feed_valve_size,ci_mov_cost_cl,IF(ss_cat="large",4,5))) -> 20 | L141: 0 | M141: Motor/Air Operated (on/off) Valves - Feed line - Cast Iron | N141: 2 | O141: 1 | P141: 2 | Q141: 2 | R141: 1 | S141: 2 | T141: 2 | U141: 1 | V141: 2 | W141: 0 | X141: 0
A142: 4.1.4 | B142: Concentrate control - Stainless Steel | C142: =tot_conc_MOVs -> 2 | D142: units | E142: =IF(C142=0,"NA",conc_valve_size) -> 1 | F142: in. diam | G142: =IF(C142=0,"NA",IF(curve=1,conc_valve_size,VLOOKUP(conc_valve_size,ss_mov_cost_cl,2))) -> 1 | H142: in. diam | I142: =IF(C142=0,"NA",IF(curve=1,ss_mov_eq_conc,VLOOKUP(conc_valve_size,ss_mov_cost_cl,3))) -> 670.5639332 | J142: 1341.127866 | K142: =IF(C142=0,"NA",VLOOKUP(conc_valve_size,ss_mov_cost_cl,IF(ss_cat="large",4,5))) -> 20 | L142: 0 | M142: Motor/Air Operated (on/off) Valves - Concentrate control - Stainless Steel | N142: 2 | O142: 1 | P142: 1 | Q142: 2 | R142: 1 | S142: 1 | T142: 2 | U142: 1 | V142: 1 | W142: 0 | X142: 0
A143: 4.1.4 | B143: Concentrate control - Cast Iron | C143: =tot_conc_MOVs -> 2 | D143: units | E143: =IF(C143=0,"NA",conc_valve_size) -> 1 | F143: =IF(C143=0,"","in. diam") -> in. diam | G143: =IF(C143=0,"NA",IF(curve=1,conc_valve_size,VLOOKUP(conc_valve_size,ci_mov_cost_cl,2))) -> 1 | H143: =IF(C143=0,"","in. diam") -> in. diam | I143: =IF(C143=0,"NA",IF(curve=1,ci_mov_eq_conc,VLOOKUP(conc_valve_size,ci_mov_cost_cl,3))) -> 1127.774093 | J143: 2255.548185 | K143: =IF(C143=0,"NA",VLOOKUP(conc_valve_size,ci_mov_cost_cl,IF(ss_cat="large",4,5))) -> 20 | L143: 1 | M143: =$B$134&" "&$B$133&" - "&B143 -> Motor/Air Operated (on/off) Valves - Concentrate control - Cast Iron | N143: 1 | O143: 2 | P143: 2 | Q143: 1 | R143: 2 | S143: 2 | T143: 1 | U143: 2 | V143: 2 | W143: 1 | X143: 112.7774093
A144: 4.1.4 | B144: Concentrate control - Polypropylene/PVC | C144: =tot_conc_MOVs -> 2 | D144: units | E144: =IF(C144=0,"NA",conc_valve_size) -> 1 | F144: =IF(C144=0,"","in. diam") -> in. diam | G144: =IF(C144=0,"NA",IF(curve=1,conc_valve_size,VLOOKUP(conc_valve_size,pp_mov_cost_cl,2))) -> 1 | H144: =IF(C144=0,"","in. diam") -> in. diam | I144: =IF(C144=0,"NA",IF(curve=1,pp_mov_eq_conc,VLOOKUP(conc_valve_size,pp_mov_cost_cl,3))) -> 551.2679776 | J144: 1102.535955 | K144: =IF(C144=0,"NA",VLOOKUP(conc_valve_size,pp_mov_cost_cl,IF(ss_cat="large",4,5))) -> 20 | L144: 0 | M144: =$B$134&" "&$B$133&" - "&B144 -> Motor/Air Operated (on/off) Valves - Concentrate control - Polypropylene/PVC | N144: 3 | O144: 3 | P144: 3 | Q144: 3 | R144: 3 | S144: 3 | T144: 3 | U144: 3 | V144: 3 | W144: 0 | X144: 0
A145: 4.1.5 | B145: Stage 2 boost - Polypropylene/PVC | C145: =tot_boost_2_MOVs -> 0 | D145: units | E145: =IF(C145=0,"NA",boost_valve_2_diam) -> NA | G145: =IF(C145=0,"NA",IF(curve=1,boost_valve_2_diam,VLOOKUP(boost_valve_2_diam,pp_mov_cost_cl,2))) -> NA | I145: =IF(C145=0,"NA",IF(curve=1,pp_mov_eq_b2,VLOOKUP(boost_valve_2_diam,pp_mov_cost_cl,3))) -> NA | J145: -- | K145: =IF(C145=0,"NA",VLOOKUP(boost_valve_2_diam,pp_mov_cost_cl,IF(ss_cat="large",4,5))) -> NA | M145: Motor/Air Operated (on/off) Valves - Stage 2 boost - Polypropylene/PVC | N145: 1 | O145: 1 | P145: 2 | Q145: 1 | R145: 1 | S145: 2 | T145: 1 | U145: 1 | V145: 2 | W145: 0 | X145: 0
A146: 4.1.5 | B146: Stage 2 boost - Stainless Steel | C146: =tot_boost_2_MOVs -> 0 | D146: units | E146: =IF(C146=0,"NA",boost_valve_2_diam) -> NA | G146: =IF(C146=0,"NA",IF(curve=1,boost_valve_2_diam,VLOOKUP(boost_valve_2_diam,ss_mov_cost_cl,2))) -> NA | I146: =IF(C146=0,"NA",IF(curve=1,ss_mov_eq_b2,VLOOKUP(boost_valve_2_diam,ss_mov_cost_cl,3))) -> NA | J146: -- | K146: =IF(C146=0,"NA",VLOOKUP(boost_valve_2_diam,ss_mov_cost_cl,IF(ss_cat="large",4,5))) -> NA | M146: Motor/Air Operated (on/off) Valves - Stage 2 boost - Stainless Steel | N146: 2 | O146: 2 | P146: 1 | Q146: 2 | R146: 2 | S146: 1 | T146: 2 | U146: 2 | V146: 1 | W146: 0 | X146: 0
A147: 4.1.6 | B147: Stage 3 boost - Polypropylene/PVC | C147: =tot_boost_3_MOVs -> 0 | D147: units | E147: =IF(C147=0,"NA",boost_valve_3_diam) -> NA | G147: =IF(C147=0,"NA",IF(curve=1,boost_valve_3_diam,VLOOKUP(boost_valve_3_diam,pp_mov_cost_cl,2))) -> NA | I147: =IF(C147=0,"NA",IF(curve=1,pp_mov_eq_b3,VLOOKUP(boost_valve_3_diam,pp_mov_cost_cl,3))) -> NA | J147: -- | K147: =IF(C147=0,"NA",VLOOKUP(boost_valve_3_diam,pp_mov_cost_cl,IF(ss_cat="large",4,5))) -> NA | M147: Motor/Air Operated (on/off) Valves - Stage 3 boost - Polypropylene/PVC | N147: 1 | O147: 1 | P147: 2 | Q147: 1 | R147: 1 | S147: 2 | T147: 1 | U147: 1 | V147: 2 | W147: 0 | X147: 0
A148: 4.1.6 | B148: Stage 3 boost - Stainless Steel | C148: =tot_boost_3_MOVs -> 0 | D148: units | E148: =IF(C148=0,"NA",boost_valve_3_diam) -> NA | G148: =IF(C148=0,"NA",IF(curve=1,boost_valve_3_diam,VLOOKUP(boost_valve_3_diam,ss_mov_cost_cl,2))) -> NA | I148: =IF(C148=0,"NA",IF(curve=1,ss_mov_eq_b3,VLOOKUP(boost_valve_3_diam,ss_mov_cost_cl,3))) -> NA | J148: -- | K148: =IF(C148=0,"NA",VLOOKUP(boost_valve_3_diam,ss_mov_cost_cl,IF(ss_cat="large",4,5))) -> NA | M148: Motor/Air Operated (on/off) Valves - Stage 3 boost - Stainless Steel | N148: 2 | O148: 2 | P148: 1 | Q148: 2 | R148: 2 | S148: 1 | T148: 2 | U148: 2 | V148: 1 | W148: 0 | X148: 0
A149: 4.1.7 | B149: Stage 1 throttle - Polypropylene/PVC | C149: =tot_perm_1_MOVs -> 0 | D149: units | E149: =IF(C149=0,"NA",perm_valve_1_diam) -> NA | G149: =IF(C149=0,"NA",IF(curve=1,perm_valve_1_diam,VLOOKUP(perm_valve_1_diam,pp_mov_cost_cl,2))) -> NA | I149: =IF(C149=0,"NA",IF(curve=1,pp_mov_eq_pt1,VLOOKUP(perm_valve_1_diam,pp_mov_cost_cl,3))) -> NA | J149: -- | K149: =IF(C149=0,"NA",VLOOKUP(perm_valve_1_diam,pp_mov_cost_cl,IF(ss_cat="large",4,5))) -> NA | M149: Motor/Air Operated (on/off) Valves - Stage 1 throttle - Polypropylene/PVC | N149: 1 | O149: 1 | P149: 2 | Q149: 1 | R149: 1 | S149: 2 | T149: 1 | U149: 1 | V149: 2 | W149: 0 | X149: 0
A150: 4.1.7 | B150: Stage 1 throttle - Stainless Steel | C150: =tot_perm_1_MOVs -> 0 | D150: units | E150: =IF(C150=0,"NA",perm_valve_1_diam) -> NA | G150: =IF(C150=0,"NA",IF(curve=1,perm_valve_1_diam,VLOOKUP(perm_valve_1_diam,ss_mov_cost_cl,2))) -> NA | I150: =IF(C150=0,"NA",IF(curve=1,ss_mov_eq_pt1,VLOOKUP(perm_valve_1_diam,ss_mov_cost_cl,3))) -> NA | J150: -- | K150: =IF(C150=0,"NA",VLOOKUP(perm_valve_1_diam,ss_mov_cost_cl,IF(ss_cat="large",4,5))) -> NA | M150: Motor/Air Operated (on/off) Valves - Stage 1 throttle - Stainless Steel | N150: 2 | O150: 2 | P150: 1 | Q150: 2 | R150: 2 | S150: 1 | T150: 2 | U150: 2 | V150: 1 | W150: 0 | X150: 0
A151: 4.1.8 | B151: Stage 2 throttle - Polypropylene/PVC | C151: =tot_perm_2_MOVs -> 0 | D151: units | E151: =IF(C151=0,"NA",perm_valve_2_diam) -> NA | G151: =IF(C151=0,"NA",IF(curve=1,perm_valve_2_diam,VLOOKUP(perm_valve_2_diam,pp_mov_cost_cl,2))) -> NA | I151: =IF(C151=0,"NA",IF(curve=1,pp_mov_eq_pt2,VLOOKUP(perm_valve_2_diam,pp_mov_cost_cl,3))) -> NA | J151: -- | K151: =IF(C151=0,"NA",VLOOKUP(perm_valve_2_diam,pp_mov_cost_cl,IF(ss_cat="large",4,5))) -> NA | M151: Motor/Air Operated (on/off) Valves - Stage 2 throttle - Polypropylene/PVC | N151: 1 | O151: 1 | P151: 2 | Q151: 1 | R151: 1 | S151: 2 | T151: 1 | U151: 1 | V151: 2 | W151: 0 | X151: 0
A152: 4.1.8 | B152: Stage 2 throttle - Stainless Steel | C152: =tot_perm_2_MOVs -> 0 | D152: units | E152: =IF(C152=0,"NA",perm_valve_2_diam) -> NA | G152: =IF(C152=0,"NA",IF(curve=1,perm_valve_2_diam,VLOOKUP(perm_valve_2_diam,ss_mov_cost_cl,2))) -> NA | I152: =IF(C152=0,"NA",IF(curve=1,ss_mov_eq_pt2,VLOOKUP(perm_valve_2_diam,ss_mov_cost_cl,3))) -> NA | J152: -- | K152: =IF(C152=0,"NA",VLOOKUP(perm_valve_2_diam,ss_mov_cost_cl,IF(ss_cat="large",4,5))) -> NA | M152: Motor/Air Operated (on/off) Valves - Stage 2 throttle - Stainless Steel | N152: 2 | O152: 2 | P152: 1 | Q152: 2 | R152: 2 | S152: 1 | T152: 2 | U152: 2 | V152: 1 | W152: 0 | X152: 0
A153: 4.1.9 | B153: Stage 3 throttle - Polypropylene/PVC | C153: =tot_perm_3_MOVs -> 0 | D153: units | E153: =IF(C153=0,"NA",perm_valve_3_diam) -> NA | G153: =IF(C153=0,"NA",IF(curve=1,perm_valve_3_diam,VLOOKUP(perm_valve_3_diam,pp_mov_cost_cl,2))) -> NA | I153: =IF(C153=0,"NA",IF(curve=1,pp_mov_eq_pt3,VLOOKUP(perm_valve_3_diam,pp_mov_cost_cl,3))) -> NA | J153: -- | K153: =IF(C153=0,"NA",VLOOKUP(perm_valve_3_diam,pp_mov_cost_cl,IF(ss_cat="large",4,5))) -> NA | M153: Motor/Air Operated (on/off) Valves - Stage 3 throttle - Polypropylene/PVC | N153: 1 | O153: 1 | P153: 2 | Q153: 1 | R153: 1 | S153: 2 | T153: 1 | U153: 1 | V153: 2 | W153: 0 | X153: 0
A154: 4.1.9 | B154: Stage 3 throttle - Stainless Steel | C154: =tot_perm_3_MOVs -> 0 | D154: units | E154: =IF(C154=0,"NA",perm_valve_3_diam) -> NA | G154: =IF(C154=0,"NA",IF(curve=1,perm_valve_3_diam,VLOOKUP(perm_valve_3_diam,ss_mov_cost_cl,2))) -> NA | I154: =IF(C154=0,"NA",IF(curve=1,ss_mov_eq_pt3,VLOOKUP(perm_valve_3_diam,ss_mov_cost_cl,3))) -> NA | J154: -- | K154: =IF(C154=0,"NA",VLOOKUP(perm_valve_3_diam,ss_mov_cost_cl,IF(ss_cat="large",4,5))) -> NA | M154: Motor/Air Operated (on/off) Valves - Stage 3 throttle - Stainless Steel | N154: 2 | O154: 2 | P154: 1 | Q154: 2 | R154: 2 | S154: 1 | T154: 2 | U154: 2 | V154: 1 | W154: 0 | X154: 0
A155: 4.1.10 | B155: Cleaning - Polypropylene/PVC | C155: =tot_clean_MOVs -> 24 | D155: units | E155: =IF(C155=0,"NA",clean_valve_size) -> 1.5 | F155: in. diam | G155: =IF(C155=0,"NA",IF(curve=1,clean_valve_size,VLOOKUP(clean_valve_size,pp_mov_cost_cl,2))) -> 1.5 | H155: in. diam | I155: =IF(C155=0,"NA",IF(curve=1,pp_mov_eq_clean,VLOOKUP(clean_valve_size,pp_mov_cost_cl,3))) -> 613.1208175 | J155: 14714.89962 | K155: =IF(C155=0,"NA",VLOOKUP(clean_valve_size,pp_mov_cost_cl,IF(ss_cat="large",4,5))) -> 20 | L155: 1 | M155: Motor/Air Operated (on/off) Valves - Cleaning - Polypropylene/PVC | N155: 1 | O155: 2 | P155: 2 | Q155: 1 | R155: 2 | S155: 2 | T155: 1 | U155: 2 | V155: 2 | W155: 1 | X155: 735.744981
A156: 4.1.10 | B156: Cleaning - Stainless Steel | C156: =tot_clean_MOVs -> 24 | D156: units | E156: =IF(C156=0,"NA",clean_valve_size) -> 1.5 | F156: in. diam | G156: =IF(C156=0,"NA",IF(curve=1,clean_valve_size,VLOOKUP(clean_valve_size,ss_mov_cost_cl,2))) -> 1.5 | H156: in. diam | I156: =IF(C156=0,"NA",IF(curve=1,ss_mov_eq_clean,VLOOKUP(clean_valve_size,ss_mov_cost_cl,3))) -> 963.2431708 | J156: 23117.8361 | K156: =IF(C156=0,"NA",VLOOKUP(clean_valve_size,ss_mov_cost_cl,IF(ss_cat="large",4,5))) -> 20 | L156: 0 | M156: Motor/Air Operated (on/off) Valves - Cleaning - Stainless Steel | N156: 2 | O156: 1 | P156: 1 | Q156: 2 | R156: 1 | S156: 1 | T156: 2 | U156: 1 | V156: 1 | W156: 0 | X156: 0
A157: 4.1.11 | B157: Bypass - Polypropylene/PVC | C157: =tot_bp_MOVs -> 0 | D157: units | E157: =IF(C157=0,"NA",bypass_valve_size) -> NA | G157: =IF(C157=0,"NA",IF(curve=1,bypass_valve_size,VLOOKUP(bypass_valve_size,pp_mov_cost_cl,2))) -> NA | I157: =IF(C157=0,"NA",IF(curve=1,pp_mov_eq_bp,VLOOKUP(bypass_valve_size,pp_mov_cost_cl,3))) -> NA | J157: -- | K157: =IF(C157=0,"NA",VLOOKUP(bypass_valve_size,pp_mov_cost_cl,IF(ss_cat="large",4,5))) -> NA | M157: Motor/Air Operated (on/off) Valves - Bypass - Polypropylene/PVC | N157: 1 | O157: 2 | P157: 3 | Q157: 1 | R157: 2 | S157: 3 | T157: 1 | U157: 2 | V157: 3 | W157: 0 | X157: 0
A158: 4.1.11 | B158: Bypass - Stainless Steel | C158: =tot_bp_MOVs -> 0 | D158: units | E158: =IF(C158=0,"NA",bypass_valve_size) -> NA | G158: =IF(C158=0,"NA",IF(curve=1,bypass_valve_size,VLOOKUP(bypass_valve_size,ss_mov_cost_cl,2))) -> NA | I158: =IF(C158=0,"NA",IF(curve=1,ss_mov_eq_bp,VLOOKUP(bypass_valve_size,ss_mov_cost_cl,3))) -> NA | J158: -- | K158: =IF(C158=0,"NA",VLOOKUP(bypass_valve_size,ss_mov_cost_cl,IF(ss_cat="large",4,5))) -> NA | M158: Motor/Air Operated (on/off) Valves - Bypass - Stainless Steel | N158: 3 | O158: 3 | P158: 1 | Q158: 3 | R158: 3 | S158: 1 | T158: 3 | U158: 3 | V158: 1 | W158: 0 | X158: 0
A159: 4.1.11 | B159: Bypass - Cast Iron | C159: =tot_bp_MOVs -> 0 | D159: units | E159: =IF(C159=0,"NA",bypass_valve_size) -> NA | G159: =IF(C159=0,"NA",IF(curve=1,bypass_valve_size,VLOOKUP(bypass_valve_size,ci_mov_cost_cl,2))) -> NA | I159: =IF(C159=0,"NA",IF(curve=1,ci_mov_eq_bp,VLOOKUP(bypass_valve_size,ci_mov_cost_cl,3))) -> NA | J159: -- | K159: =IF(C159=0,"NA",VLOOKUP(bypass_valve_size,ci_mov_cost_cl,IF(ss_cat="large",4,5))) -> NA | M159: Motor/Air Operated (on/off) Valves - Bypass - Cast Iron | N159: 2 | O159: 1 | P159: 2 | Q159: 2 | R159: 1 | S159: 2 | T159: 2 | U159: 1 | V159: 2 | W159: 0 | X159: 0
A160: 4.1.12 | B160: Residuals - Polypropylene/PVC | C160: =total_res_MOVs -> 0 | D160: units | E160: =IF(C160=0,"NA",res_valve_size) -> NA | F160: =IF(C160=0,"","in. diam") ->  | G160: =IF(C160=0,"NA",IF(curve=1,res_valve_size,VLOOKUP(res_valve_size,pp_mov_cost_cl,2))) -> NA | H160: =IF(C160=0,"","in. diam") ->  | I160: =IF(C160=0,"NA",IF(curve=1,pp_mov_eq_res,VLOOKUP(res_valve_size,pp_mov_cost_cl,3))) -> NA | J160: =IF(OR(I160="contact vendor",I160="NA"),"--",C160*I160) -> -- | K160: =IF(C160=0,"NA",VLOOKUP(res_valve_size,pp_mov_cost_cl,IF(ss_cat="large",4,5))) -> NA | M160: Motor/Air Operated (on/off) Valves - Residuals - Polypropylene/PVC | N160: 1 | O160: 2 | P160: 3 | Q160: 1 | R160: 2 | S160: 3 | T160: 1 | U160: 2 | V160: 3 | W160: 0 | X160: 0
A161: 4.1.12 | B161: Residuals - Stainless Steel | C161: =total_res_MOVs -> 0 | D161: units | E161: =IF(C161=0,"NA",res_valve_size) -> NA | F161: =IF(C161=0,"","in. diam") ->  | G161: =IF(C161=0,"NA",IF(curve=1,res_valve_size,VLOOKUP(res_valve_size,ss_mov_cost_cl,2))) -> NA | H161: =IF(C161=0,"","in. diam") ->  | I161: =IF(C161=0,"NA",IF(curve=1,ss_mov_eq_res,VLOOKUP(res_valve_size,ss_mov_cost_cl,3))) -> NA | J161: =IF(OR(I161="contact vendor",I161="NA"),"--",C161*I161) -> -- | K161: =IF(C161=0,"NA",VLOOKUP(res_valve_size,ss_mov_cost_cl,IF(ss_cat="large",4,5))) -> NA | M161: Motor/Air Operated (on/off) Valves - Residuals - Stainless Steel | N161: 3 | O161: 3 | P161: 1 | Q161: 3 | R161: 3 | S161: 1 | T161: 3 | U161: 3 | V161: 1 | W161: 0 | X161: 0
A162: 4.1.12 | B162: Residuals - Cast Iron | C162: =total_res_MOVs -> 0 | D162: units | E162: =IF(C162=0,"NA",res_valve_size) -> NA | F162: =IF(C162=0,"","in. diam") ->  | G162: =IF(C162=0,"NA",IF(curve=1,res_valve_size,VLOOKUP(res_valve_size,ci_mov_cost_cl,2))) -> NA | H162: =IF(C162=0,"","in. diam") ->  | I162: =IF(C162=0,"NA",IF(curve=1,ci_mov_eq_res,VLOOKUP(res_valve_size,ci_mov_cost_cl,3))) -> NA | J162: =IF(OR(I162="contact vendor",I162="NA"),"--",C162*I162) -> -- | K162: =IF(C162=0,"NA",VLOOKUP(res_valve_size,ci_mov_cost_cl,IF(ss_cat="large",4,5))) -> NA | M162: Motor/Air Operated (on/off) Valves - Residuals - Cast Iron | N162: 2 | O162: 1 | P162: 2 | Q162: 2 | R162: 1 | S162: 2 | T162: 2 | U162: 1 | V162: 2 | W162: 0 | X162: 0
A163: 4.2 | B163: Manual | W163: 0 | X163: 0
A164: 4.2.1 | B164: Inlet and outlet - Polypropylene/PVC | C164: =tot_man_valves -> 2 | D164: units | E164: =IF(C164=0,"NA",in_valve_size) -> 2 | F164: =IF(C164=0,"","in. diam") -> in. diam | G164: =IF(C164=0,"NA",IF(curve=1,in_valve_size,VLOOKUP(in_valve_size,pp_man_cost_cl,2))) -> 2 | H164: =IF(C164=0,"","in. diam") -> in. diam | I164: =IF(C164=0,"NA",IF(curve=1,pp_man_eq,VLOOKUP(in_valve_size,pp_man_cost_cl,3))) -> 292.2083137 | J164: =IF(OR(I164="contact vendor",I164="NA"),"--",C164*I164) -> 584.4166274 | K164: =IF(C164=0,"NA",VLOOKUP(in_valve_size,pp_man_cost_cl,IF(ss_cat="large",4,5))) -> 20 | L164: 1 | M164: =$B$163&" "&$B$133&" - "&B164 -> Manual Valves - Inlet and outlet - Polypropylene/PVC | N164: 1 | O164: 2 | P164: 3 | Q164: 1 | R164: 2 | S164: 3 | T164: 1 | U164: 2 | V164: 3 | W164: =IF(ISERROR(K164*L164),0,IF(K164<1,0,L164)) -> 1 | X164: =IF(W164,J164/K164,0) -> 29.22083137
A165: 4.2.1 | B165: Inlet and outlet - Stainless Steel | C165: =tot_man_valves -> 2 | D165: units | E165: =IF(C165=0,"NA",in_valve_size) -> 2 | F165: =IF(C165=0,"","in. diam") -> in. diam | G165: =IF(C165=0,"NA",IF(curve=1,in_valve_size,VLOOKUP(in_valve_size,ss_man_cost_cl,2))) -> 2 | H165: =IF(C165=0,"","in. diam") -> in. diam | I165: =IF(C165=0,"NA",IF(curve=1,ss_man_eq,VLOOKUP(in_valve_size,ss_man_cost_cl,3))) -> 717.486669 | J165: =IF(OR(I165="contact vendor",I165="NA"),"--",C165*I165) -> 1434.973338 | K165: =IF(C165=0,"NA",VLOOKUP(in_valve_size,ss_man_cost_cl,IF(ss_cat="large",4,5))) -> 20 | L165: 0 | M165: Manual Valves - Inlet and outlet - Stainless Steel | N165: 3 | O165: 3 | P165: 1 | Q165: 3 | R165: 3 | S165: 1 | T165: 3 | U165: 3 | V165: 1 | W165: 0 | X165: 0
A166: 4.2.1 | B166: Inlet and outlet - Cast Iron | C166: =tot_man_valves -> 2 | D166: units | E166: =IF(C166=0,"NA",in_valve_size) -> 2 | F166: =IF(C166=0,"","in. diam") -> in. diam | G166: =IF(C166=0,"NA",IF(curve=1,in_valve_size,VLOOKUP(in_valve_size,ci_bfv_cost_cl,2))) -> 2 | H166: =IF(C166=0,"","in. diam") -> in. diam | I166: =IF(C166=0,"NA",IF(curve=1,ci_bfv_eq,VLOOKUP(in_valve_size,ci_bfv_cost_cl,3))) -> 326.0018586 | J166: =IF(OR(I166="contact vendor",I166="NA"),"--",C166*I166) -> 652.0037173 | K166: =IF(C166=0,"NA",VLOOKUP(in_valve_size,ci_bfv_cost_cl,IF(ss_cat="large",4,5))) -> 20 | L166: 0 | M166: Manual Valves - Inlet and outlet - Cast Iron | N166: 2 | O166: 1 | P166: 2 | Q166: 2 | R166: 1 | S166: 2 | T166: 2 | U166: 1 | V166: 2 | W166: 0 | X166: 0
A167: 4.2.2 | B167: Pretreatment acid - Polypropylene/PVC | C167: =tot_pretreat_acid_man -> 0 | D167: units | E167: =IF(C167=0,"NA",pretreat_acid_valve_size) -> NA | F167: =IF(C167=0,"","in. diam") ->  | G167: =IF(C167=0,"NA",IF(curve=1,pretreat_acid_valve_size,VLOOKUP(pretreat_acid_valve_size,pp_man_cost_cl,2))) -> NA | H167: =IF(C167=0,"","in. diam") ->  | I167: =IF(C167=0,"NA",IF(curve=1,pp_man_eq_acid,VLOOKUP(pretreat_acid_valve_size,pp_man_cost_cl,3))) -> NA | J167: =IF(OR(I167="contact vendor",I167="NA"),"--",C167*I167) -> -- | K167: =IF(C167=0,"NA",VLOOKUP(pretreat_acid_valve_size,pp_man_cost_cl,IF(ss_cat="large",4,5))) -> NA | M167: Manual Valves - Pretreatment acid - Polypropylene/PVC | N167: 1 | O167: 2 | P167: 2 | Q167: 1 | R167: 2 | S167: 2 | T167: 1 | U167: 2 | V167: 2 | W167: 0 | X167: 0
A168: 4.2.2 | B168: Pretreatment acid - Stainless Steel | C168: =tot_pretreat_acid_man -> 0 | D168: units | E168: =IF(C168=0,"NA",pretreat_acid_valve_size) -> NA | G168: =IF(C168=0,"NA",IF(curve=1,pretreat_acid_valve_size,VLOOKUP(pretreat_acid_valve_size,ss_man_cost_cl,2))) -> NA | I168: =IF(C168=0,"NA",IF(curve=1,ss_man_eq_acid,VLOOKUP(pretreat_acid_valve_size,ss_man_cost_cl,3))) -> NA | J168: -- | K168: =IF(C168=0,"NA",VLOOKUP(pretreat_acid_valve_size,ss_man_cost_cl,IF(ss_cat="large",4,5))) -> NA | M168: Manual Valves - Pretreatment acid - Stainless Steel | N168: 2 | O168: 1 | P168: 1 | Q168: 2 | R168: 1 | S168: 1 | T168: 2 | U168: 1 | V168: 1 | W168: 0 | X168: 0
A169: 4.2.3 | B169: Antiscalant - Polypropylene/PVC | C169: =tot_antiscalant_man -> 0 | D169: units | E169: =IF(C169=0,"NA",antiscalant_valve_size) -> NA | G169: =IF(C169=0,"NA",IF(curve=1,antiscalant_valve_size,VLOOKUP(antiscalant_valve_size,pp_man_cost_cl,2))) -> NA | I169: =IF(C169=0,"NA",IF(curve=1,pp_man_eq_anti,VLOOKUP(antiscalant_valve_size,pp_man_cost_cl,3))) -> NA | J169: -- | K169: =IF(C169=0,"NA",VLOOKUP(antiscalant_valve_size,pp_man_cost_cl,IF(ss_cat="large",4,5))) -> NA | M169: Manual Valves - Antiscalant - Polypropylene/PVC | N169: 1 | O169: 2 | P169: 2 | Q169: 1 | R169: 2 | S169: 2 | T169: 1 | U169: 2 | V169: 2 | W169: 0 | X169: 0
A170: 4.2.3 | B170: Antiscalant - Stainless Steel | C170: =tot_antiscalant_man -> 0 | D170: units | E170: =IF(C170=0,"NA",antiscalant_valve_size) -> NA | G170: =IF(C170=0,"NA",IF(curve=1,antiscalant_valve_size,VLOOKUP(antiscalant_valve_size,ss_man_cost_cl,2))) -> NA | I170: =IF(C170=0,"NA",IF(curve=1,ss_man_eq_anti,VLOOKUP(antiscalant_valve_size,ss_man_cost_cl,3))) -> NA | J170: -- | K170: =IF(C170=0,"NA",VLOOKUP(antiscalant_valve_size,ss_man_cost_cl,IF(ss_cat="large",4,5))) -> NA | M170: Manual Valves - Antiscalant - Stainless Steel | N170: 2 | O170: 1 | P170: 1 | Q170: 2 | R170: 1 | S170: 1 | T170: 2 | U170: 1 | V170: 1 | W170: 0 | X170: 0
A171: 4.2.4 | B171: Feed line - Polypropylene/PVC | C171: =tot_feed_man -> 0 | D171: units | E171: =IF(C171=0,"NA",feed_valve_size) -> NA | G171: =IF(C171=0,"NA",IF(curve=1,feed_valve_size,VLOOKUP(feed_valve_size,pp_man_cost_cl,2))) -> NA | I171: =IF(C171=0,"NA",IF(curve=1,pp_man_eq_feed,VLOOKUP(feed_valve_size,pp_man_cost_cl,3))) -> NA | J171: -- | K171: =IF(C171=0,"NA",VLOOKUP(feed_valve_size,pp_man_cost_cl,IF(ss_cat="large",4,5))) -> NA | M171: Manual Valves - Feed line - Polypropylene/PVC | N171: 1 | O171: 2 | P171: 3 | Q171: 1 | R171: 2 | S171: 3 | T171: 1 | U171: 2 | V171: 3 | W171: 0 | X171: 0
A172: 4.2.4 | B172: Feed line - Stainless Steel | C172: =tot_feed_man -> 0 | D172: units | E172: =IF(C172=0,"NA",feed_valve_size) -> NA | G172: =IF(C172=0,"NA",IF(curve=1,feed_valve_size,VLOOKUP(feed_valve_size,ss_man_cost_cl,2))) -> NA | I172: =IF(C172=0,"NA",IF(curve=1,ss_man_eq_feed,VLOOKUP(feed_valve_size,ss_man_cost_cl,3))) -> NA | J172: -- | K172: =IF(C172=0,"NA",VLOOKUP(feed_valve_size,ss_man_cost_cl,IF(ss_cat="large",4,5))) -> NA | M172: Manual Valves - Feed line - Stainless Steel | N172: 3 | O172: 3 | P172: 1 | Q172: 3 | R172: 3 | S172: 1 | T172: 3 | U172: 3 | V172: 1 | W172: 0 | X172: 0
A173: 4.2.4 | B173: Feed line - Cast Iron | C173: =tot_feed_man -> 0 | D173: units | E173: =IF(C173=0,"NA",feed_valve_size) -> NA | G173: =IF(C173=0,"NA",IF(curve=1,feed_valve_size,VLOOKUP(feed_valve_size,ci_bfv_cost_cl,2))) -> NA | I173: =IF(C173=0,"NA",IF(curve=1,ci_bfv_eq_feed,VLOOKUP(feed_valve_size,ci_bfv_cost_cl,3))) -> NA | J173: -- | K173: =IF(C173=0,"NA",VLOOKUP(feed_valve_size,ci_bfv_cost_cl,IF(ss_cat="large",4,5))) -> NA | M173: Manual Valves - Feed line - Cast Iron | N173: 2 | O173: 1 | P173: 2 | Q173: 2 | R173: 1 | S173: 2 | T173: 2 | U173: 1 | V173: 2 | W173: 0 | X173: 0
A174: 4.2.5 | B174: Concentrate control - Stainless Steel | C174: =tot_conc_man -> 0 | D174: units | E174: =IF(C174=0,"NA",conc_valve_size) -> NA | G174: =IF(C174=0,"NA",IF(curve=1,conc_valve_size,VLOOKUP(conc_valve_size,ss_mov_cost_cl,2))) -> NA | I174: =IF(C174=0,"NA",IF(curve=1,ss_man_eq_conc,VLOOKUP(conc_valve_size,ss_man_cost_cl,3))) -> NA | J174: -- | K174: =IF(C174=0,"NA",VLOOKUP(conc_valve_size,ss_man_cost_cl,IF(ss_cat="large",4,5))) -> NA | M174: Manual Valves - Concentrate control - Stainless Steel | N174: 2 | O174: 2 | P174: 1 | Q174: 2 | R174: 2 | S174: 1 | T174: 2 | U174: 2 | V174: 1 | W174: 0 | X174: 0
A175: 4.2.5 | B175: Concentrate control - Cast Iron | C175: =tot_conc_man -> 0 | D175: units | E175: =IF(C175=0,"NA",conc_valve_size) -> NA | G175: =IF(C175=0,"NA",IF(curve=1,conc_valve_size,VLOOKUP(conc_valve_size,ci_mov_cost_cl,2))) -> NA | I175: =IF(C175=0,"NA",IF(curve=1,ci_bfv_eq_conc,VLOOKUP(conc_valve_size,ci_bfv_cost_cl,3))) -> NA | J175: -- | K175: =IF(C175=0,"NA",VLOOKUP(conc_valve_size,ci_bfv_cost_cl,IF(ss_cat="large",4,5))) -> NA | M175: Manual Valves - Concentrate control - Cast Iron | N175: 1 | O175: 1 | P175: 2 | Q175: 1 | R175: 1 | S175: 2 | T175: 1 | U175: 1 | V175: 2 | W175: 0 | X175: 0
A176: 4.2.6 | B176: Stage 2 boost - Polypropylene/PVC | C176: =tot_boost_2_man -> 0 | D176: units | E176: =IF(C176=0,"NA",boost_valve_2_diam) -> NA | G176: =IF(C176=0,"NA",IF(curve=1,boost_valve_2_diam,VLOOKUP(boost_valve_2_diam,pp_man_cost_cl,2))) -> NA | I176: =IF(C176=0,"NA",IF(curve=1,pp_man_eq_b2,VLOOKUP(boost_valve_2_diam,pp_man_cost_cl,3))) -> NA | J176: -- | K176: =IF(C176=0,"NA",VLOOKUP(boost_valve_2_diam,pp_man_cost_cl,IF(ss_cat="large",4,5))) -> NA | M176: Manual Valves - Stage 2 boost - Polypropylene/PVC | N176: 1 | O176: 1 | P176: 2 | Q176: 1 | R176: 1 | S176: 2 | T176: 1 | U176: 1 | V176: 2 | W176: 0 | X176: 0
A177: 4.2.6 | B177: Stage 2 boost - Stainless Steel | C177: =tot_boost_2_man -> 0 | D177: units | E177: =IF(C177=0,"NA",boost_valve_2_diam) -> NA | G177: =IF(C177=0,"NA",IF(curve=1,boost_valve_2_diam,VLOOKUP(boost_valve_2_diam,ss_man_cost_cl,2))) -> NA | I177: =IF(C177=0,"NA",IF(curve=1,ss_man_eq_b2,VLOOKUP(boost_valve_2_diam,ss_man_cost_cl,3))) -> NA | J177: -- | K177: =IF(C177=0,"NA",VLOOKUP(boost_valve_2_diam,ss_man_cost_cl,IF(ss_cat="large",4,5))) -> NA | M177: Manual Valves - Stage 2 boost - Stainless Steel | N177: 2 | O177: 2 | P177: 1 | Q177: 2 | R177: 2 | S177: 1 | T177: 2 | U177: 2 | V177: 1 | W177: 0 | X177: 0
A178: 4.2.7 | B178: Stage 3 boost - Polypropylene/PVC | C178: =tot_boost_3_man -> 0 | D178: units | E178: =IF(C178=0,"NA",boost_valve_3_diam) -> NA | G178: =IF(C178=0,"NA",IF(curve=1,boost_valve_3_diam,VLOOKUP(boost_valve_3_diam,pp_man_cost_cl,2))) -> NA | I178: =IF(C178=0,"NA",IF(curve=1,pp_man_eq_b3,VLOOKUP(boost_valve_3_diam,pp_man_cost_cl,3))) -> NA | J178: -- | K178: =IF(C178=0,"NA",VLOOKUP(boost_valve_3_diam,pp_man_cost_cl,IF(ss_cat="large",4,5))) -> NA | M178: Manual Valves - Stage 3 boost - Polypropylene/PVC | N178: 1 | O178: 1 | P178: 2 | Q178: 1 | R178: 1 | S178: 2 | T178: 1 | U178: 1 | V178: 2 | W178: 0 | X178: 0
A179: 4.2.7 | B179: Stage 3 boost - Stainless Steel | C179: =tot_boost_3_man -> 0 | D179: units | E179: =IF(C179=0,"NA",boost_valve_3_diam) -> NA | G179: =IF(C179=0,"NA",IF(curve=1,boost_valve_3_diam,VLOOKUP(boost_valve_3_diam,ss_man_cost_cl,2))) -> NA | I179: =IF(C179=0,"NA",IF(curve=1,ss_man_eq_b3,VLOOKUP(boost_valve_3_diam,ss_man_cost_cl,3))) -> NA | J179: -- | K179: =IF(C179=0,"NA",VLOOKUP(boost_valve_3_diam,ss_man_cost_cl,IF(ss_cat="large",4,5))) -> NA | M179: Manual Valves - Stage 3 boost - Stainless Steel | N179: 2 | O179: 2 | P179: 1 | Q179: 2 | R179: 2 | S179: 1 | T179: 2 | U179: 2 | V179: 1 | W179: 0 | X179: 0
A180: 4.2.8 | B180: Stage 1 throttle - Polypropylene/PVC | C180: =tot_perm_1_man -> 0 | D180: units | E180: =IF(C180=0,"NA",perm_valve_1_diam) -> NA | G180: =IF(C180=0,"NA",IF(curve=1,perm_valve_1_diam,VLOOKUP(perm_valve_1_diam,pp_man_cost_cl,2))) -> NA | I180: =IF(C180=0,"NA",IF(curve=1,pp_man_eq_pt1,VLOOKUP(perm_valve_1_diam,pp_man_cost_cl,3))) -> NA | J180: -- | K180: =IF(C180=0,"NA",VLOOKUP(perm_valve_1_diam,pp_man_cost_cl,IF(ss_cat="large",4,5))) -> NA | M180: Manual Valves - Stage 1 throttle - Polypropylene/PVC | N180: 1 | O180: 1 | P180: 2 | Q180: 1 | R180: 1 | S180: 2 | T180: 1 | U180: 1 | V180: 2 | W180: 0 | X180: 0
A181: 4.2.8 | B181: Stage 1 throttle - Stainless Steel | C181: =tot_perm_1_man -> 0 | D181: units | E181: =IF(C181=0,"NA",perm_valve_1_diam) -> NA | G181: =IF(C181=0,"NA",IF(curve=1,perm_valve_1_diam,VLOOKUP(perm_valve_1_diam,ss_man_cost_cl,2))) -> NA | I181: =IF(C181=0,"NA",IF(curve=1,ss_man_eq_pt1,VLOOKUP(perm_valve_1_diam,ss_man_cost_cl,3))) -> NA | J181: -- | K181: =IF(C181=0,"NA",VLOOKUP(perm_valve_1_diam,ss_man_cost_cl,IF(ss_cat="large",4,5))) -> NA | M181: Manual Valves - Stage 1 throttle - Stainless Steel | N181: 2 | O181: 2 | P181: 1 | Q181: 2 | R181: 2 | S181: 1 | T181: 2 | U181: 2 | V181: 1 | W181: 0 | X181: 0
A182: 4.2.9 | B182: Stage 2 throttle - Polypropylene/PVC | C182: =tot_perm_2_man -> 0 | D182: units | E182: =IF(C182=0,"NA",perm_valve_2_diam) -> NA | G182: =IF(C182=0,"NA",IF(curve=1,perm_valve_2_diam,VLOOKUP(perm_valve_2_diam,pp_man_cost_cl,2))) -> NA | I182: =IF(C182=0,"NA",IF(curve=1,pp_man_eq_pt2,VLOOKUP(perm_valve_2_diam,pp_man_cost_cl,3))) -> NA | J182: -- | K182: =IF(C182=0,"NA",VLOOKUP(perm_valve_2_diam,pp_man_cost_cl,IF(ss_cat="large",4,5))) -> NA | M182: Manual Valves - Stage 2 throttle - Polypropylene/PVC | N182: 1 | O182: 1 | P182: 2 | Q182: 1 | R182: 1 | S182: 2 | T182: 1 | U182: 1 | V182: 2 | W182: 0 | X182: 0
A183: 4.2.9 | B183: Stage 2 throttle - Stainless Steel | C183: =tot_perm_2_man -> 0 | D183: units | E183: =IF(C183=0,"NA",perm_valve_2_diam) -> NA | G183: =IF(C183=0,"NA",IF(curve=1,perm_valve_2_diam,VLOOKUP(perm_valve_2_diam,ss_man_cost_cl,2))) -> NA | I183: =IF(C183=0,"NA",IF(curve=1,ss_man_eq_pt2,VLOOKUP(perm_valve_2_diam,ss_man_cost_cl,3))) -> NA | J183: -- | K183: =IF(C183=0,"NA",VLOOKUP(perm_valve_2_diam,ss_man_cost_cl,IF(ss_cat="large",4,5))) -> NA | M183: Manual Valves - Stage 2 throttle - Stainless Steel | N183: 2 | O183: 2 | P183: 1 | Q183: 2 | R183: 2 | S183: 1 | T183: 2 | U183: 2 | V183: 1 | W183: 0 | X183: 0
A184: 4.2.10 | B184: Stage 3 throttle - Polypropylene/PVC | C184: =tot_perm_3_man -> 0 | D184: units | E184: =IF(C184=0,"NA",perm_valve_3_diam) -> NA | G184: =IF(C184=0,"NA",IF(curve=1,perm_valve_3_diam,VLOOKUP(perm_valve_3_diam,pp_man_cost_cl,2))) -> NA | I184: =IF(C184=0,"NA",IF(curve=1,pp_man_eq_pt3,VLOOKUP(perm_valve_3_diam,pp_man_cost_cl,3))) -> NA | J184: -- | K184: =IF(C184=0,"NA",VLOOKUP(perm_valve_3_diam,pp_man_cost_cl,IF(ss_cat="large",4,5))) -> NA | M184: Manual Valves - Stage 3 throttle - Polypropylene/PVC | N184: 1 | O184: 1 | P184: 2 | Q184: 1 | R184: 1 | S184: 2 | T184: 1 | U184: 1 | V184: 2 | W184: 0 | X184: 0
A185: 4.2.10 | B185: Stage 3 throttle - Stainless Steel | C185: =tot_perm_3_man -> 0 | D185: units | E185: =IF(C185=0,"NA",perm_valve_3_diam) -> NA | G185: =IF(C185=0,"NA",IF(curve=1,perm_valve_3_diam,VLOOKUP(perm_valve_3_diam,ss_man_cost_cl,2))) -> NA | I185: =IF(C185=0,"NA",IF(curve=1,ss_man_eq_pt3,VLOOKUP(perm_valve_3_diam,ss_man_cost_cl,3))) -> NA | J185: -- | K185: =IF(C185=0,"NA",VLOOKUP(perm_valve_3_diam,ss_man_cost_cl,IF(ss_cat="large",4,5))) -> NA | M185: Manual Valves - Stage 3 throttle - Stainless Steel | N185: 2 | O185: 2 | P185: 1 | Q185: 2 | R185: 2 | S185: 1 | T185: 2 | U185: 2 | V185: 1 | W185: 0 | X185: 0
A186: 4.2.11 | B186: Cleaning - Polypropylene/PVC | C186: =tot_clean_man -> 0 | D186: units | E186: =IF(C186=0,"NA",clean_valve_size) -> NA | G186: =IF(C186=0,"NA",IF(curve=1,clean_valve_size,VLOOKUP(clean_valve_size,pp_man_cost_cl,2))) -> NA | I186: =IF(C186=0,"NA",IF(curve=1,pp_man_eq_clean,VLOOKUP(clean_valve_size,pp_man_cost_cl,3))) -> NA | J186: -- | K186: =IF(C186=0,"NA",VLOOKUP(clean_valve_size,pp_man_cost_cl,IF(ss_cat="large",4,5))) -> NA | M186: Manual Valves - Cleaning - Polypropylene/PVC | N186: 1 | O186: 2 | P186: 2 | Q186: 1 | R186: 2 | S186: 2 | T186: 1 | U186: 2 | V186: 2 | W186: 0 | X186: 0
A187: 4.2.11 | B187: Cleaning - Stainless Steel | C187: =tot_clean_man -> 0 | D187: units | E187: =IF(C187=0,"NA",clean_valve_size) -> NA | G187: =IF(C187=0,"NA",IF(curve=1,clean_valve_size,VLOOKUP(clean_valve_size,ss_man_cost_cl,2))) -> NA | I187: =IF(C187=0,"NA",IF(curve=1,ss_man_eq_clean,VLOOKUP(clean_valve_size,ss_man_cost_cl,3))) -> NA | J187: -- | K187: =IF(C187=0,"NA",VLOOKUP(clean_valve_size,ss_man_cost_cl,IF(ss_cat="large",4,5))) -> NA | M187: Manual Valves - Cleaning - Stainless Steel | N187: 2 | O187: 1 | P187: 1 | Q187: 2 | R187: 1 | S187: 1 | T187: 2 | U187: 1 | V187: 1 | W187: 0 | X187: 0
A188: 4.2.12 | B188: Bypass - Polypropylene/PVC | C188: =tot_bp_man -> 0 | D188: units | E188: =IF(C188=0,"NA",bypass_valve_size) -> NA | G188: =IF(C188=0,"NA",IF(curve=1,bypass_valve_size,VLOOKUP(bypass_valve_size,pp_man_cost_cl,2))) -> NA | I188: =IF(C188=0,"NA",IF(curve=1,pp_man_eq_bp,VLOOKUP(bypass_valve_size,pp_man_cost_cl,3))) -> NA | J188: -- | K188: =IF(C188=0,"NA",VLOOKUP(bypass_valve_size,pp_man_cost_cl,IF(ss_cat="large",4,5))) -> NA | M188: Manual Valves - Bypass - Polypropylene/PVC | N188: 1 | O188: 2 | P188: 3 | Q188: 1 | R188: 2 | S188: 3 | T188: 1 | U188: 2 | V188: 3 | W188: 0 | X188: 0
A189: 4.2.12 | B189: Bypass - Stainless Steel | C189: =tot_bp_man -> 0 | D189: units | E189: =IF(C189=0,"NA",bypass_valve_size) -> NA | G189: =IF(C189=0,"NA",IF(curve=1,bypass_valve_size,VLOOKUP(bypass_valve_size,ss_man_cost_cl,2))) -> NA | I189: =IF(C189=0,"NA",IF(curve=1,ss_man_eq_bp,VLOOKUP(bypass_valve_size,ss_man_cost_cl,3))) -> NA | J189: -- | K189: =IF(C189=0,"NA",VLOOKUP(bypass_valve_size,ss_man_cost_cl,IF(ss_cat="large",4,5))) -> NA | M189: Manual Valves - Bypass - Stainless Steel | N189: 3 | O189: 3 | P189: 1 | Q189: 3 | R189: 3 | S189: 1 | T189: 3 | U189: 3 | V189: 1 | W189: 0 | X189: 0
A190: 4.2.12 | B190: Bypass - Cast Iron | C190: =tot_bp_man -> 0 | D190: units | E190: =IF(C190=0,"NA",bypass_valve_size) -> NA | G190: =IF(C190=0,"NA",IF(curve=1,bypass_valve_size,VLOOKUP(bypass_valve_size,ci_bfv_cost_cl,2))) -> NA | I190: =IF(C190=0,"NA",IF(curve=1,ci_bfv_eq_bp,VLOOKUP(bypass_valve_size,ci_bfv_cost_cl,3))) -> NA | J190: -- | K190: =IF(C190=0,"NA",VLOOKUP(bypass_valve_size,ci_bfv_cost_cl,IF(ss_cat="large",4,5))) -> NA | M190: Manual Valves - Bypass - Cast Iron | N190: 2 | O190: 1 | P190: 2 | Q190: 2 | R190: 1 | S190: 2 | T190: 2 | U190: 1 | V190: 2 | W190: 0 | X190: 0
A191: 4.2.13 | B191: Residuals - Polypropylene/PVC | C191: =total_res_man -> 0 | D191: units | E191: =IF(C191=0,"NA",res_valve_size) -> NA | F191: =IF(C191=0,"","in. diam") ->  | G191: =IF(C191=0,"NA",IF(curve=1,res_valve_size,VLOOKUP(res_valve_size,pp_man_cost_cl,2))) -> NA | H191: =IF(C191=0,"","in. diam") ->  | I191: =IF(C191=0,"NA",IF(curve=1,pp_man_eq_res,VLOOKUP(res_valve_size,pp_man_cost_cl,3))) -> NA | J191: =IF(OR(I191="contact vendor",I191="NA"),"--",C191*I191) -> -- | K191: =IF(C191=0,"NA",VLOOKUP(res_valve_size,pp_man_cost_cl,IF(ss_cat="large",4,5))) -> NA | M191: Manual Valves - Residuals - Polypropylene/PVC | N191: 1 | O191: 2 | P191: 3 | Q191: 1 | R191: 2 | S191: 3 | T191: 1 | U191: 2 | V191: 3 | W191: 0 | X191: 0
A192: 4.2.13 | B192: Residuals - Stainless Steel | C192: =total_res_man -> 0 | D192: units | E192: =IF(C192=0,"NA",res_valve_size) -> NA | F192: =IF(C192=0,"","in. diam") ->  | G192: =IF(C192=0,"NA",IF(curve=1,res_valve_size,VLOOKUP(res_valve_size,ss_man_cost_cl,2))) -> NA | H192: =IF(C192=0,"","in. diam") ->  | I192: =IF(C192=0,"NA",IF(curve=1,ss_man_eq_res,VLOOKUP(res_valve_size,ss_man_cost_cl,3))) -> NA | J192: =IF(OR(I192="contact vendor",I192="NA"),"--",C192*I192) -> -- | K192: =IF(C192=0,"NA",VLOOKUP(res_valve_size,ss_man_cost_cl,IF(ss_cat="large",4,5))) -> NA | M192: Manual Valves - Residuals - Stainless Steel | N192: 3 | O192: 3 | P192: 1 | Q192: 3 | R192: 3 | S192: 1 | T192: 3 | U192: 3 | V192: 1 | W192: 0 | X192: 0
A193: 4.2.13 | B193: Residuals - Cast Iron | C193: =total_res_man -> 0 | D193: units | E193: =IF(C193=0,"NA",res_valve_size) -> NA | G193: =IF(C193=0,"NA",IF(curve=1,res_valve_size,VLOOKUP(res_valve_size,ci_bfv_cost_cl,2))) -> NA | I193: =IF(C193=0,"NA",IF(curve=1,ci_bfv_eq_res,VLOOKUP(res_valve_size,ci_bfv_cost_cl,3))) -> NA | J193: =IF(OR(I193="contact vendor",I193="NA"),"--",C193*I193) -> -- | K193: =IF(C193=0,"NA",VLOOKUP(res_valve_size,ci_bfv_cost_cl,IF(ss_cat="large",4,5))) -> NA | M193: Manual Valves - Residuals - Cast Iron | N193: 2 | O193: 1 | P193: 2 | Q193: 2 | R193: 1 | S193: 2 | T193: 2 | U193: 1 | V193: 2 | W193: 0 | X193: 0
A194: 4.3 | B194: Check Valves | W194: 0 | X194: 0
A195: 4.3.1 | B195: Residuals - Polypropylene/PVC | C195: =tot_res_chv -> 1 | D195: units | E195: =IF(C195=0,"NA",res_valve_size) -> 1.5 | F195: in. diam | G195: =IF(C195=0,"NA",IF(curve=1,res_valve_size,VLOOKUP(res_valve_size,pp_chv_cost_cl,2))) -> 1.5 | H195: in. diam | I195: =IF(C195=0,0,IF(curve=1,pp_chv_eq_res,VLOOKUP(res_valve_size,pp_chv_cost_cl,3))) -> 170.9350906 | J195: =IF(OR(I195="contact vendor",I195="NA"),"--",C195*I195) -> 170.9350906 | K195: =IF(C195=0,"NA",VLOOKUP(res_valve_size,pp_chv_cost_cl,IF(ss_cat="large",4,5))) -> 20 | L195: 1 | M195: =$B$194&" - "&B195 -> Check Valves - Residuals - Polypropylene/PVC | N195: 1 | O195: 2 | P195: 3 | Q195: 1 | R195: 2 | S195: 3 | T195: 1 | U195: 2 | V195: 3 | W195: 1 | X195: 8.546754531
A196: 4.3.1 | B196: Residuals - Stainless Steel | C196: =tot_res_chv -> 1 | D196: units | E196: =IF(C196=0,"NA",res_valve_size) -> 1.5 | F196: in. diam | G196: =IF(C196=0,"NA",IF(curve=1,res_valve_size,VLOOKUP(res_valve_size,ss_chv_cost_cl,2))) -> 1.5 | H196: in. diam | I196: =IF(C196=0,0,IF(curve=1,ss_chv_eq_res,VLOOKUP(res_valve_size,ss_chv_cost_cl,3))) -> 626.3043067 | J196: 626.3043067 | K196: =IF(C196=0,"NA",VLOOKUP(res_valve_size,ss_chv_cost_cl,IF(ss_cat="large",4,5))) -> 20 | L196: 0 | M196: =$B$194&" - "&B196 -> Check Valves - Residuals - Stainless Steel | N196: 3 | O196: 3 | P196: 1 | Q196: 3 | R196: 3 | S196: 1 | T196: 3 | U196: 3 | V196: 1 | W196: =IF(ISERROR(K196*L196),0,IF(K196<1,0,L196)) -> 0 | X196: =IF(W196,J196/K196,0) -> 0
A197: 4.3.1 | B197: Residuals - Cast Iron | C197: =tot_res_chv -> 1 | D197: units | E197: =IF(C197=0,"NA",res_valve_size) -> 1.5 | F197: in. diam | G197: =IF(C197=0,"NA",IF(curve=1,res_valve_size,VLOOKUP(res_valve_size,ci_chv_cost_cl,2))) -> 1.5 | H197: in. diam | I197: =IF(C197=0,0,IF(curve=1,ci_chv_eq_res,VLOOKUP(res_valve_size,ci_chv_cost_cl,3))) -> contact vendor | J197: -- | K197: =IF(C197=0,"NA",VLOOKUP(res_valve_size,ci_chv_cost_cl,IF(ss_cat="large",4,5))) -> 20 | L197: 0 | M197: =$B$194&" - "&B197 -> Check Valves - Residuals - Cast Iron | N197: 2 | O197: 1 | P197: 2 | Q197: 2 | R197: 1 | S197: 2 | T197: 2 | U197: 1 | V197: 2 | W197: 0 | X197: 0
A198: 4.3.2 | B198: Inlet - Polypropylene/PVC | C198: =tot_in_chv -> 1 | D198: units | E198: =IF(C198=0,"NA",in_valve_size) -> 2 | F198: in. diam | G198: =IF(curve=1,in_valve_size,VLOOKUP(in_valve_size,pp_chv_cost_cl,2)) -> 2 | H198: in. diam | I198: =IF(curve=1,pp_chv_eq_in,VLOOKUP(in_valve_size,pp_chv_cost_cl,3)) -> 243.210246 | J198: 243.210246 | K198: =IF(C198=0,"NA",VLOOKUP(in_valve_size,pp_chv_cost_cl,IF(ss_cat="large",4,5))) -> 20 | L198: 1 | M198: =$B$194&" - "&B198 -> Check Valves - Inlet - Polypropylene/PVC | N198: 1 | O198: 2 | P198: 3 | Q198: 1 | R198: 2 | S198: 3 | T198: 1 | U198: 2 | V198: 3 | W198: 1 | X198: 12.1605123
A199: 4.3.2 | B199: Inlet - Stainless Steel | C199: =tot_in_chv -> 1 | D199: units | E199: =IF(C199=0,"NA",in_valve_size) -> 2 | F199: in. diam | G199: =IF(curve=1,in_valve_size,VLOOKUP(in_valve_size,ss_chv_cost_cl,2)) -> 2 | H199: in. diam | I199: =IF(curve=1,ss_chv_eq_in,VLOOKUP(in_valve_size,ss_chv_cost_cl,3)) -> 834.2561118 | J199: 834.2561118 | K199: =IF(C199=0,"NA",VLOOKUP(in_valve_size,ss_chv_cost_cl,IF(ss_cat="large",4,5))) -> 20 | L199: 0 | M199: Check Valves - Inlet - Stainless Steel | N199: 3 | O199: 3 | P199: 1 | Q199: 3 | R199: 3 | S199: 1 | T199: 3 | U199: 3 | V199: 1 | W199: 0 | X199: 0
A200: 4.3.2 | B200: Inlet - Cast Iron | C200: =tot_in_chv -> 1 | D200: units | E200: =IF(C200=0,"NA",in_valve_size) -> 2 | F200: in. diam | G200: =IF(curve=1,in_valve_size,VLOOKUP(in_valve_size,ci_chv_cost_cl,2)) -> 2 | H200: in. diam | I200: =IF(curve=1,ci_chv_eq_in,VLOOKUP(in_valve_size,ci_chv_cost_cl,3)) -> 280.7656331 | J200: 280.7656331 | K200: =IF(C200=0,"NA",VLOOKUP(in_valve_size,ci_chv_cost_cl,IF(ss_cat="large",4,5))) -> 20 | L200: 0 | M200: Check Valves - Inlet - Cast Iron | N200: 2 | O200: 1 | P200: 2 | Q200: 2 | R200: 1 | S200: 2 | T200: 2 | U200: 1 | V200: 2 | W200: 0 | X200: 0
A201: 4.3.3 | B201: Bypass - Polypropylene/PVC | C201: =IF(bp_pct>0,tot_bp_chv,0) -> 0 | D201: units | E201: =IF(C201=0,"NA",bypass_valve_size) -> NA | G201: =IF(C201=0,"NA",(IF(curve=1,bypass_valve_size,VLOOKUP(bypass_valve_size,pp_chv_cost_cl,2)))) -> NA | I201: =IF(C201=0,"NA",(IF(curve=1,pp_chv_eq_bp,VLOOKUP(bypass_valve_size,pp_chv_cost_cl,3)))) -> NA | J201: -- | K201: =IF(C201=0,"NA",VLOOKUP(bypass_valve_size,pp_chv_cost_cl,IF(ss_cat="large",4,5))) -> NA | M201: Check Valves - Bypass - Polypropylene/PVC | N201: 1 | O201: 2 | P201: 3 | Q201: 1 | R201: 2 | S201: 3 | T201: 1 | U201: 2 | V201: 3 | W201: 0 | X201: 0
... 276 more rows

Sheet Critical Design Assumptions
A1: Default Critical Design Assumptions
A2: Users may change any of the cells in the Value column; cells in gold are most important and may vary based on contaminant treated and site-specific conditions
A4: Assumption | B4: Range Name | C4: Value | D4: Units | E4: Guidance
A5: Cost estimating method | B5: curve | C5: 1 | D5: <-- enter 1 to use cost equations, leave blank to use lookup tables for component costs | E5: Keeping this assumption with a value of 1 is strongly recommended; the cost equations method is more appropriate for national cost estimating and will be more accurate for nearly all user-specified designs
A6: Minimum average flow as percentage of design | B6: min_avg_flow | C6: 0.1 | E6: The minimum ratio of average flow to design flow. If the ratio falls below this value, it will trigger a warning on the INPUT sheet. If this value is zero, no minimum is enforced.
A8: Influent and booster pumping
A9: Safety factor for pumps | B9: pump_safety_factor | C9: 0.25
A10: Losses between pump and pressure vessels | B10: influent_headloss | C10: 10 | D10: psi | E10: Accounts for losses in piping and valves between the feed pump and the first-stage pressure vessel
A11: Number of redundant influent and booster pumps | B11: NRD_inf_pumps | C11: 0 | D11: units | E11: Multiple pump approach to sizing eliminates need for a redundant pump.
A12: Total efficiency of pumps | B12: pump_effcy | C12: 0.75 | E12: Combined pump and motor efficiency, so the electrical power requirement is equal to flow * pressure / efficiency. 75-80% per Howard Steiman, RW Beck.
A13: Losses between booster pump and pressure vessels | B13: boost_headloss | C13: 5 | D13: psi | E13: Accounts for losses in piping and valves between the booster pump and the second- or third-stage pressure vessel
A14: Minimum chemical feed pump size | B14: min_chem_flow | C14: 0.13 | D14: gph | E14: Metering pumps will be designed to meet this minimum
A16: Bypass Flow
A17: Percent of Total Flow that is Bypassed | B17: bp_pct | C17: 0 | E17: Typically, bypass flow ranges between 0% and 50% of inflow. Enter zero to remove bypass piping and components. 0% is default consistent with the type of cost curves that EPA will need for its national cost simulation model.
A18: Bypass pump head | B18: bp_pump_head | C18: 25 | D18: psi | E18: Von Huben, Harry. Operator's Companion, 4th Edition. USABluebook, 2000. Pp. 17 25 psi creates a head of 60 feet
A19: Bypass pump efficiency | B19: bp_pump_eff | C19: 0.75
A20: Number of redundant bypass pumps | B20: NRD_bp_pumps | C20: 0 | D20: units | E20: Multiple pump approach eliminates need for redundant pumps
A22: Valves and Instrumentation
A23: See the Valve Table at the bottom of this page for additional assumptions relating to valves
A24: Number of manual valves on influent and effluent line | B24: tot_man_valves | C24: 2 | D24: valves
A25: Number of check valves on influent line | B25: tot_in_chv | C25: 1 | D25: valves
A26: Number of check valves on bypass line | B26: tot_bp_chv | C26: 1 | D26: valves
A27: Number of check valves per feed pump | B27: feedpump_chv | C27: 1 | D27: valves
A28: Number of check valves per cleaning cartridge filter | B28: cleaning_chv | C28: 1 | D28: valves
A30: Flow meters for influent and effluent line | B30: tot_fm_in | C30: 2 | D30: units | E30: Flow meter assemblies include pressure gauges
A31: Flow meters per membrane rack, feed side | B31: fm_rack_feed | C31: 1 | D31: units/rack
A32: Flow meters per membrane rack, permeate side | B32: fm_rack_perm | C32: 1 | D32: units/rack
A33: Flow meters per membrane rack, concentrate line | B33: fm_rack_conc | C33: 1 | D33: units/rack
A34: Flow meters per cleaning pump | B34: fm_clean | C34: 1 | D34: units/pump
A35: Level switch/alarms per cleaning makeup tank | B35: level_switch_clean_tank | C35: 1 | D35: units/tank
A36: High/Low alarms per chemical storage tank | B36: chem_alarm_cst | C36: 1 | D36: units/tank
A37: High/Low alarms per pretreatment chemical tank | B37: chem_alarm_pre | C37: 1 | D37: units/tank
A38: pH meters per acid pretreatment pump | B38: pH_controls_acid | C38: 1 | D38: units/pump
A39: Temperature meters for inlet | B39: temp_meter_in | C39: 1 | D39: units | E39: One temperature meter for the inlet pipe
A40: Temperature meters per cleaning makeup tank | B40: temp_meter_clean | C40: 1 | D40: units/tank
A41: Conductivity meters on inlet and outlet | B41: inout_cond_meter | C41: 2 | D41: units | E41: One for influent line, one for effluent line
A42: Conductivity meters per rack | B42: cond_rack | C42: 3 | D42: units/rack | E42: One each on feed, concentrate, permate line per rack
A43: Head loss sensors per rack | B43: head_rack | C43: 1 | D43: units/rack
A44: Head loss sensors per cartridge filter | B44: headloss_cart | C44: 1 | D44: units/filter
A45: Sampling ports per cartridge filter | B45: ports_cart | C45: 1 | D45: port/filter | E45: For SDI testing. Howard Steiman, RW Beck.
A46: Sampling ports per membrane rack | B46: ports_rack | C46: 1 | D46: port/rack
A47: Sampling ports per pressure vessel | B47: ports_PV | C47: 1 | D47: port/PV | E47: 1 port on each permeate line. Howard Steiman, RW Beck.
A48: Sampling ports for blended effluent | B48: ports_bp | C48: 1 | D48: port | E48: Included only if bypass is specified
A49: Additional sampling ports | B49: add_ports | C49: 2 | D49: ports | E49: One each for influent and effluent lines
A50: Electrical enclosure | B50: electric_encl | C50: 0 | D50: units | E50: Required only for technologies with significant electric-powered equipment outside a building
A52: Chemical properties
A53: Concentrated strength of HCl (% by weight) | B53: acid_strength_HCl | C53: 0.36
A54: Concentrated strength of H2SO4 (% by weight) | B54: acid_strength_H2SO4 | C54: 0.78
A55: Concentrated strength of caustic (% by weight) | B55: caustic_strength | C55: 0.5
A57: Pretreatment
A58: Minimum number of cartridge filters above 1 MGD | B58: min_cart | C58: 2 | D58: units | E58: For small systems (<1 MGD), this limit is ignored.
A59: Number of redundant cartridge filters | B59: init_NRD_cart | C59: 1 | D59: units
A60: Additional redundant cartridge filter per x MGD inflow | B60: addl_redund_cart_per_flow | C60: 50 | D60: MGD
A61: Antiscalant dose for pretreatment | B61: anti_dose_conc | C61: 15 | D61: mg/L in concentrate | E61: Rule of thumb: 15 mg/L antiscalant in the concentrate (Ian Watson).
A62: Antiscalant density | B62: anti_density | C62: 10 | D62: lb/gal | E62: Scale inhibitor is about 10 lb/gal, regardless of the manufacturer (Ian Watson). Dependent on the manufacturer, but about 9.8 lb/gal (Shannon Koekkler, Osmonics).
A63: Number of days of chemical storage needed | B63: cstore_days | C63: 30 | D63: day
A64: Include a separate day tank if daily volume is x or greater | B64: day_tank_needed | C64: 5 | D64: gal
A65: Include mixers for chemical tanks | B65: include_cmix | C65: 0 | D65: <--- enter 1 for yes, 0 for no
A66: Chemical tank mixer horsepower | B66: cmix_hp_per | C66: 0.25 | D66: hp per 1000 gal
A67: Minimum chemical tank mixer horsepower | B67: min_cmix_hp | C67: =1/3 -> 0.3333333333 | D67: hp
A68: Number of redundant acid metering pumps | B68: NRD_acid_mpumps | C68: 1 | D68: units
A69: Number of redundant antiscalant metering pumps | B69: NRD_anti_mpumps | C69: 1 | D69: units
A70: Maximum LSI with antiscalant | B70: max_lsi_antiscalant | C70: 2.3 | E70: Rule of thumb, 2 to 2.3. "RO and NF Design - Computer Modeling" workshop, AWWA ACE 2006
A71: Maximum CaSO4 saturation with antiscalant | B71: max_caso4_antiscalant | C71: 2 | E71: Rule of thumb. "RO and NF Design - Computer Modeling" workshop, AWWA ACE 2006
A72: Maximum BaSO4 saturation with antiscalant | B72: max_baso4_antiscalant | C72: 40 | E72: Rule of thumb. "RO and NF Design - Computer Modeling" workshop, AWWA ACE 2006
A73: Maximum SrSO4 saturation with antiscalant | B73: max_srso4_antiscalant | C73: 8 | E73: Rule of thumb. "RO and NF Design - Computer Modeling" workshop, AWWA ACE 2006
A74: Maximum CaF2 saturation with antiscalant | B74: max_caf2_antiscalant | C74: 100 | E74: Rule of thumb. "RO and NF Design - Computer Modeling" workshop, AWWA ACE 2006
A75: Maximum SiO2 concentration with antiscalant | B75: max_sio2_conc_antiscalant | C75: 150 | D75: mg/L | E75: Rule of thumb, 120 to 180 mg/L. "RO and NF Design - Computer Modeling" workshop, AWWA ACE 2006
A76: Maximum LSI without antiscalant | B76: max_lsi_no_antiscalant | C76: 0
A77: Maximum CaSO4 saturation without antiscalant | B77: max_caso4_no_antiscalant | C77: 1
A78: Maximum BaSO4 saturation without antiscalant | B78: max_baso4_no_antiscalant | C78: 1
A79: Maximum SrSO4 saturation without antiscalant | B79: max_srso4_no_antiscalant | C79: 1
A80: Maximum CaF2 saturation without antiscalant | B80: max_caf2_no_antiscalant | C80: 1
A81: Maximum SiO2 saturation without antiscalant | B81: max_sio2_sat_no_antiscalant | C81: 1
A83: Secondary Containment Requirements
A84: Include secondary containment | B84: include_sec_cont | C84: 1 | D84: <--- enter 1 for yes, 0 for no
A85: Volume required as a percentage of the largest tank | B85: sec_cont_pct_of_largest | C85: 1.1
A86: Volume required as a percentage of total storage | B86: sec_cont_pct_of_total | C86: 0.1
A87: Additional freeboard | B87: sec_cont_freeboard | C87: 6 | D87: inches | E87: Additional freeboard is typically required to contain precipitation when storage is outside; we also include freeboard indoors to ensure a minimum reasonable curb height
A88: Maximum curb thickness | B88: sec_cont_max_thick | C88: 1 | D88: foot | E88: Calculations assume thickness equal to height, up to this maximum
A89: Chemical resistant coating coverage | B89: sec_cont_coating_cvg | C89: 125 | D89: square feet/gallon
A91: Membrane System
A92: Minimum recovery for RO | B92: recov_min_ro | C92: 0.5 | E92: We'll warn the user if the target recovery is outside these bounds. Otherwise these assumptions do not enter the model.
A93: Maximum recovery for RO | B93: recov_max_ro | C93: 0.85
A94: Minimum recovery for NF | B94: recov_min_nf | C94: 0.8
A95: Maximum recovery for NF | B95: recov_max_nf | C95: 0.9
A96: Membrane fouling factor | B96: fouling_factor | C96: 0.85 | E96: We modify the water permeability (A value) of the membrane element by this factor before designing a system, to allow for a loss of permeability due to aging and fouling. Applied once, not compounded annually.
A98: Min flux for SDI < 1 | B98: flux_min_SDI1_GW | C98: 21 | D98: gfd | E98: For SDI < 1, average flux target is 21-25 gfd (RO permeate) per Dow Liquid Separations, Filmtec RO Membranes Technical Manual, January 2004. <25 gfd, per GE design guidelines.
A99: Max flux for SDI < 1 | B99: flux_max_SDI1_GW | C99: 25 | D99: gfd | E99: For SDI < 1, average flux target is 21-25 gfd (RO permeate) per Dow Liquid Separations, Filmtec RO Membranes Technical Manual, January 2004. <25 gfd, per GE design guidelines.
A100: Min flux for 1 < SDI < 3 | B100: flux_min_SDI3_GW | C100: 16 | D100: gfd | E100: For SDI < 3, average flux target is 13-17 gfd (surface supply) or 16-20 gfd (well water) per Dow Liquid Separations, Filmtec RO Membranes Technical Manual, January 2004. GE design guidelines suggest 16-18 gfd for well water with SDI < 3.
A101: Max flux for 1 < SDI < 3 | B101: flux_max_SDI3_GW | C101: 20 | D101: gfd | E101: For SDI < 3, average flux target is 13-17 gfd (surface supply) or 16-20 gfd (well water) per Dow Liquid Separations, Filmtec RO Membranes Technical Manual, January 2004. GE design guidelines suggest 16-18 gfd for well water with SDI < 3.
A102: Min flux for 3 < SDI < 5 | B102: flux_min_SDI5_GW | C102: 12 | D102: gfd | E102: For SDI < 5, average flux target is 12-16 gfd (surface supply). Dow Liquid Separations, Filmtec RO Membranes Technical Manual, January 2004. GE design guidelines suggest 12 gfd for surface water.
A103: Max flux for 3 < SDI < 5 | B103: flux_max_SDI5_GW | C103: 16 | D103: gfd | E103: For SDI < 5, average flux target is 12-16 gfd (surface supply). Dow Liquid Separations, Filmtec RO Membranes Technical Manual, January 2004. GE design guidelines suggest 12 gfd for surface water.
A104: Min flux for SDI < 1 | B104: flux_min_SDI1_SW | C104: 21 | D104: gfd | E104: For SDI < 1, average flux target is 21-25 gfd (RO permeate) per Dow Liquid Separations, Filmtec RO Membranes Technical Manual, January 2004. <25 gfd, per GE design guidelines.
A105: Max flux for SDI < 1 | B105: flux_max_SDI1_SW | C105: 25 | D105: gfd | E105: For SDI < 1, average flux target is 21-25 gfd (RO permeate) per Dow Liquid Separations, Filmtec RO Membranes Technical Manual, January 2004. <25 gfd, per GE design guidelines.
A106: Min flux for 1 < SDI < 3 | B106: flux_min_SDI3_SW | C106: 12 | D106: gfd | E106: For SDI < 3, average flux target is 13-17 gfd (surface supply) or 16-20 gfd (well water) per Dow Liquid Separations, Filmtec RO Membranes Technical Manual, January 2004. GE design guidelines suggest 16-18 gfd for well water with SDI < 3. Reuse facilities operate at 12 gfd or less
A107: Max flux for 1 < SDI < 3 | B107: flux_max_SDI3_SW | C107: 17 | D107: gfd | E107: For SDI < 3, average flux target is 13-17 gfd (surface supply) or 16-20 gfd (well water) per Dow Liquid Separations, Filmtec RO Membranes Technical Manual, January 2004. GE design guidelines suggest 16-18 gfd for well water with SDI < 3.
A108: Min flux for 3 < SDI < 5 | B108: flux_min_SDI5_SW | C108: 10 | D108: gfd | E108: For SDI < 5, average flux target is 12-16 gfd (surface supply). Dow Liquid Separations, Filmtec RO Membranes Technical Manual, January 2004. GE design guidelines suggest 12 gfd for surface water.
A109: Max flux for 3 < SDI < 5 | B109: flux_max_SDI5_SW | C109: 16 | D109: gfd | E109: For SDI < 5, average flux target is 12-16 gfd (surface supply). Dow Liquid Separations, Filmtec RO Membranes Technical Manual, January 2004. GE design guidelines suggest 12 gfd for surface water.
A111: Max permeate flow per rack, 4" elements | B111: max_flow_rack_4 | C111: 0.5 | D111: MGD
A112: Max permeate flow per rack, 8" elements | B112: max_flow_rack_8 | C112: 3 | D112: MGD | E112: Used to determine number of trains. 2 MGD is typical rack capacity. Howard Steiman, RW Beck.
A113: Max permeate flow per rack, 16-18" elements | B113: max_flow_rack_16 | C113: 2 | D113: MGD | E113: Used to determine number of trains. Capacity of Koch Membrane Systems' MM12 pre-engineered system.
A114: Minimum number of operating trains | B114: min_op_trains | C114: 2 | D114: trains | E114: Require 2 operating trains unless overridden on input sheet, to make redundancy more reasonable.
A115: Number of redundant trains | B115: NRD_trains | C115: 1 | D115: train
A117: Pressure vessel height-to-width ratio on rack | B117: pv_arrangement_ratio | C117: 1.5 | E117: When setting up the rack's height and width, we arrange PVs so that (PVs vertically / PVs horizontally) targets this ratio.
A118: Maximum number of pressure vessel rows per rack | B118: pv_rows_max | C118: 7 | D118: rows | E118: Based on Marked up Frame DWGS.pdf. H2O Innovation recommendation stated up to 10 rows for 8" membrane elements
A120: Number of supports required for "short" pressure vessel, 4" diameter | B120: supports_short_4 | C120: 2 | D120: units | E120: Codeline 40S30, Protec 4-300-SP
A121: Number of supports required for "long" pressure vessel, 4" diameter | B121: supports_long_4 | C121: 3 | D121: units | E121: Codeline 40S30, Protec 4-300-SP
A122: Number of elements for "short" pressure vessel, 4" diameter | B122: short_max_el_4 | C122: 3 | D122: units | E122: Up to this number of elements we use the number of supports for a short PV; otherwise for a long PV. Codeline 40S30, Protec 4-300-SP.
A123: Number of supports required for "short" pressure vessel, 8" diameter | B123: supports_short_8 | C123: 2 | D123: units | E123: Protec 8-150-EP, Codeline 80E30, 80S15, 80S30
A124: Number of supports required for "long" pressure vessel, 8" diameter | B124: supports_long_8 | C124: 3 | D124: units | E124: Protec 8-150-EP, Codeline 80E30, 80S15, 80S30
A125: Number of elements for "short" pressure vessel, 8" diameter | B125: short_max_el_8 | C125: 3 | D125: units | E125: Protec 8-150-SP, 8-300-SP, Codeline 80E30, 80S15, 80S30 (Protec end port vessels permit 2 supports up to 6 elements long)
A126: Number of supports required for "short" pressure vessel, 16-18" diameter | B126: supports_short_16 | C126: 2 | D126: units | E126: Codeline 160E30, 160S30
A127: Number of supports required for "long" pressure vessel, 16-18" diameter | B127: supports_long_16 | C127: 3 | D127: units | E127: Codeline 160E30, 160S30
A128: Number of elements for "short" pressure vessel, 16-18" diameter | B128: short_max_el_16 | C128: 2 | D128: units | E128: Codeline 160E30, 160S30; estimated for 60" long elements
A130: Safety factor for pressure vessel rating | B130: PV_rating_sf | C130: 0.25
A132: Feed and concentrate port diameter, 4" pressure vessel | B132: feed_port_diam_4 | C132: 1 | D132: in | E132: Standard size on Codeline 40S30, Protec 4-300-SP
A133: Feed and concentrate port diameter, 8" pressure vessel | B133: feed_port_diam_8 | C133: 1.5 | D133: in | E133: Standard size on Protec 8-15-SP, 8-300-EP, Codeline 80E30, 80S15, 80S30
A134: Feed and concentrate port diameter, 16-18" pressure vessel | B134: feed_port_diam_16 | C134: 3 | D134: in | E134: Standard size on Codeline 160E30, 160S30
A135: Permeate port diameter, 4" pressure vessel | B135: perm_port_diam_4 | C135: 0.5 | D135: in | E135: Standard size on Codeline 40S30, Protec 4-300-SP
A136: Permeate port diameter, 8" pressure vessel | B136: perm_port_diam_8 | C136: 1 | D136: in | E136: Standard size on Protec 8-15-SP, 8-300-EP, Codeline 80E30, 80S15, 80S30 (Protec side port vessels have 1.25 inch permeate ports)
A137: Permeate port diameter, 16-18" pressure vessel | B137: perm_port_diam_16 | C137: 3 | D137: in | E137: Standard size on Codeline 160E30, 160S30
A138: Victaulic connectors per vessel for feed and concentrate ports | B138: conn_feed_PV | C138: 2 | D138: units | E138: By default, we assume one feed and one concentrate port per vessel. Some systems may use multiple side ports, with more connectors.
A139: Victaulic connectors per vessel for permeate ports | B139: conn_perm_PV | C139: 0 | D139: units | E139: Assume use of NPT connectors on permeate ports
A141: PV columns for one feed distributor | B141: cols_per_feed_hdr | C141: 2 | D141: columns | E141: Used to determine piping flow quantities to the rack
A142: PV columns for one concentrate collector | B142: cols_per_conc_hdr | C142: 2 | D142: columns
A143: PV columns for one permeate collector | B143: cols_per_perm_hdr | C143: 2 | D143: columns
A145: Extra rack length, in addition to length of elements | B145: extra_rack_length | C145: 0 | D145: ft | E145: The length of the support frame is determined by adding this to the total length of elements in a pressure vessel, unless the vessel is unusually short. Based on drawings sent by Richard Chmielewski, 8/2011, the frame is slightly shorter than the PVs, but there are support brackets that extend somewhat farther out.
A146: Maximum extra rack length for short pressure vessels | B146: short_PV_extra_length_max | C146: 0.15 | E146: Extra rack length cannot exceed this percentage of the total element length. This limit should apply only to one-stage systems with few elements per vessel.
A147: Space between pressure vessels on rack, 4" pressure vessel | B147: PV_spacing_4 | C147: 1 | D147: ft
A148: Space between pressure vessels on rack, 8" pressure vessel | B148: PV_spacing_8 | C148: 1 | D148: ft | E148: These assumptions are used for horizontal and vertical spacing of PVs, to estimate rack height and width. 1 ft per Howard Steiman, RW Beck.
A149: Space between pressure vessels on rack, 16-18" pressure vessel | B149: PV_spacing_16 | C149: 1 | D149: ft
A150: Extra rack width, in addition to that for PVs | B150: extra_rack_width | C150: 0 | D150: ft | E150: Based on drawings sent by Richard Chmielewski, H2O Innovation, 8/2011.
A151: Extra rack height, in addition to that for PVs | B151: extra_rack_height | C151: 1 | D151: ft | E151: At base of rack. Based on drawings sent by Richard Chmielewski, H2O Innovation, 8/2011.
A153: Markup for assembly of rack | B153: rack_assembly_markup | C153: 1 | E153: Richard Chmielewski, H2O Innovation, 8/2011.
A155: Pressure tuning routine
A156: Tolerance for permeate flow difference | B156: perm_flow_tol | C156: 0.01 | E156: Pressure tuning continues until it finds a permeate flow within the percentage or absolute tolerance of the design flow.
A157: Absolute tolerance for permeate flow difference | B157: perm_flow_abs_tol | C157: 500 | D157: gal/day | E157: Absolute tolerance is less permissive than percentage tolerance, except for very small design flows (<100,000 gal/day).
A158: Maximum number of pressure iterations | B158: max_iter_pressure | C158: 80 | D158: iterations
A159: Average recovery per element, as fraction of spec | B159: avg_Y_el_targ_frac | C159: 0.7
A160: Minimum number of elements per vessel, 16-18" elements | B160: el_per_vess_std_16 | C160: 4 | D160: elements | E160: We won't go any lower than this number of elements per vessel, unless there is only one stage.
A161: Maximum number of elements per vessel, 16-18" elements | B161: el_per_vess_max_16 | C161: 5 | D161: elements
A162: Minimum number of elements per vessel, 4" and 8" elements | B162: el_per_vess_std_8 | C162: 6 | D162: elements | E162: We won't go any lower than this number of elements per vessel, unless there is only one stage.
A163: Maximum number of elements per vessel, 4" and 8" elements | B163: el_per_vess_max_8 | C163: 8 | D163: elements
A164: Boost vs. throttle, stages 1-2 | B164: P_adj_method_12 | C164: 1 | D164: <--enter 0 to throttle stage 1, 1 to boost stage 2
A165: Boost vs. throttle, stages 2-3 | B165: P_adj_method_23 | C165: 1 | D165: <--enter 0 to throttle stages 1 and 2, 1 to boost stage 3
A166: Tolerance for per-stage flux above target | B166: flux_tol_hi | C166: 0.35
A167: Tolerance for per-stage flux below target | B167: flux_tol_lo | C167: 0.35
A169: Chemical Cleaning System
A170: Months between cleanings at SDI 2 | B170: cleaning_freq_SDI2 | C170: 12 | D170: months
A171: Change in cleaning interval with SDI | B171: cleaning_freq_change | C171: 4 | D171: months | E171: As SDI increases by 1, the cleaning interval decreases by this quantity.
A172: Maximum cleaning interval | B172: cleaning_freq_max | C172: 18 | D172: months | E172: The maximum allowable cleaning interval.
A173: Minimum cleaning interval | B173: cleaning_freq_min | C173: 3 | D173: months | E173: per LT2 Membrane Filtration Guidance Manual and manufacturer recommendations
A174: Flow rate for rapid recirculation phase, per PV, 4" elements | B174: high_circ_flow_PV_4 | C174: 9 | D174: gpm | E174: Dow Filmtec Membranes Cleaning Procedures for DOW FILMTEC FT30 Elements (http://msdssearch.dow.com/PublishedLiteratureDOWCOM/dh_060a/0901b8038060a66f.pdf?filepath=liquidseps/pdfs/noreg/609-23010.pdf&fromPage=GetDoc downloaded 7/10/13)
A175: Flow rate for rapid recirculation phase, per PV, 8" elements | B175: high_circ_flow_PV_8 | C175: 35 | D175: gpm | E175: Dow Filmtec Membranes Cleaning Procedures for DOW FILMTEC FT30 Elements (http://msdssearch.dow.com/PublishedLiteratureDOWCOM/dh_060a/0901b8038060a66f.pdf?filepath=liquidseps/pdfs/noreg/609-23010.pdf&fromPage=GetDoc downloaded 7/10/13)
A176: Flow rate for rapid recirculation phase, per PV, 16-18" elements | B176: high_circ_flow_PV_16 | C176: 180 | D176: gpm | E176: Hydranautics TSB107.20, July 2010: 160 gpm for 16" elements. Personal communication from Jack Cangiano, Koch, to Howard Steiman, RW Beck, May 2011: 200 gpm for 18" elements.
A177: Volume in piping, as fraction of vessel volume | B177: pipe_vol_frac | C177: 0.05
A178: Complete cleaning cycle length | B178: cleaning_cycle | C178: 2 | D178: days | E178: One day each for acid and caustic. This is the total offline time.
A179: Number of redundant pumps per system | B179: NRD_chem_pump | C179: 1 | D179: units
A180: Cleaning Temperature | B180: cleaning_temp | C180: 95 | D180: degrees F | E180: Ideal temperature range is 35 degrees C to 45 degrees C (95 - 113 degrees F)
A181: Immersion heater heat-up time | B181: cleaning_heat_time | C181: 5 | D181: hours
A182: Number of redundant immersion heaters per system | B182: NRD_immersion_heaters | C182: 0 | D182: units | E182: By default, no redundancy for heaters
A183: Number of security screens per chemical line | B183: sec_screen_per_chem | C183: 1 | D183: units | E183: Set to zero to omit security screens
A184: Redundant security screens per system | B184: NRD_sec_screen | C184: 1 | D184: units
A185: Number of cartridge filters per chemical line | B185: cart_filter_per_chem | C185: 1 | D185: units | E185: Set to zero to omit cartridge filters
A186: Redundant cartridge filters per system | B186: NRD_cart_filter | C186: 1 | D186: units
A187: Minimum chemical storage tank size | B187: min_chem_tank_vol | C187: 5 | D187: gal
A188: Acid used in acidic cleaning cycle | B188: clean_acid | C188: 3 | D188: <--enter 1 for citric, 2 for hydrochloric, 3 for low-pH proprietary cleaner for sulfate and metal control, 0 for no acid cycle
A189: Citric acid density | B189: citric_density | C189: 99.6 | D189: lb/cubic ft | E189: Density of anhydrous citric acid is 1.665. J.T. Baker MSDS, http://www.jtbaker.com/msds/englishhtml/C4735.htm.
A190: Percent concentration of citric acid in cleaning solution during use | B190: citric_need | C190: 0.02
A191: Percent concentration of HCl in cleaning solution during use | B191: HCl_need | C191: 0.002
A192: Chemical used in high-pH cleaning cycle | B192: clean_high_pH | C192: 2 | D192: <--enter 1 for NaOH with no added agent, 2 for high-pH proprietary detergent, 0 for no high-pH cycle
A193: Percent concentration of NaOH in cleaning solution during use | B193: caustic_need | C193: 0.001
A194: Dilution of low pH proprietary cleaners, by volume | B194: proprietary_dilution_lowpH | C194: 40 | D194: gal water/gal cleaner | E194: For Professional Water Technologies Lavasol liquid cleaners. If this assumption is changed, review costs for proprietary cleaners, as some may be scaled to this dilution.
A195: Dilution of high pH proprietary cleaners, by volume | B195: proprietary_dilution_highpH | C195: 40 | D195: gal water/gal cleaner | E195: For Professional Water Technologies Lavasol liquid cleaners. If this assumption is changed, review costs for proprietary cleaners, as some may be scaled to this dilution.
A196: Flow rate to drain cleaning solution and flush system, as fraction of high-rate flow | B196: drain_rate_frac | C196: 0.2 | E196: Used only to determine residuals discharge flow rate
A197: Time for flush and filter to waste after cleaning | B197: flush_time | C197: 15 | D197: min | E197: Used only to determine residuals volume
A199: Structure/Floorplan
A200: Maximum access space per tank for small systems | B200: max_space_tanks_small | C200: 1 | D200: feet | E200: Assumes skid-mounting with minimal access space
A201: Maximum access space per tank for large systems | B201: max_space_tanks_large | C201: 6 | D201: feet | E201: This is the MAXIMUM; space between tanks defaults to vessel or tank diameter, up to this maximum. Maximum provides space for sandblasting and painting for large vessels (5-8 feet per Richard E. Hubel, Peter Keenan, American Water Works Service Company).
A202: Access space per pump | B202: space_pumps | C202: 4 | D202: feet
A203: Access space for other equipment | B203: space_other_equip | C203: 3 | D203: feet | E203: Provide a minimum of 3 ft (1 m) of clear space around each item of equipment (American Water Works Association and American Society of Civil Engineers. Water Treatment Plant Design. Third Edition. New York: McGraw Hill, 1998. Pp. 695).
A204: Access space for element replacement | B204: element_extra_space | C204: 2 | D204: feet | E204: Access space on both ends of the rack is equal to the element length plus this extra length. Other sides of the rack have standard access space.
A205: Fire truck buffer requirements | B205: fire_buffer | C205: 40 | D205: feet
A206: Buffer space around other sides of buildings, Non-fire buffer | B206: non_fire_buffer | C206: 10 | D206: feet
A207: Building height | B207: Building_height | C207: 20 | D207: feet
A208: Clearance space beneath the ceiling | B208: ceiling_clearance | C208: 3 | D208: feet | E208: Minimum space between the tops of storage tanks and the ceiling
A209: Office space per employee | B209: space_office | C209: 100 | D209: square ft
A210: Concrete pad thickness | B210: pad_thick | C210: =6/12 -> 0.5 | D210: feet
A211: Concrete pad thickness for small systems | B211: pad_thick_small | C211: =4/12 -> 0.3333333333 | D211: feet
A212: Concrete pad thickness for area below pressure vessels | B212: pad_vessels | C212: 0.5 | D212: feet
A213: Dry chemical storage height | B213: storage_height | C213: 5 | D213: feet
A214: Second building after… | B214: add_2nd_building | C214: 10000 | D214: sf
A215: Third building after… | B215: add_3rd_building | C215: 20000 | D215: sf
A217: Residuals Discharge
A218: Evaporation pond solids density | B218: ht_solids_density | C218: 25 | D218: lb/ft3 | E218: Standard in WBS models
A219: Holding system capacity safety factor | B219: res_cap_factor | C219: 1 | D219: days | E219: Design holding system for x days of reject at design flow, to be discharged at average flow
A220: Maximum holding basin size | B220: max_hbasin_size | C220: 52215 | D220: ft3 | E220: Assumes a maximum size of 59' wide x 59' long x 15' operating depth without freeboard
A221: Holding basin depth to volume ratio | B221: hbasin_ratio | C221: =2/5 -> 0.4
A222: Holding basin freeboard | B222: hbasin_freeboard | C222: 3 | D222: feet
... 129 more rows

Sheet O&M Assumptions
A1: Default O&M Assumptions
A2: Users may change any of the cells in the Value column; cells in gold are most important and may vary based on contaminant treated and site-specific conditions
A4: Assumption | B4: Range Name | C4: Value | D4: Units | E4: Guidance
A5: Materials
A6: Life of cartridge filters for high SDI | B6: cart_life_short | C6: 3 | D6: months | E6: Howard Steiman, RW Beck. 3 mos for surface water with SDI >~2.5
A7: Life of cartridge filters for low SDI | B7: cart_life_long | C7: 7 | D7: months | E7: Howard Steiman, RW Beck. 6-8 mos for water with SDI < 1
A8: Maximum SDI for "low SDI" cartridge filter life | B8: cart_life_sdi_cutover | C8: 1.5
A9: O&M materials as a percentage of capital | B9: mat_pct | C9: 0.01 | E9: For pumps, pretreatment, other equipment. For calculating cost of actual maintenance materials; not to be confused with depreciation. Initial proposed estimate of 5% seems high (Richard E. Hubel, Peter Keenan, American Water Works Service Company, Inc)
A10: O&M materials percentage for membrane process | B10: mat_pct_train | C10: 0.01 | E10: For membrane process
A11: Membrane life for NF elements | B11: membrane_life_nf | D11: years | E11: If blank, 7 yrs for HQ GW, 3 yrs for LQ SW, and 5 yrs for others
A12: Membrane life for RO elements | B12: membrane_life_ro | D12: years | E12: If blank, 7 yrs for HQ GW, 3 yrs for LQ SW, and 5 yrs for others
A14: Labor
A15: Labor hours per cartridge filter | B15: hrs_filter | C15: 12 | D15: hrs/filter changeout
A16: Labor hours per week for simplex prescreens | B16: labor_simplex_screen | C16: 0.5 | D16: hr/clean cycle/screen | E16: Kevin Steiner, Fluid Engineering. 10-30 minutes/basket clean for 1" prescreens, 15-45 minutes/basket clean for 2" and 4" units. Assume 1 basket clean per chemical cleaning cycle.
A17: Labor hours per month for auto prescreens | B17: monthly_labor_auto_screen | C17: 1 | D17: hr/month/screen | E17: Kevin Steiner, Fluid Engineering. "Very periodic" maintenance, likely only during plant shutdowns.
A18: Minutes per instrument per day | B18: uloe_inst | C18: 5 | D18: min/day | E18: For manual systems only
A19: Recording operating paramenters for automated systems | B19: uloe_inst_auto | C19: 5 | D19: min/day | E19: For semiautomated and automated systems
A20: Minutes per pump per day | B20: uloe_pump | C20: 5 | D20: min/day | E20: For manual and semiautomated systems
A21: Minutes per valve per week | B21: uloe_valve | C21: 5 | D21: min/week | E21: For manual and semiautomated systems
A22: Minutes per 100 sf per day | B22: uloe_fp | C22: 1 | D22: min/100 sf/day
A23: Hours for manual removal of holding tank solids | B23: uloe_solids | C23: =2*8/(20*27) -> 0.02962962963 | D23: hours/cubic foot | E23: For systems using manual solids removal. Based on 20 cubic yards removed per day, doubled for transfer from tank to pad and then from pad to truck for disposal.
A24: Mangerial LOE as a percent of average technical labor | B24: Manager_percent | C24: 0.1
A25: Administrative LOE as a percent of average technical labor | B25: Clerical_percent | C25: 0.1
A27: Maintenance LOE assumptions
A28: For instruments (includes calibration) | B28: uloe_inst_maint | C28: 10 | D28: min/month
A29: For pumps | B29: uloe_pump_maint | C29: 30.25 | D29: hours/year | E29: Based on vendor recommended maintenance activities; applied to large, frequently operated pumps only
A30: For valves | B30: uloe_valve_maint | C30: 5 | D30: min/year | E30: Applied to main process valves only
A31: For chemical supply systems | B31: uloe_chem_maint | C31: 120 | D31: min/month
A33: Pump energy
A34: Residuals pump head | B34: res_pump_psi | C34: 25 | D34: psi
A35: Injection well pump head | B35: well_pump_psi | C35: 40 | D35: psi | E35: Typical discharge pressures 30 to 50 psi, but may be much larger, depending on local conditions (Mickley, 2006). If revised, review pump costs and maximum size available.
A37: Lighting and HVAC
A38: Lighting power per sf, low-quality buildings and sheds | B38: lighting_power_low | C38: 1 | D38: W/sf | E38: 1, 2, and 4 W/sf are the assumptions used for building capital costs.
A39: Lighting power per sf, mid-quality buildings | B39: lighting_power_mid | C39: 2 | D39: W/sf
A40: Lighting power per sf, high-quality buildings | B40: lighting_power_high | C40: 4 | D40: W/sf
A42: Ventilation air change rate for membrane & chemical cleaning systems | B42: Air_changes_contactor | C42: 3 | D42: air changes/hr
A43: Ventilation air change rate for pump room | B43: Air_changes_pump | C43: 20 | D43: air changes/hr | E43: Could be lower (annual average 3 changes/hr) in a northern climate
A44: Ventilation air change rate for pretreatment equipment | B44: Air_changes_chem_storage | C44: 2 | D44: air changes/hr
A45: Ventilation air change rate for offices | B45: Air_changes_office | C45: 2 | D45: air changes/hr
A46: Pressure drop across the fan | B46: Fan_pressure_drop | C46: 0.25 | D46: lbs/ft2
A47: Number of mechanical ventilation days per year first building (small system) | B47: fan_days_build1_small | C47: 90 | D47: days/year | E47: Number of days per year where natural ventilation is applicable cannot be greater than 365 days
A48: Number of mechanical ventilation days per year 2nd building (small system) | B48: fan_days_build2_small | C48: 90 | D48: days/year | E48: For small systems (<1 MGD)
A49: Number of mechanical ventilation days per year 3rd building (small system) | B49: fan_days_build3_small | C49: 90 | D49: days/year
A50: Number of mechanical ventilation days per year first building (medium system) | B50: fan_days_build1_medium | C50: 120 | D50: days/year | E50: For medium systems (1 - 10 MGD)
A51: Number of mechanical ventilation days per year 2nd building (medium system) | B51: fan_days_build2_medium | C51: 120 | D51: days/year
A52: Number of mechanical ventilation days per year 3rd building (medium system) | B52: fan_days_build3_medium | C52: 120 | D52: days/year
A53: Number of mechanical ventilation days per year first building (large system) | B53: fan_days_build1_large | C53: 185 | D53: days/year | E53: For large systems (> 10 MGD)
A54: Number of mechanical ventilation days per year 2nd building (large system) | B54: fan_days_build2_large | C54: 185 | D54: days/year
A55: Number of mechanical ventilation days per year 3rd building (large system) | B55: fan_days_build3_large | C55: 185 | D55: days/year
A57: R-value for walls | B57: R_wall | C57: 13 | D57: hr-sf-degF/BTU | E57: Assumes standard building materials. If higher R-value materials are desired, user may also need to adjust the cost of building materials in cl.xls
A58: R-value for ceilings | B58: R_ceiling | C58: 38 | D58: hr-sf-degF/BTU | E58: Assumes standard building materials. If higher R-value materials are desired, user may also need to adjust the cost of building materials in cl.xls
A59: Annual heating degree days | B59: heat_DD | C59: 4923 | D59: degree days | E59: Heating and cooling assumptions should be consistent with one another. Assumed values are for a climate that results in a total energy usage for heating and cooling equal to the national median.
A60: Annual cooling degree days | B60: cool_DD | C60: 1697 | D60: degree days | E60: Heating and cooling assumptions should be consistent with one another. Assumed values are for a climate that results in a total energy usage for heating and cooling equal to the national median.
A61: Heating ventilation/infiltration load | B61: heat_viload | C61: 168679 | D61: BTU/cfm | E61: Heating and cooling assumptions should be consistent with one another. Assumed values are for a climate that results in a total energy usage for heating and cooling equal to the national median.
A62: Cooling ventilation/infiltration load | B62: cool_viload | C62: 51771 | D62: BTU/cfm | E62: Heating and cooling assumptions should be consistent with one another. Assumed values are for a climate that results in a total energy usage for heating and cooling equal to the national median.
A63: Electric resistance heating efficiency | B63: resist_eff | C63: 0.98 | E63: See Appendix E
A64: Heat pump heating coefficient of performance | B64: COP | C64: 3.2 | E64: See Appendix E
A65: Natural gas non-condensing furnace efficiency | B65: gas_non_eff | C65: 0.8 | E65: See Appendix E
A66: Natural gas condensing furnace efficiency | B66: gas_eff | C66: 0.95 | E66: See Appendix E
A67: Standard oil furnace efficiency | B67: diesel_non_eff | C67: 0.78 | E67: See Appendix E
A68: Mid-efficiency oil furnace efficiency | B68: diesel_eff | C68: 0.85 | E68: See Appendix E
A69: Air conditioning EER | B69: EER | C69: 11 | D69: Whr/BTU | E69: See Appendix E
A70: Heat pump cooling EER | B70: hp_EER | C70: 10.1 | D70: Whr/BTU | E70: See Appendix E
A72: Heating Oil Heat Content | B72: diesel_heat_content | C72: 139000 | D72: BTU/gal | E72: U.S. DOE, Energy Information Administration.

Sheet Indirect Assumptions
A1: Default Assumptions for Indirect and Add-On Costs
A2: Users may change any of the cells in the Value column
A4: Assumption | B4: Range Name | C4: Value | D4: Units | E4: Guidance
A5: Permits
A6: Include Permit Costs? | B6: include_permits | C6: 1 | D6: <---enter 1 for yes, 0 for no
A7: Always include NEPA compliance costs? | B7: include_NEPA | C7: 0 | D7: <--- enter 1 for yes, 2 for no | E7: Default of 0 means NEPA compliance is included in the high component cost estimate only. Selecting 1 means NEPA compliance will be included in all estimates. Selecting 0 means NEPA compliance will never be included
A8: HCl strength to trigger RMP requirement | B8: HCl_strength_RMP | C8: 0.37 | E8: HCl storage thresholds that trigger a requirement for a risk management plan, per 40 CFR 68.130
A9: HCl quantity to trigger RMP requirement | B9: HCl_quant_RMP | C9: 15000 | D9: lbs
A11: Pilot Study
A12: Include pilot study costs? | B12: include_pilot | C12: 1 | D12: <---enter 1 for yes, 0 for no
A14: Mobilization and Demobilization
A15: Mobilization percentage for small systems | B15: mob_pct_small | C15: 0.05 | D15: of direct capital cost | E15: Typically 2-5% of the estimated construction cost. Enter 0% to exclude.
A16: Mobilization percentage for medium systems | B16: mob_pct_medium | C16: 0.04 | D16: of direct capital cost
A17: Mobilization percentage for large systems | B17: mob_pct_large | C17: 0.02 | D17: of direct capital cost
A18: Mobilization percentage for injection wells | B18: mob_pct_well | C18: 0.2 | D18: of direct capital cost | E18: Computed separately from the rest of mob/demob costs. Well costs are based on a regression in Mickley and Associates, Membrane Concentrate Disposal: Practices and Regulation, USBR Desalination and Water Purification Research and Development Program Report No. 123 (Second Edition), April 2006, with 20% mob/demob allowance excluded. This allowance adds in the rest of the cost.
A20: Architectural Fees for Treatment Building
A21: Include architectural fee? | B21: include_arch | C21: 1 | D21: <--- enter 1 for yes, 0 for no | E21: Must be added to building cost. Change for special considerations. Includes structural, mechanical, and electrical engineering for building only.
A22: Include architectural fee for small systems? | B22: include_arch_small | C22: 0 | D22: <--- enter 1 for yes, 0 for no
A24: Installation, Transportatation, and O&P
A25: Installation, Transportatation, and O&P percentage | B25: inst_pct | C25: 0 | D25: of direct capital cost | E25: Included in line item unit costs. Add a percentage for special considerations such as a remote site or high cost location.
A27: Sitework
A28: Include sitework costs? | B28: include_sitework | C28: 1 | D28: <--- enter 1 for yes, 0 for no
A30: Yard Piping
A31: Include yard piping costs? | B31: include_yardpipe | C31: 1 | D31: <--enter 1 for yes, 0 for no
A32: Frost depth | B32: frost | C32: 38 | D32: inches | E32: Should be consistent with (reflect same climate as) heating and cooling assumptions on O&M assumptions page. Assumptions are for St. Louis, Missouri.
A33: Minimum trench depth to top of pipe | B33: min_trench_depth | C33: 36 | D33: inches | E33: Peer reviewers recommend a minimum trench depth of 3 ft. US Army Corps of Engineers recommended minimum cover for distribution pipes of 2.5 ft in grassed areas, 3 ft if buried under pavement or roadways but not less than frost penetration depth (USACOE 1984)
A34: Soil density | B34: soil_dens | C34: 97 | D34: lb/cubic ft. | E34: Based on soil density of loamy sand (1.55 gm/cc)
A35: Coefficient of passive pressure | B35: Coeff_Kp | C35: 3
A36: Reduction factor | B36: Reduction | C36: 0.467
A37: Bedding depth below pipe | B37: bedding_depth | C37: 6 | D37: inches
A38: Bedding depth surrounding the pipe | B38: bedding_pct | C38: 0.25 | D38: of pipe diameter
A39: Trench inside angle | B39: trench_angle | C39: =RADIANS(45) -> 0.7853981634 | D39: radians
A40: Pipe length from water source to the boundary of the 10 foot buffer | B40: yard_in | C40: 0 | D40: feet | E40: Use if technology is first step in treatment process
A41: Pipe length the boundary of the 10 foot buffer to distribution network | B41: yard_out | C41: 0 | D41: feet | E41: Use if technology is last step in treatment process
A43: Geotechnical
A44: Include geotechnical costs for low cost systems? | B44: include_geo_low | C44: 0 | D44: <--- enter 1 for yes, 0 for no | E44: Note: geotechnical is always included with the septic system option, regardless of the numbers entered here
A45: Include geotechnical costs for medium cost systems? | B45: include_geo_medium | C45: 0 | D45: <--- enter 1 for yes, 0 for no
A46: Include geotechnical costs for high cost systems? | B46: include_geo_high | C46: 1 | D46: <--- enter 1 for yes, 0 for no
A47: Test pit length | B47: pit_length | C47: 4 | D47: feet
A48: Test pit width | B48: pit_width | C48: 4 | D48: feet
A49: Test pit depth | B49: pit_depth | C49: 7 | D49: feet
A50: Borehole depth | B50: bore_depth_p | C50: 10 | D50: feet
A51: Borehole depth for shallow basins | B51: bore_depth_min | C51: 25 | D51: feet
A52: Borehole depth for deep basins | B52: bore_depth_max | C52: 50 | D52: feet
A53: Technology footprint above which boreholes are needed | B53: bore_need | C53: 2000 | D53: square feet | E53: Small system geotechnical investigation can be completed with test pits, larger systems require boreholes
A54: Minimum number of boreholes | B54: min_holes | C54: 4
A55: Borehole needed every x square feet | B55: hole_per_sf | C55: 1000 | D55: square feet
A56: Boreholes per job | B56: hole_per_job | C56: 24 | D56: boreholes/job
A57: Linear feet bored per day | B57: hole_per_day | C57: 55.5 | D57: l.f./day | E57: RS Means Costworks 2001
A59: Standby Power
A60: Include standby power costs? | B60: include_standby | C60: 1 | D60: <--enter 1 for yes, 0 for no
A61: Include standby power costs for small systems? | B61: include_standby_small | C61: 0 | D61: <--- enter 1 for yes, 0 for no
A62: Design safety factor for standby power | B62: std_safety_factor | C62: 0 | E62: Default 0%. Apply a percentage to increase standby power requirements.
A63: Include heating in standby power | B63: need_heat | C63: 0 | D63: <--- enter 1 for yes, 0 for no | E63: If a system uses gas or diesel heat, heating will not be included, regardless of this assumption.
A64: Include cooling in standby power | B64: need_cool | C64: 0 | D64: <--- enter 1 for yes, 0 for no | E64: If both heating and cooling are included, standby power requirements will be based on the maximum of the two.
A65: Minimum standby power generator size | B65: min_standby | C65: 10 | D65: kW | E65: Minimum size for full standby generators
A67: Electrical (including yard wiring)
A68: Electrical percentage | B68: elect_pct | C68: 0.1 | D68: of direct cost | E68: Accounts for yard wiring and other electrical infrastructure. Some electrical included in building costs.
A70: Instrumentation and Control
A71: Instrumentation and control percentage | B71: i_c_pct | C71: 0 | D71: of direct cost | E71: Included as a direct cost line item.
A73: Contingency
A74: Include contingency costs for low cost systems? | B74: include_conting_low | C74: 0 | D74: <--- enter 1 for yes, 0 for no
A75: Include contingency costs for medium cost systems? | B75: include_conting_medium | C75: 0 | D75: <--- enter 1 for yes, 0 for no
A76: Include contingency costs for high cost systems? | B76: include_conting_high | C76: 1 | D76: <--- enter 1 for yes, 0 for no
A77: Technology complexity factor | B77: complexity | C77: 1.5 | E77: Technology-specific factor. See Appendices for details. Low complexity = 0.5; Average complexity = 1.0; High complexity = 1.5; Very high complexity = 2.0.
A79: Process Engineering
A80: Engineering percentage for small systems | B80: eng_pct_small | C80: 0.2 | D80: of direct capital cost | E80: Enter 0% to exclude.
A81: Engineering percentage for medium systems | B81: eng_pct_medium | C81: 0.12 | D81: of direct capital cost
A82: Engineering percentage for large systems | B82: eng_pct_large | C82: 0.08 | D82: of direct capital cost
A84: Miscellaneous Allowance
A85: Miscellaneous allowance percentage | B85: misc_pct | C85: 0.1 | D85: of direct capital and O&M costs | E85: Enter 0% to exclude.
A87: Legal, Fiscal, and Administrative
A88: Legal percentage | B88: legal_pct | C88: 0.02 | D88: of direct capital cost | E88: Enter 0% to exclude. Highly site-specific. Can range from 2-5% of equipment, installation, construction, electrical, and standby power. To estimate, add 5% to total estimated construction cost.
A90: Sales Tax
A91: Sales tax percentage | B91: tax_pct | C91: 0 | D91: of direct capital cost | E91: May be exempt if constructed with public funds. May be as high as 7.25% of equipment and construction, with national average 4.75%.
A93: Financing during Construction
A94: Financing percentage | B94: finance_pct | C94: 0.05 | D94: of direct capital cost | E94: Enter 0% to exclude. Typically assumed to be one year's interest on capital cost.
A95: Financing percentage for small systems | B95: finance_pct_small | C95: 0 | D95: of direct capital cost | E95: Small system construction assumed to take less than one year
A97: Construction Management and General Contractor Overhead
A98: Builder's risk insurance percentage | B98: br_ins_pct | C98: 0.0034 | E98: Enter 0% to exclude. 0.34% is national average rate. RSMeans Building Construction Cost Data 2009, reference section R01100-070
A99: Include performance bond cost? | B99: include_bond | C99: 1 | D99: <--- enter 1 for yes, 0 for no
A100: Include construction management cost? | B100: include_cm | C100: 1 | D100: <--- enter 1 for yes, 0 for no
A102: Concrete Pad
A103: Include concrete pad in total capital cost? | B103: include_pad | C103: 1 | D103: <--- enter 1 for yes, 0 for no
A105: Heating Table (1=include heating in buildings and O&M, 0 = do not include heating)
A106: Component Level | B106: Range Name | C106: System Size
C107: Small (<1 mgd) | D107: Medium (1-10 mgd) | E107: Large (>10 mgd)
A108: low cost | B108: heating_table | C108: 0 | D108: 1 | E108: 1
A109: mid cost | C109: 1 | D109: 1 | E109: 1
A110: high cost | C110: 1 | D110: 1 | E110: 1
A111: Buildings less than 500 ft2 (other than those used for chlorine storage)
A112: low cost | B112: heating_table_shed | C112: 0 | D112: 0 | E112: 1
A113: mid cost | C113: 0 | D113: 0 | E113: 1
A114: high cost | C114: 1 | D114: 1 | E114: 1
A116: Cooling Table (1=include cooling in buildings and O&M, 0 = do not include cooling)
A117: Component Level | B117: Range Name | C117: System Size
C118: Small (<1 mgd) | D118: Medium (1-10 mgd) | E118: Large (>10 mgd)
A119: low cost | B119: cooling_table | C119: 0 | D119: 0 | E119: 1
A120: mid cost | C120: 0 | D120: 1 | E120: 1
A121: high cost | C121: 1 | D121: 1 | E121: 1
A122: Buildings less than 500 ft2 (other than those used for chlorine storage)
A123: low cost | B123: cooling_table_shed | C123: 0 | D123: 0 | E123: 0
A124: mid cost | C124: 0 | D124: 0 | E124: 0
A125: high cost | C125: 0 | D125: 0 | E125: 0

Sheet Influent and Booster Pumping
A1: Influent and Booster Pumping Calculations
A3: Calculation | B3: Range Name | C3: Value | D3: Units | E3: Guidance
A4: Flow Rates
A5: Design Production Flow | B5: design_flow | C5: =(1-bp_pct)*IF(df_units="gpm",design_flow_I*24*60/1000000,design_flow_I) -> 0.03 | D5: MGD | E5: From Input
A6: Average Production Flow | B6: average_flow | C6: =(1-bp_pct)*IF(af_units="gpm",average_flow_I*24*60/1000000,IF(af_units="fraction of design flow",average_flow_I*design_flow,average_flow_I)) -> 0.007 | D6: MGD | E6: From Input
A7: Design Production Flow Rate | B7: design_flow_rate | C7: =design_flow*1000000/(24*60) -> 20.83333333 | D7: gpm | E7: Design flow expressed in gpm
A8: Average Production Flow Rate | B8: average_flow_rate | C8: =average_flow*1000000/(24*60) -> 4.861111111 | D8: gpm | E8: Average flow expressed in gpm
A9: Design Bypass Flow Rate | B9: bp_flow_rate | C9: =design_flow_rate*bp_pct/(1-bp_pct) -> 0 | D9: gpm
A10: Average Bypass Flow Rate | B10: bp_flow_rate_avg | C10: =average_flow_rate*bp_pct/(1-bp_pct) -> 0 | D10: gpm
A12: Design Influent Flow | B12: design_inflow | C12: =design_flow/recovery_rate -> 0.04301714103 | D12: MGD
A13: Average Influent Flow | B13: average_inflow | C13: =average_flow/recovery_rate -> 0.01003733291 | D13: MGD
A14: Design Influent Flow Rate | B14: design_inflow_rate | C14: =design_flow_rate/recovery_rate -> 29.87301461 | D14: gpm
A15: Average Influent Flow Rate | B15: average_inflow_rate | C15: =average_flow_rate/recovery_rate -> 6.970370075 | D15: gpm
A17: Influent Pumping
A18: Maximum influent pump size, RO/NF to 100 psi | B18: max_pump_size_ro100 | C18: =VLOOKUP(10^6,ro100_pump_cost_cl,1)-0.1 -> 630 | E18: These are the largest pump flows for which costs are available, in each pressure range.
A19: Maximum influent pump size, RO/NF to 150 psi | B19: max_pump_size_ro150 | C19: =VLOOKUP(10^6,ro150_pump_cost_cl,1)-0.1 -> 2000
A20: Maximum influent pump size, RO/NF to 200 psi | B20: max_pump_size_ro200 | C20: =VLOOKUP(10^6,ro200_pump_cost_cl,1)-0.1 -> 2000 | D20: gpm
A21: Maximum influent pump size, RO to 250 psi | B21: max_pump_size_ro250 | C21: =VLOOKUP(10^6,ro250_pump_cost_cl,1)-0.1 -> 2000 | D21: gpm
A22: Maximum influent pump size, RO to 300 psi | B22: max_pump_size_ro300 | C22: =VLOOKUP(10^6,ro300_pump_cost_cl,1)-0.1 -> 300
A23: Maximum influent pump size, RO to 350 psi | B23: max_pump_size_ro350 | C23: =VLOOKUP(10^6,ro350_pump_cost_cl,1)-0.1 -> 350
A24: Maximum influent pump size, RO to 500 psi | B24: max_pump_size_ro500 | C24: =VLOOKUP(10^6,ro500_pump_cost_cl,1)-0.1 -> 185 | D24: gpm | E24: At 500 psi, pumps greater than 200 gpm are economically inefficient, because a switch to positive displacement pumps is required.
A25: Feed water pump head (psi) | B25: inf_pump_psi | C25: =(P_feed_try+influent_headloss) -> 104.3961723 | D25: psi
A26: Cost table for influent pumps | B26: inf_pump_class | C26: =IF(inf_pump_psi<=100,"ro100",IF(inf_pump_psi<=150,"ro150",IF(inf_pump_psi<=200,"ro200",IF(inf_pump_psi<=250,"ro250",IF(inf_pump_psi<=300,"ro300",IF(inf_pump_psi<=350,"ro350",IF(inf_pump_psi<=500,"ro500","N/A"))))))) -> ro150 | E26: According to the pump head, determines which cost table or equation we will use for influent pumps.
A27: Choose Indicator for Influent pumps | B27: inf_pump_choose | C27: =IF(inf_pump_psi<=100,1,IF(inf_pump_psi<=150,2,IF(inf_pump_psi<=200,3,IF(inf_pump_psi<=250,4,IF(inf_pump_psi<=300,5,IF(inf_pump_psi<=350,6,IF(inf_pump_psi<=500,7,"N/A"))))))) -> 2
A28: Max size for this class | B28: inf_max_pump_size | C28: =INDIRECT("max_pump_size_"&inf_pump_class) -> 2000 | D28: gpm
A29: Feed pump water rating for sizing | B29: inf_pump_gpm_sizing | C29: =MIN(MAX(average_inflow_rate,design_inflow_rate/2)*(1+pump_safety_factor),inf_max_pump_size) -> 18.67063413 | D29: gpm | E29: Used only to determine the number of influent pumps.
A30: Number of feed water pumps | B30: inf_pumps | C30: =ROUNDUP(design_inflow_rate*(1+pump_safety_factor)/inf_pump_gpm_sizing,0) -> 2 | D30: units
A31: Feed water pump rating (gpm) | B31: inf_pump_gpm | C31: =design_inflow_rate*(1+pump_safety_factor)/inf_pumps -> 18.67063413 | D31: gpm
A32: Feed water pump rating (MGD) | B32: inf_pump_rating | C32: =inf_pump_gpm*24*60/1000000 -> 0.02688571315 | D32: MGD
A33: Feed water pump design horsepower | B33: inf_pump_hp | C33: =design_inflow_rate*inf_pump_psi/inf_pumps/pump_effcy/14.7*33.9*8.34/550/60 -> 1.211732738 | D33: hp
A34: Total feed water pumps | B34: total_inf_pumps | C34: =inf_pumps+NRD_inf_pumps -> 2 | D34: units | E34: Includes standby pumps if specified
A36: Membrane Booster Pumps
A37: Into Stage 2
A38: Booster pump head (psi) | B38: boost_pump_2_psi | C38: =IF(P_boost_2_try>0,P_boost_2_try+boost_headloss,0) -> 0 | D38: psi | E38: includes safety factor and head loss
A39: Cost table for stage 2 booster pumps | B39: boost_2_class | C39: =IF(boost_pump_2_psi<=100,"ro100",IF(boost_pump_2_psi<=150,"ro150",IF(boost_pump_2_psi<=200,"ro200",IF(boost_pump_2_psi<=250,"ro250",IF(boost_pump_2_psi<=300,"ro300",IF(boost_pump_2_psi<=350,"ro350",IF(boost_pump_2_psi<=500,"ro500","N/A"))))))) -> ro100 | E39: According to the pump head, determines which cost table or equation we will use for booster pumps.
A40: Choose indicator for stage 2 booster pumps | B40: boost_2_pump_choose | C40: =IF(boost_pump_2_psi<=100,1,IF(boost_pump_2_psi<=150,2,IF(boost_pump_2_psi<=200,3,IF(boost_pump_2_psi<=250,4,IF(boost_pump_2_psi<=300,5,IF(boost_pump_2_psi<=350,6,IF(boost_pump_2_psi<=500,7,"N/A"))))))) -> 1
A41: Max size for this class | B41: boost_2_max_pump_size | C41: =INDIRECT("max_pump_size_"&boost_2_class) -> 630 | D41: gpm
A42: Flow to be boosted | B42: boost_flow_2 | C42: =IF(P_boost_2_try>0,(stg_2 feed_flow_v)*num_vess_2_out,0) -> 0 | D42: gpm | E42: total flow feeding into all stage 2 pressure vessels
A43: Number of booster pumps | B43: boost_pumps_2_op | C43: =ROUNDUP(boost_flow_2*(1+pump_safety_factor)/boost_2_max_pump_size,0) -> 0 | D43: units | E43: based on the maximum available pump size
A44: Booster pump rating (gpm) | B44: boost_pump_2_gpm | C44: =IF(boost_flow_2>0,boost_flow_2*(1+pump_safety_factor)/boost_pumps_2_op,0) -> 0 | D44: gpm
A45: Booster pump rating (MGD) | B45: boost_pump_2_mgd | C45: =boost_pump_2_gpm*24*60/1000000 -> 0 | D45: MGD
A46: Booster pump design horsepower | B46: boost_pump_2_hp | C46: =boost_pump_2_gpm*boost_pump_2_psi/pump_effcy/14.7*33.9*8.34/550/60 -> 0 | D46: hp
A47: Total booster pumps for stage 2 | B47: boost_pumps_2_tot | C47: =IF(boost_flow_2>0,boost_pumps_2_op+NRD_inf_pumps,0) -> 0 | D47: units | E47: Includes standby pumps
A49: Into Stage 3
A50: Booster pump head (psi) | B50: boost_pump_3_psi | C50: =IF(P_boost_3_try>0,P_boost_3_try+boost_headloss,0) -> 0 | D50: psi | E50: includes safety factor and head loss
A51: Cost table for stage 3 booster pumps | B51: boost_3_class | C51: =IF(boost_pump_3_psi<=100,"ro100",IF(boost_pump_3_psi<=150,"ro150",IF(boost_pump_3_psi<=200,"ro200",IF(boost_pump_3_psi<=250,"ro250",IF(boost_pump_3_psi<=300,"ro300",IF(boost_pump_3_psi<=350,"ro350",IF(boost_pump_3_psi<=500,"ro500","N/A"))))))) -> ro100 | E51: According to the pump head, determines which cost table or equation we will use for booster pumps.
A52: Choose indicator for stage 3 booster pumps | B52: boost_3_pump_choose | C52: =IF(boost_pump_3_psi<=100,1,IF(boost_pump_3_psi<=150,2,IF(boost_pump_3_psi<=200,3,IF(boost_pump_3_psi<=250,4,IF(boost_pump_3_psi<=300,5,IF(boost_pump_3_psi<=350,6,IF(boost_pump_3_psi<=500,7,"N/A"))))))) -> 1
A53: Max size for this class | B53: boost_3_max_pump_size | C53: =INDIRECT("max_pump_size_"&boost_3_class) -> 630 | D53: gpm
A54: Flow to be boosted | B54: boost_flow_3 | C54: =IF(P_boost_3_try>0,(stg_3 feed_flow_v)*num_vess_3_out,0) -> 0 | D54: gpm | E54: total flow feeding into all stage 3 pressure vessels
A55: Number of booster pumps | B55: boost_pumps_3_op | C55: =ROUNDUP(boost_flow_3*(1+pump_safety_factor)/boost_3_max_pump_size,0) -> 0 | D55: units | E55: based on the maximum available pump size
A56: Booster pump rating (gpm) | B56: boost_pump_3_gpm | C56: =IF(boost_flow_3>0,boost_flow_3*(1+pump_safety_factor)/boost_pumps_3_op,0) -> 0 | D56: gpm
A57: Booster pump rating (MGD) | B57: boost_pump_3_mgd | C57: =boost_pump_3_gpm*24*60/1000000 -> 0 | D57: MGD
A58: Booster pump design horsepower | B58: boost_pump_3_hp | C58: =boost_pump_3_gpm*boost_pump_3_psi/pump_effcy/14.7*33.9*8.34/550/60 -> 0 | D58: hp
A59: Total booster pumps for stage 3 | B59: boost_pumps_3_tot | C59: =IF(boost_flow_3>0,boost_pumps_3_op+NRD_inf_pumps,0) -> 0 | D59: units | E59: Includes standby pumps
A61: Booster Pumping for Bypass Line
A62: Maximum bypass pump size | B62: max_bp_pump_size | C62: =VLOOKUP(10^6,pump_cost_cl,1)-1 -> 10000 | D62: gpm | E62: Largest size in the cost database for a booster pump
A63: Bypass pump rating for sizing | B63: bp_pump_rating_sizing | C63: =MIN(MAX(bp_flow_rate_avg,bp_flow_rate/2)*(1+pump_safety_factor),max_bp_pump_size) -> 0 | D63: gpm | E63: Used only to determine the number of bypass pumps.
A64: Number of bypass pumps | B64: op_num_bp_pumps | C64: =IF(bp_flow_rate=0,0,ROUNDUP(bp_flow_rate*(1+pump_safety_factor)/bp_pump_rating_sizing,0)) -> 0 | D64: units
A65: Bypass pump rating | B65: bp_pump_rating | C65: =IF(bp_flow_rate=0,0,bp_flow_rate/op_num_bp_pumps) -> 0 | D65: gpm
A66: Total number of bypass pumps | B66: tot_num_bp_pumps | C66: =IF(bp_flow_rate=0,0,op_num_bp_pumps+NRD_bp_pumps) -> 0 | D66: units | E66: including standby pumps
A68: Pump Costs from Lookup Tables | E68: We look up costs here in order to simplify formulas on the output sheet. This section applies to lookup tables (curve=0 or blank). If costs are generated from cost equations (curve=1), pump costs are generated the same way as for other components.
A69: Influent pump pressure | B69: Table range name | C69: Class lookup | D69: Flow | E69: Cost
A70: 100 psi | B70: inf_pump_lkp_costs | C70: ="ro"&LEFT(A70,3) -> ro100 | D70: =VLOOKUP(inf_pump_gpm,ro100_pump_cost_cl,2) -> 24 | E70: =VLOOKUP(inf_pump_gpm,ro100_pump_cost_cl,3) -> 2617.881714
A71: 150 psi | C71: ="ro"&LEFT(A71,3) -> ro150 | D71: =VLOOKUP(inf_pump_gpm,ro150_pump_cost_cl,2) -> 20 | E71: =VLOOKUP(inf_pump_gpm,ro150_pump_cost_cl,3) -> 3028.040717
A72: 200 psi | C72: ro200 | D72: =VLOOKUP(inf_pump_gpm,ro200_pump_cost_cl,2) -> 20 | E72: =VLOOKUP(inf_pump_gpm,ro200_pump_cost_cl,3) -> 3442.207789
A73: 250 psi | C73: ro250 | D73: =VLOOKUP(inf_pump_gpm,ro250_pump_cost_cl,2) -> 20 | E73: =VLOOKUP(inf_pump_gpm,ro250_pump_cost_cl,3) -> 3442.207789
A74: 300 psi | C74: ro300 | D74: =VLOOKUP(inf_pump_gpm,ro300_pump_cost_cl,2) -> 26 | E74: =VLOOKUP(inf_pump_gpm,ro300_pump_cost_cl,3) -> 5439.644693
A75: 350 psi | C75: ro350 | D75: =VLOOKUP(inf_pump_gpm,ro350_pump_cost_cl,2) -> 21 | E75: =VLOOKUP(inf_pump_gpm,ro350_pump_cost_cl,3) -> 5439.644693
A76: 500 psi | C76: ro500 | D76: =VLOOKUP(inf_pump_gpm,ro500_pump_cost_cl,2) -> 33 | E76: =VLOOKUP(inf_pump_gpm,ro500_pump_cost_cl,3) -> 16287.18141
A78: Stage 2 booster pumps pressure | B78: Table range name | C78: Class lookup | D78: Flow | E78: Cost
A79: 100 psi | B79: boost_2_pump_lkp_costs | C79: ="ro"&LEFT(A79,3) -> ro100 | D79: =VLOOKUP(boost_pump_2_gpm,ro100_pump_cost_cl,2) -> 5 | E79: =VLOOKUP(boost_pump_2_gpm,ro100_pump_cost_cl,3) -> 2536.295728
A80: 150 psi | C80: ="ro"&LEFT(A80,3) -> ro150 | D80: =VLOOKUP(boost_pump_2_gpm,ro150_pump_cost_cl,2) -> 6 | E80: =VLOOKUP(boost_pump_2_gpm,ro150_pump_cost_cl,3) -> 3708.137061
A81: 200 psi | C81: ro200 | D81: =VLOOKUP(boost_pump_2_gpm,ro200_pump_cost_cl,2) -> 9 | E81: =VLOOKUP(boost_pump_2_gpm,ro200_pump_cost_cl,3) -> 4029.59299
A82: 250 psi | C82: ro250 | D82: =VLOOKUP(boost_pump_2_gpm,ro250_pump_cost_cl,2) -> 5 | E82: =VLOOKUP(boost_pump_2_gpm,ro250_pump_cost_cl,3) -> 4362.575227
A83: 300 psi | C83: ro300 | D83: =VLOOKUP(boost_pump_2_gpm,ro300_pump_cost_cl,2) -> 6 | E83: =VLOOKUP(boost_pump_2_gpm,ro300_pump_cost_cl,3) -> 4694.276763
A84: 350 psi | C84: ro350 | D84: =VLOOKUP(boost_pump_2_gpm,ro350_pump_cost_cl,2) -> 4 | E84: =VLOOKUP(boost_pump_2_gpm,ro350_pump_cost_cl,3) -> 2993.505953
A85: 500 psi | C85: ro500 | D85: =VLOOKUP(boost_pump_2_gpm,ro500_pump_cost_cl,2) -> 15 | E85: =VLOOKUP(boost_pump_2_gpm,ro500_pump_cost_cl,3) -> 5173.258904
A87: Stage 3 booster pump pressure | B87: Table range name | C87: Class lookup | D87: Flow | E87: Cost
A88: 100 psi | B88: boost_3_pump_lkp_costs | C88: ="ro"&LEFT(A88,3) -> ro100 | D88: =VLOOKUP(boost_pump_3_gpm,ro100_pump_cost_cl,2) -> 5 | E88: =VLOOKUP(boost_pump_3_gpm,ro100_pump_cost_cl,3) -> 2536.295728
A89: 150 psi | C89: ="ro"&LEFT(A89,3) -> ro150 | D89: =VLOOKUP(boost_pump_3_gpm,ro150_pump_cost_cl,2) -> 6 | E89: =VLOOKUP(boost_pump_3_gpm,ro150_pump_cost_cl,3) -> 3708.137061
A90: 200 psi | C90: ro200 | D90: =VLOOKUP(boost_pump_3_gpm,ro200_pump_cost_cl,2) -> 9 | E90: =VLOOKUP(boost_pump_3_gpm,ro200_pump_cost_cl,3) -> 4029.59299
A91: 250 psi | C91: ro250 | D91: =VLOOKUP(boost_pump_3_gpm,ro250_pump_cost_cl,2) -> 5 | E91: =VLOOKUP(boost_pump_3_gpm,ro250_pump_cost_cl,3) -> 4362.575227
A92: 300 psi | C92: ro300 | D92: =VLOOKUP(boost_pump_3_gpm,ro300_pump_cost_cl,2) -> 6 | E92: =VLOOKUP(boost_pump_3_gpm,ro300_pump_cost_cl,3) -> 4694.276763
A93: 350 psi | C93: ro350 | D93: =VLOOKUP(boost_pump_3_gpm,ro350_pump_cost_cl,2) -> 4 | E93: =VLOOKUP(boost_pump_3_gpm,ro350_pump_cost_cl,3) -> 2993.505953
A94: 500 psi | C94: ro500 | D94: =VLOOKUP(boost_pump_3_gpm,ro500_pump_cost_cl,2) -> 15 | E94: =VLOOKUP(boost_pump_3_gpm,ro500_pump_cost_cl,3) -> 5173.258904

Sheet Pretreatment
A1: Pretreatment Chemical Usage Calculations
A3: Calculation | B3: Range Name | C3: Value | D3: Units | E3: Guidance
A4: Maximum chemical storage tank size | B4: max_chem_tank_size | C4: =MAX(VLOOKUP(10^6,pl_cst_cost_cl,1)-1,VLOOKUP(10^6,fg_cst_cost_cl,1)-1,VLOOKUP(10^6,ss_cst_cost_cl,1)-1) -> 30000 | D4: gallons | E4: The largest size for which costs are available.
A5: Maximum chemical storage tank size excluding stainless steel | B5: max_chem_tank_size_noSS | C5: =MAX(VLOOKUP(10^6,pl_cst_cost_cl,1)-1,VLOOKUP(10^6,fg_cst_cost_cl,1)-1) -> 30000 | D5: gallons | E5: The largest size for which costs are available not including stainless, which is not compatible with hydrochloric acid and sulfuric acid).
A6: Maximum chemical metering pump size | B6: max_cm_pump_size | C6: =MAX(VLOOKUP(10^6,ss_empump_cost_cl,1)-0.01,VLOOKUP(10^6,ss_mmpump_cost_cl,1)-0.01,VLOOKUP(10^6,pvc_empump_cost_cl,1)-0.01,VLOOKUP(10^6,pvc_mmpump_cost_cl,1)-0.01) -> 360 | D6: gph | E6: The largest size for which costs are available.
A7: Maximum chemical metering pump size excluding stainless steel | B7: max_cm_pump_size_noSS | C7: =MAX(,VLOOKUP(10^6,pvc_empump_cost_cl,1)-0.01,VLOOKUP(10^6,pvc_mmpump_cost_cl,1)-0.01) -> 108 | D7: gph | E7: The largest size for which costs are available not including stainless, which is not compatible with hydrochloric acid and sulfuric acid).
A8: Acid dose per day (at peak flow) | B8: acid_dose | C8: =IF(pretreat_acid=0,0,CHOOSE(pretreat_acid,HCl_feed_conc/acid_strength_HCl,H2SO4_feed_conc/acid_strength_H2SO4)) -> 19.48686468 | D8: mg/L | E8: Computed based on feed water analysis and target pH for treated feed.
A9: Acid density | B9: acid_density | C9: =IF(pretreat_acid=0,0,CHOOSE(pretreat_acid,VLOOKUP(acid_strength_HCl,hcl_table_cl,2),VLOOKUP(acid_strength_H2SO4,h2so4_table_cl,2))*8) -> 13.6344 | D9: lbs/gal
A11: Use antiscalant? | B11: use_antiscalant | C11: =IF(LEN(use_antiscalant_I)=0,0,VLOOKUP(use_antiscalant_I,use_antiscalant_table,2,FALSE)) -> 2 | D11: 1 for no, 2 for basic, 3 for premium
A12: Antiscalant dose in feed | B12: anti_dose | C12: =anti_dose_conc*(1-target_recovery) -> 4.5 | D12: mg/L | E12: Based on target dose in concentrate (adjustable in CDA module) and target recovery, assuming all antiscalant ends up in the concentrate.
A14: Acid used per day (at peak flow) | B14: acid_day | C14: =IF(pretreat_acid=0,0,acid_dose*8.34*design_inflow/acid_density) -> 0.512759284 | D14: gal
A15: Antiscalant used per day (at peak flow) | B15: anti_day | C15: =IF(use_antiscalant>1,anti_dose*8.34*design_inflow/anti_density,0) -> 0.1614433303 | D15: gal
A17: Pretreatment acid in storage | B17: init_acid | C17: =acid_day*cstore_days*average_flow/design_flow -> 3.589314988 | D17: gal
A18: Pretreatment acid in storage in pounds | B18: init_acid_lbs | C18: =acid_day*cstore_days*acid_density*average_flow/design_flow -> 48.93815627 | D18: lbs
A19: Number of acid tanks | B19: acid_tanks | C19: =ROUNDUP(init_acid/max_chem_tank_size_noSS,0) -> 1
A20: Acid tank volume | B20: acid_tank_size | C20: =IF(acid_day=0,0,ROUNDUP(init_acid/acid_tanks,0)) -> 4 | D20: gal
A21: Antiscalant in storage | B21: init_anti | C21: =anti_day*cstore_days*average_flow/design_flow -> 1.130103312 | D21: gal
A22: Antiscalant in storage in pounds | B22: init_anti_lbs | C22: =anti_day*cstore_days*anti_density*average_flow/design_flow -> 11.30103312 | D22: lbs
A23: Number of antiscalant tanks | B23: anti_tanks | C23: =ROUNDUP(init_anti/max_chem_tank_size,0) -> 1
A24: Antiscalant tank volume | B24: anti_tank_size | C24: =IF(anti_day=0,0,ROUNDUP(init_anti/anti_tanks,0)) -> 2 | D24: gal
A26: Number of acid metering pumps | B26: acid_mpumps | C26: =IF(acid_day=0,0,ROUNDUP(acid_day/24*(1+pump_safety_factor)/max_cm_pump_size_noSS,0)+NRD_acid_mpumps) -> 2
A27: Acid metering pump rating | B27: acid_mpump_rating | C27: =IF(acid_day=0,0,MAX(min_chem_flow,acid_day/24*(1+pump_safety_factor)/(acid_mpumps-NRD_acid_mpumps))) -> 0.13 | D27: gph
A28: Number of antiscalant metering pumps | B28: anti_mpumps | C28: =IF(anti_day=0,0,ROUNDUP(anti_day/24*(1+pump_safety_factor)/max_cm_pump_size,0)+NRD_anti_mpumps) -> 2
A29: Antiscalant metering pump rating | B29: anti_mpump_rating | C29: =IF(anti_day=0,0,MAX(min_chem_flow,anti_day/24*(1+pump_safety_factor)/(anti_mpumps-NRD_anti_mpumps))) -> 0.13 | D29: gph
A31: Maximum flow per cartridge filter | B31: flow_per_cart | C31: =VLOOKUP(10^6, cart_cost_cl,1)-0.001 -> 2.88 | D31: MGD
A32: Number of active cartridge filters | B32: active_filters | C32: =MAX(ROUNDUP(design_inflow/flow_per_cart,0),IF(design_flow>=1,min_cart,0)) -> 1
A33: Number of redundant cartridge filters | B33: NRD_filters | C33: =init_NRD_cart+ROUNDDOWN(design_inflow/addl_redund_cart_per_flow,0) -> 1
A34: Total number of cartridge filters | B34: num_filters | C34: =active_filters+NRD_filters -> 2
A35: Flow per filter | B35: filter_size | C35: =design_inflow/active_filters -> 0.04301714103 | D35: MGD
A36: Filter length | B36: filter_len | C36: =VLOOKUP(filter_size,cart_dim_table_cl,5) -> 1.25 | D36: ft
A37: Filter width | B37: filter_wid | C37: =VLOOKUP(filter_size,cart_dim_table_cl,6) -> 1.25 | D37: ft
A38: Elements per filter | B38: filter_elements | C38: =VLOOKUP(filter_size,cart_dim_table_cl,7) -> 1 | D38: elements/housing
A40: Acid day tank storage volume required (based on design flow) | B40: acid_day_tank_vol_needed | C40: =IF(pretreat_acid=0,0,acid_dose*8.34*design_inflow/acid_density) -> 0.512759284 | D40: gallons
A41: Number of acid day tanks | B41: acid_day_tanks | C41: =IF(acid_day_tank_vol_needed<day_tank_needed,0,ROUNDUP(acid_day_tank_vol_needed/max_chem_tank_size_noSS,0)) -> 0 | D41: units
A42: Volume of acid day tanks | B42: acid_day_tank_vol | C42: =IF(acid_day_tanks=0,0,ROUNDUP(acid_day_tank_vol_needed/acid_day_tanks,0)) -> 0 | D42: gallons
A43: Antiscalant day tank storage volume required (based on design flow) | B43: anti_day_tank_vol_needed | C43: =IF(use_antiscalant>1,anti_dose*8.34*design_inflow/anti_density,0) -> 0.1614433303 | D43: gallons
A44: Number of antiscalant day tanks | B44: anti_day_tanks | C44: =IF(anti_day_tank_vol_needed<day_tank_needed,0,ROUNDUP(anti_day_tank_vol_needed/max_chem_tank_size,0)) -> 0 | D44: units
A45: Volume of antiscalant day tanks | B45: anti_day_tank_vol | C45: =IF(anti_day_tanks=0,0,ROUNDUP(anti_day_tank_vol_needed/anti_day_tanks,0)) -> 0 | D45: gallons
A47: Antiscalant tank mixers | E47: Because concentrated acid is injected directly (without dilution), no acid mixers are included
A48: Maximum chemical tank mixer horsepower | B48: cmix_hp_max | C48: =MAX(VLOOKUP(10^6,port_mix_cost_cl,1)-0.1,VLOOKUP(10^6,mount_mix_cost_cl,1)-0.1,VLOOKUP(10^6,imp_mix_cost_cl,1)-0.1) -> 20 | D48: hp
A49: Mixers per storage tank | B49: cmix_per_tank | C49: =IF(AND(include_cmix=1,anti_tanks<>0),ROUNDUP(anti_tank_size/1000*cmix_hp_per/cmix_hp_max,0),0) -> 0 | D49: units
A50: Number of storage tank mixers | B50: cmixers | C50: =anti_tanks*cmix_per_tank -> 0 | D50: units
A51: Mixer size for storage tanks | B51: cmix_size | C51: =IF(cmixers<>0,MAX(min_cmix_hp,anti_tank_size/1000*cmix_hp_per/cmix_per_tank),0) -> 0 | D51: hp
A52: Mixers per day tank | B52: dmix_per_tank | C52: =IF(AND(include_cmix=1,anti_day_tanks<>0),ROUNDUP(anti_day_tank_vol/1000*cmix_hp_per/cmix_hp_max,0),0) -> 0 | D52: units
A53: Number of day tank mixers | B53: dmixers | C53: =anti_day_tanks*dmix_per_tank -> 0 | D53: units
A54: Mixer size for day tanks | B54: dmix_size | C54: =IF(dmixers<>0,MAX(min_cmix_hp,anti_day_tank_vol/1000*cmix_hp_per/dmix_per_tank),0) -> 0 | D54: hp
A56: Sulfuric Acid Purchasing | E56: If hydrochloric acid is used for pretreatment, that purchase quantity is evaluated along with hydrochloric acid for cleaning
A57: Sulfuric acid stored | C57: =IF(pretreat_acid=2,init_acid_lbs,0) -> 48.93815627 | D57: lbs
A58: Quantity required for large quantity purchase | C58: =VLOOKUP("Sulfuric Acid - Large Qty",chem_break_table_cl,2,FALSE) -> 28427.724 | D58: lbs | E58: #N/A indicates that price data do not depend on volume purchased.
A59: Quantity required for mid quantity purchase | C59: =VLOOKUP("Sulfuric Acid - Mid Qty",chem_break_table_cl,2,FALSE) -> 28427.724 | D59: lbs | E59: #N/A indicates that price data do not depend on volume purchased.
A60: Quantity required for small quantity purchase | C60: =VLOOKUP("Sulfuric Acid - Small Qty",chem_break_table_cl,2,FALSE) -> 0 | D60: lbs | E60: #N/A indicates that price data do not depend on volume purchased.
A61: Purchase Type | B61: sulfuric_purchase | C61: =IF(AND(ISNA(C58),ISNA(C59),ISNA(C60)),"",IF(C57>=C58," - Large Qty",IF(C57>=C59," - Mid Qty"," - Small Qty"))) -> - Small Qty | E61: Returns descriptive term based on volume of each purchase for use in determining pricing. Blank indicates that price data do not depend on volume purchased.
A63: Antiscalant Purchasing
A64: Quantity required for large quantity purchase | C64: =VLOOKUP(CHOOSE(use_antiscalant,"","Antiscalant - Basic","Antiscalant - Premium")&" - Large Qty",chem_break_table_cl,2,FALSE) ->  | D64: units | E64: #N/A indicates that price data do not depend on volume purchased.
A65: Quantity required for mid quantity purchase | C65: =VLOOKUP(CHOOSE(use_antiscalant,"","Antiscalant - Basic","Antiscalant - Premium")&" - Mid Qty",chem_break_table_cl,2,FALSE) ->  | D65: units | E65: #N/A indicates that price data do not depend on volume purchased.
A66: Quantity required for small quantity purchase | C66: =VLOOKUP(CHOOSE(use_antiscalant,"","Antiscalant - Basic","Antiscalant - Premium")&" - Small Qty",chem_break_table_cl,2,FALSE) ->  | D66: units | E66: #N/A indicates that price data do not depend on volume purchased.
A67: Purchase Type | B67: anti_purchase | C67: =IF(AND(ISNA(C64),ISNA(C65),ISNA(C66)),"",IF(init_anti_lbs>=C64," - Large Qty",IF(init_anti_lbs>=C65," - Mid Qty"," - Small Qty"))) ->  | E67: Returns descriptive term based on volume of each purchase for use in determining pricing. Blank indicates that price data do not depend on volume purchased.
A69: Secondary Containment for Acid Storage Tanks
A70: Minimum volume required | B70: acid_st_cont_volume | C70: =MAX(acid_tanks*acid_tank_size*sec_cont_pct_of_total,acid_tank_size*sec_cont_pct_of_largest)/7.48 -> 0.5882352941 | D70: cubic feet | E70: 7.48 converts gallons to cubic feet
A71: Footprint available | B71: acid_st_cont_fp | C71: =IF(acid_tanks=0,0,acid_tank_fp-acid_tanks*PI()*(acid_tank_diam/2)^2) -> 8.214601837 | D71: square feet | E71: Total footprint minus displacement by tanks themselves
A72: Curb height required | B72: acid_st_curb_height | C72: =IF(acid_tanks=0,0,acid_st_cont_volume/acid_st_cont_fp+sec_cont_freeboard/12) -> 0.5716084974 | D72: feet
A73: Curb thickness | B73: acid_st_curb_thick | C73: =IF(acid_tanks=0,0,MIN(sec_cont_max_thick,acid_st_curb_height)) -> 0.5716084974 | D73: feet
A74: Curb length (long side) | B74: acid_st_curb_len_long | C74: =IF(acid_tanks=0,0,acid_tanks*acid_tank_diam+2*space_at+(acid_tanks-1)*space_at+2*acid_st_curb_thick) -> 4.143216995 | D74: feet
A75: Curb length (short side) | B75: acid_st_curb_len_short | C75: =IF(acid_tanks=0,0,acid_tank_diam+2*space_at) -> 3 | D75: feet
A76: Curb concrete volume | B76: acid_st_curb_concrete | C76: =IF(acid_tanks=0,0,ROUNDUP((acid_st_curb_len_long*2+acid_st_curb_len_short*2)*acid_st_curb_height*acid_st_curb_thick/27,0)) -> 1 | D76: cubic yards | E76: 27 converts cubic feet to cubic yards
A77: Chemical resistant coating required | B77: acid_st_coating_gal | C77: =IF(acid_tanks=0,0,ROUNDUP((acid_tank_fp+2*(acid_st_curb_len_long-2*acid_st_curb_thick)*acid_st_curb_height+2*acid_st_curb_len_short*acid_st_curb_height)/sec_cont_coating_cvg,0)) -> 1 | D77: gallons | E77: Covers total footprint plus inside surface and top of curbs
A79: Secondary Containment for Acid Day Tanks
A80: Minimum volume required | B80: acid_dt_cont_volume | C80: =MAX(acid_day_tanks*acid_day_tank_vol*sec_cont_pct_of_total,acid_day_tank_vol*sec_cont_pct_of_largest)/7.48 -> 0 | D80: cubic feet | E80: 7.48 converts gallons to cubic feet
A81: Footprint available | B81: acid_dt_cont_fp | C81: =IF(acid_day_tanks=0,0,acid_day_tank_fp-acid_day_tanks*PI()*(acid_dt_diam/2)^2) -> 0 | D81: square feet | E81: Total footprint minus displacement by tanks themselves
A82: Curb height required | B82: acid_dt_curb_height | C82: =IF(acid_day_tanks=0,0,acid_dt_cont_volume/acid_dt_cont_fp+sec_cont_freeboard/12) -> 0 | D82: feet
A83: Curb thickness | B83: acid_dt_curb_thick | C83: =IF(acid_day_tanks=0,0,MIN(sec_cont_max_thick,acid_dt_curb_height)) -> 0 | D83: feet
A84: Curb length (long side) | B84: acid_dt_curb_len_long | C84: =IF(acid_day_tanks=0,0,acid_day_tanks*acid_dt_diam+2*space_acid_dt+(acid_day_tanks-1)*space_acid_dt+2*acid_dt_curb_thick) -> 0 | D84: feet
A85: Curb length (short side) | B85: acid_dt_curb_len_short | C85: =IF(acid_day_tanks=0,0,acid_dt_diam+2*space_acid_dt) -> 0 | D85: feet
A86: Curb concrete volume | B86: acid_dt_curb_concrete | C86: =IF(acid_day_tanks=0,0,ROUNDUP((acid_dt_curb_len_long*2+acid_dt_curb_len_short*2)*acid_dt_curb_height*acid_dt_curb_thick/27,0)) -> 0 | D86: cubic yards | E86: 27 converts cubic feet to cubic yards
A87: Chemical resistant coating required | B87: acid_dt_coating_gal | C87: =IF(acid_day_tanks=0,0,ROUNDUP((acid_day_tank_fp+2*(acid_dt_curb_len_long-2*acid_dt_curb_thick)*acid_dt_curb_height+2*acid_dt_curb_len_short*acid_dt_curb_height)/sec_cont_coating_cvg,0)) -> 0 | D87: gallons | E87: Covers total footprint plus inside surface and top of curbs
A89: Secondary Containment for Antiscalant Storage Tanks
A90: Minimum volume required | B90: anti_st_cont_volume | C90: =MAX(anti_tanks*anti_tank_size*sec_cont_pct_of_total,anti_tank_size*sec_cont_pct_of_largest)/7.48 -> 0.2941176471 | D90: cubic feet | E90: 7.48 converts gallons to cubic feet
A91: Footprint available | B91: anti_st_cont_fp | C91: =IF(anti_tanks=0,0,anti_tank_fp-anti_tanks*PI()*(anti_tank_diam/2)^2) -> 8.214601837 | D91: square feet | E91: Total footprint minus displacement by tanks themselves
A92: Curb height required | B92: anti_st_curb_height | C92: =IF(anti_tanks=0,0,anti_st_cont_volume/anti_st_cont_fp+sec_cont_freeboard/12) -> 0.5358042487 | D92: feet
A93: Curb thickness | B93: anti_st_curb_thick | C93: =IF(anti_tanks=0,0,MIN(sec_cont_max_thick,anti_st_curb_height)) -> 0.5358042487 | D93: feet
A94: Curb length (long side) | B94: anti_st_curb_len_long | C94: =IF(anti_tanks=0,0,anti_tanks*anti_tank_diam+2*space_anti+(anti_tanks-1)*space_anti+2*anti_st_curb_thick) -> 4.071608497 | D94: feet
A95: Curb length (short side) | B95: anti_st_curb_len_short | C95: =IF(anti_tanks=0,0,anti_tank_diam+2*space_anti) -> 3 | D95: feet
A96: Curb concrete volume | B96: anti_st_curb_concrete | C96: =IF(anti_tanks=0,0,ROUNDUP((anti_st_curb_len_long*2+anti_st_curb_len_short*2)*anti_st_curb_height*anti_st_curb_thick/27,0)) -> 1 | D96: cubic yards | E96: 27 converts cubic feet to cubic yards
A97: Chemical resistant coating required | B97: anti_st_coating_gal | C97: =IF(anti_tanks=0,0,ROUNDUP((anti_tank_fp+2*(anti_st_curb_len_long-2*anti_st_curb_thick)*anti_st_curb_height+2*anti_st_curb_len_short*anti_st_curb_height)/sec_cont_coating_cvg,0)) -> 1 | D97: gallons | E97: Covers total footprint plus inside surface and top of curbs
A99: Secondary Containment for Antiscalant Day Tanks
A100: Minimum volume required | B100: anti_dt_cont_volume | C100: =MAX(anti_day_tanks*anti_day_tank_vol*sec_cont_pct_of_total,anti_day_tank_vol*sec_cont_pct_of_largest)/7.48 -> 0 | D100: cubic feet | E100: 7.48 converts gallons to cubic feet
A101: Footprint available | B101: anti_dt_cont_fp | C101: =IF(anti_day_tanks=0,0,anti_day_tank_fp-anti_day_tanks*PI()*(anti_dt_diam/2)^2) -> 0 | D101: square feet | E101: Total footprint minus displacement by tanks themselves
A102: Curb height required | B102: anti_dt_curb_height | C102: =IF(anti_day_tanks=0,0,anti_dt_cont_volume/anti_dt_cont_fp+sec_cont_freeboard/12) -> 0 | D102: feet
A103: Curb thickness | B103: anti_dt_curb_thick | C103: =IF(anti_day_tanks=0,0,MIN(sec_cont_max_thick,anti_dt_curb_height)) -> 0 | D103: feet
A104: Curb length (long side) | B104: anti_dt_curb_len_long | C104: =IF(anti_day_tanks=0,0,anti_day_tanks*anti_dt_diam+2*space_anti_dt+(anti_day_tanks-1)*space_anti_dt+2*anti_dt_curb_thick) -> 0 | D104: feet
A105: Curb length (short side) | B105: anti_dt_curb_len_short | C105: =IF(anti_day_tanks=0,0,anti_dt_diam+2*space_anti_dt) -> 0 | D105: feet
A106: Curb concrete volume | B106: anti_dt_curb_concrete | C106: =IF(anti_day_tanks=0,0,ROUNDUP((anti_dt_curb_len_long*2+anti_dt_curb_len_short*2)*anti_dt_curb_height*anti_dt_curb_thick/27,0)) -> 0 | D106: cubic yards | E106: 27 converts cubic feet to cubic yards
A107: Chemical resistant coating required | B107: anti_dt_coating_gal | C107: =IF(anti_day_tanks=0,0,ROUNDUP((anti_day_tank_fp+2*(anti_dt_curb_len_long-2*anti_dt_curb_thick)*anti_dt_curb_height+2*anti_dt_curb_len_short*anti_dt_curb_height)/sec_cont_coating_cvg,0)) -> 0 | D107: gallons | E107: Covers total footprint plus inside surface and top of curbs

Sheet Feed Water
A1: Feed Water Chemistry Calculations
A3: Calculation | B3: Range Name | C3: Value | D3: Units | E3: Guidance
A4: Temperature | B4: temp_K | C4: =T_feed+zeroC_in_K -> 288.15 | D4: Kelvins
A6: Selected water index | B6: water_index | C6: 1 | E6: index into the feed water table; linked to dropdown on the input sheet
A8: Input concentrations, ppm
A9: Ca | B9: feed_conc_I | C9: =OFFSET(water_table,water_index-1,1,1,1) -> 70 | D9: ppm | E9: Loaded from the feed water table. CO3 and CO2 are computed later.
A10: Mg | C10: =OFFSET(water_table,water_index-1,2,1,1) -> 18 | D10: ppm
A11: Na | C11: =OFFSET(water_table,water_index-1,3,1,1) -> 47 | D11: ppm
A12: K | C12: =OFFSET(water_table,water_index-1,4,1,1) -> 3 | D12: ppm
A13: Ba | C13: =OFFSET(water_table,water_index-1,5,1,1) -> 0.002 | D13: ppm
A14: Sr | C14: =OFFSET(water_table,water_index-1,6,1,1) -> 1.1 | D14: ppm
A15: HCO3 | C15: =MAX(OFFSET(water_table,water_index-1,7,1,1),0.01) -> 175 | D15: ppm | E15: Minimum bicarbonate value is 0.01 ppm to avoid division by zero
A16: CO3 | C16: 0 | D16: ppm | E16: CO3 and CO2 are computed farther down in the sheet.
A17: Cl | C17: =OFFSET(water_table,water_index-1,8,1,1) -> 40.5 | D17: ppm
A18: SO4 | C18: =OFFSET(water_table,water_index-1,9,1,1) -> 150 | D18: ppm
A19: F | C19: =OFFSET(water_table,water_index-1,10,1,1) -> 0.1 | D19: ppm
A20: SiO2 | C20: =OFFSET(water_table,water_index-1,11,1,1) -> 10 | D20: ppm
A21: CO2 | C21: 0 | D21: ppm | E21: CO3 and CO2 are computed farther down in the sheet.
A22: Feed pH before acid pretreatment | B22: feed_pH | C22: =OFFSET(water_table,water_index-1,12,1,1) -> 7.3
A23: Water type | B23: feed_water_type | C23: =IF(OFFSET(water_table,water_index-1,13,1,1)="GW",1,2) -> 1 | E23: 1 for ground, 2 for surface
A24: SDI (15 min) | B24: feed_sdi | C24: =OFFSET(water_table,water_index-1,14,1,1) -> 1.1
A26: Input concentrations, meq/l
A27: Ca | B27: feed_conc_I_meq | C27: =feed_conc_I/ion_meq_weights -> 3.493013972 | D27: meq/l
A28: Mg | C28: 1.481176713 | D28: meq/l
A29: Na | C29: 2.044367116 | D29: meq/l
A30: K | C30: 0.07673026753 | D30: meq/l
A31: Ba | C31: 2.912479977e-05 | D31: meq/l
A32: Sr | C32: 0.02510842273 | D32: meq/l
A33: HCO3 | C33: 2.868382232 | D33: meq/l
A34: CO3 | C34: 0 | D34: meq/l
A35: Cl | C35: 1.142454161 | D35: meq/l
A36: SO4 | C36: 3.123048095 | D36: meq/l
A37: F | C37: 0.005263157895 | D37: meq/l
A38: SiO2 | C38: 0.1851851852 | D38: meq/l
A39: CO2 | C39: 0 | D39: meq/l
A41: Carbonate equilibrium calculations | E41: Method of Stumm and Morgan, Aquatic Chemistry; implementation from Tom Wolfe, PerLorica, Inc.
A42: Ionic strength | B42: feed_ion_strength | C42: =ionstrength(feed_conc_I_meq,ion_charge) -> 0.01137615998
A43: pK1 | B43: pK1_uncorr_feed | C43: =-0.007*(temp_K)+8.4454 -> 6.42835
A44: pK2 | B44: pK2_uncorr_feed | C44: =-0.0101*(temp_K)+13.368 -> 10.457685
A45: pKSo | B45: pKSo_feed | C45: =-(-171.9065 - 0.077993 * temp_K + 2839.319 / temp_K + 71.595 * LOG(temp_K) / LOG(10)) -> 8.430173134 | E45: Used later to calculate LSI
A46: pKWater | B46: pKWater_feed | C46: =-0.0333*(temp_K)+23.955 -> 14.359605 | E46: Used later to calculate LSI
A47: Ion strength correction for pK1 and pK2 | B47: feed_pK_corr | C47: =SQRT(feed_ion_strength)/(1+1.4*SQRT(feed_ion_strength)) -> 0.09280168352
A48: pK1, corrected for ionic strength | B48: pK1_feed | C48: =pK1_uncorr_feed-0.5*feed_pK_corr -> 6.381949158
A49: pK2, corrected for ionic strength | B49: pK2_feed | C49: =pK2_uncorr_feed-2*feed_pK_corr -> 10.27208163
A50: K1 = 10^-pK1 | B50: K1_feed | C50: =10^(-pK1_feed) -> 4.150026231e-07
A51: K2 = 10^-pK2 | B51: K2_feed | C51: =10^(-pK2_feed) -> 5.344638885e-11
A52: [H+] = 10^-pH | B52: H_feed | C52: =10^-feed_pH -> 5.011872336e-08
A54: Mole fraction HCO3 | B54: frac_HCO3_feed | C54: =1 / (H_feed / K1_feed + 1 + K2_feed / H_feed) -> 0.8913977652
A55: Mole fraction CO3 | B55: frac_CO3_feed | C55: =1 / (H_feed ^ 2 / (K1_feed * K2_feed) + H_feed / K2_feed + 1) -> 0.000950582704
A56: Mole fraction CO2 | B56: frac_CO2_feed | C56: =1 / (1 + K1_feed / H_feed + (K1_feed * K2_feed) / H_feed ^ 2) -> 0.1076516521
A58: HCO3, mol/l | B58: HCO3_feed_mol | C58: =C15/(ion_hco3 ion_mol_wt)/1000 -> 0.002868382232 | D58: mol/l
A59: CO3, mol/l | B59: CO3_feed_mol | C59: =HCO3_feed_mol/frac_HCO3_feed*frac_CO3_feed -> 3.058830351e-06 | D59: mol/l
A60: CO2, mol/l | B60: CO2_feed_mol | C60: =HCO3_feed_mol/frac_HCO3_feed*frac_CO2_feed -> 0.0003464066191 | D60: mol/l
A62: Dissolved inorganic carbon in feed, mol/l | B62: carbon_feed_mol | C62: =SUM(C58:C60) -> 0.003217847682 | D62: mol/l
A64: Feed concentrations, ppm, unbalanced
A65: Ca | B65: feed_ppm_unbal | C65: =C9 -> 70 | D65: ppm | E65: These are copied from the feed water table, except for CO3 and CO2
A66: Mg | C66: 18 | D66: ppm
A67: Na | C67: 47 | D67: ppm
A68: K | C68: 3 | D68: ppm
A69: Ba | C69: 0.002 | D69: ppm
A70: Sr | C70: 1.1 | D70: ppm
A71: HCO3 | C71: 175 | D71: ppm
A72: CO3 | C72: =CO3_feed_mol*(ion_co3 ion_mol_wt)*1000 -> 0.1835604093 | D72: ppm | E72: based on the mole fraction computed above and the HCO3 concentration
A73: Cl | C73: =C17 -> 40.5 | D73: ppm
A74: SO4 | C74: =C18 -> 150 | D74: ppm
A75: F | C75: =C19 -> 0.1 | D75: ppm
A76: SiO2 | C76: =C20 -> 10 | D76: ppm
A77: CO2 | C77: =CO2_feed_mol*(ion_co2 ion_mol_wt)*1000 -> 15.25574751 | D77: ppm | E77: based on the mole fraction computed above and the HCO3 concentration
A79: Feed concentrations, meq/l, unbalanced
A80: Ca | B80: feed_meq_unbal | C80: =feed_ppm_unbal/ion_meq_weights -> 3.493013972 | D80: meq/l
A81: Mg | C81: 1.481176713 | D81: meq/l
A82: Na | C82: 2.044367116 | D82: meq/l
A83: K | C83: 0.07673026753 | D83: meq/l
A84: Ba | C84: 2.912479977e-05 | D84: meq/l
A85: Sr | C85: 0.02510842273 | D85: meq/l
A86: HCO3 | C86: 2.868382232 | D86: meq/l
A87: CO3 | C87: 0.006117660701 | D87: meq/l
A88: Cl | C88: 1.142454161 | D88: meq/l
A89: SO4 | C89: 3.123048095 | D89: meq/l
A90: F | C90: 0.005263157895 | D90: meq/l
A91: SiO2 | C91: 0.1851851852 | D91: meq/l
A92: CO2 | C92: 0.6928132383 | D92: meq/l
A94: Total cations | B94: feed_cations | C94: =SUM(C80:C85) -> 7.120425616
A95: Total anions | B95: feed_anions | C95: =SUM(C86:C90) -> 7.145265307
A96: Difference | B96: feed_difference | C96: =feed_cations-feed_anions -> -0.02483969088
A97: Cation balance factor | B97: feed_cat_bal | C97: =1-feed_difference/feed_cations/2 -> 1.001744256
A98: Anion balance factor | B98: feed_an_bal | C98: =1+feed_difference/feed_anions/2 -> 0.9982618077
A100: Feed concentrations, meq/l, balanced, before acid addition
A101: Ca | B101: feed_meq_bal | C101: =C80:C85*feed_cat_bal -> 3.499106683 | D101: meq/l
A102: Mg | C102: 1.483760264 | D102: meq/l
A103: Na | C103: 2.047933016 | D103: meq/l
A104: K | C104: 0.07686410477 | D104: meq/l
A105: Ba | C105: 2.917560088e-05 | D105: meq/l
A106: Sr | C106: 0.02515221825 | D106: meq/l
A107: HCO3 | C107: =C86:C90*feed_an_bal -> 2.863396432 | D107: meq/l
A108: CO3 | C108: 0.00610702703 | D108: meq/l
A109: Cl | C109: 1.140468356 | D109: meq/l
A110: SO4 | C110: 3.117619637 | D110: meq/l
A111: F | C111: 0.005254009514 | D111: meq/l
A112: SiO2 | C112: =C91:C92 -> 0.1851851852 | D112: meq/l
A113: CO2 | C113: 0.6928132383 | D113: meq/l
A115: Feed concentrations, ppm, balanced, before acid addition
A116: Ca | B116: feed_ppm_bal | C116: =feed_meq_bal*ion_meq_weights -> 70.12209792 | D116: ppm
A117: Mg | C117: 18.03139661 | D117: ppm
A118: Na | C118: 47.08198003 | D118: ppm
A119: K | C119: 3.005232768 | D119: ppm
A120: Ba | C120: 0.002003488512 | D120: ppm
A121: Sr | C121: 1.101918682 | D121: ppm
A122: HCO3 | C122: 174.6958163 | D122: ppm
A123: CO3 | C123: 0.183241346 | D123: ppm
A124: Cl | C124: 40.42960321 | D124: ppm
A125: SO4 | C125: 149.7392711 | D125: ppm
A126: F | C126: 0.09982618077 | D126: ppm
A127: SiO2 | C127: 10 | D127: ppm
A128: CO2 | B128: feed_gas_bal | C128: 15.25574751 | D128: ppm
A130: TDS of untreated feed | B130: untreated_feed_tds | C130: =SUM(feed_ppm_bal)-SUM(feed_gas_bal) -> 514.4923877 | D130: ppm
A132: Saturation indices for untreated feed
A133: Langelier Saturation Index (CaCO3)
A134: [OH-] in untreated feed | B134: feed_OHminus | C134: =10^(feed_pH-pKWater_feed) -> 8.717561101e-08 | E134: LSI implementation from TFSP, PerLorica, Inc.
A135: Ion strength correction for HCO3 | B135: feed_hco3_corr | C135: =0.5*(SQRT(feed_ion_strength)/(1+SQRT(feed_ion_strength))-0.3*feed_ion_strength) -> 0.04648325095
A136: Ion strength correction for CO3 | B136: feed_co3_corr | C136: =0.5*4*(SQRT(feed_ion_strength)/(1+SQRT(feed_ion_strength))-0.3*feed_ion_strength) -> 0.1859330038
A137: [Alk] of untreated feed | B137: feed_alkalinity | C137: =C107*10^-feed_hco3_corr/1000+C108*10^-feed_co3_corr/1000+feed_OHminus-H_feed -> 0.002576770984
A138: pAlk of untreated feed | B138: feed_pAlk | C138: =-LOG10(feed_alkalinity) -> 2.588924179
A139: [Ca] of untreated feed | B139: feed_Ca | C139: =C101/2*10^-feed_co3_corr/1000 -> 0.001140234518
A140: pCa of untreated feed | B140: feed_pCa | C140: =-LOG10(feed_Ca) -> 2.943005816
A141: pH_s of untreated feed | B141: feed_pH_s | C141: =pK2_uncorr_feed-pKSo_feed+feed_pAlk+feed_pCa -> 7.559441861
A142: LSI of untreated feed | B142: feed_LSI | C142: =feed_pH-feed_pH_s -> -0.2594418605
A144: SiO2 saturation
A145: SiO2 saturation conc before pH correction | B145: sio2_sat_base | C145: =2*T_feed+75 -> 105 | D145: mg/l | E145: Saturation dependence on temperature and pH from ASTM D4993; method and fit parameters from TFSP, PerLorica, Inc.
A146: pH correction factor | B146: feed_sio2_sat_corr | C146: =IF(feed_pH<7,1.84-0.12*feed_pH,IF(feed_pH>7.75,((0.3102*feed_pH-7.7173)*feed_pH+64.611)*feed_pH-180.63,1)) -> 1
A147: SiO2 saturation concentration | B147: feed_sio2_sat | C147: =sio2_sat_base*feed_sio2_sat_corr -> 105 | D147: mg/l
A148: SiO2 saturation percentage | B148: feed_sio2_sat_pct | C148: =C127/feed_sio2_sat -> 0.09523809524
A150: CaSO4 saturation
A151: KSP for CaSO4 | B151: feed_caso4_ksp | C151: =(((1.1802*feed_ion_strength-6.6149)*feed_ion_strength+22.163)*feed_ion_strength+0.6981)*0.0001 -> 9.493754906e-05 | E151: Ksp dependence on ion strength from ASTM D4692, Figure 1; method and fit parameters from TFSP, PerLorica, Inc.
A152: Ion product [Ca]*[SO4] | B152: feed_caso4_ip | C152: =C116/(ion_ca ion_mol_wt)/1000*C125/(ion_so4 ion_mol_wt)/1000 -> 2.727220926e-06
A153: CaSO4 saturation percentage | B153: feed_caso4_sat_pct | C153: =feed_caso4_ip/feed_caso4_ksp -> 0.02872647286
A155: CaF2 saturation
A156: van't Hoff temperature correction for Ksp | B156: caf2_vanthoff_corr | C156: =-4.69/0.00198719*(1/(T_feed+zeroC_in_K)-1/(25+zeroC_in_K)) -> -0.2747135063 | E156: ln(K2/K1) is equal to this factor; based on enthalpy of 4.69 kcal
A157: pKsp for CaF2 at 25 deg C | B157: caf2_pksp_base | C157: 10.6 | E157: Data from PHREEQC; method from TFSP, PerLorica, Inc.
A158: Ksp for CaF2 at 25 deg C | B158: caf2_ksp_base | C158: =10^(-caf2_pksp_base) -> 2.511886432e-11
A159: Ksp for CaF2 at feed temperature | B159: caf2_ksp | C159: =caf2_ksp_base*EXP(caf2_vanthoff_corr) -> 1.908505607e-11
A160: Ionic strength correction for Ca | B160: feed_ca_corr | C160: =10 ^-(0.5*4*SQRT(feed_ion_strength) / (1+1.4*SQRT(feed_ion_strength)-0.2*feed_ion_strength)) -> 0.6516711254
A161: Ionic strength correction for F | B161: feed_f_corr | C161: =10 ^ -(0.5*SQRT(feed_ion_strength) / (1+SQRT(feed_ion_strength))-0.2*feed_ion_strength) -> 0.8996748022
A162: Ca, mol/L, corrected | B162: feed_ca_molL | C162: =C116/(ion_ca ion_mol_wt)/1000*feed_ca_corr -> 0.001140133395 | D162: mol/L
A163: F, mol/L, corrected | B163: feed_f_molL | C163: =C126/(ion_f ion_mol_wt)/1000*feed_f_corr -> 4.72689997e-06 | D163: mol/L
A164: Ion product [Ca]*[F]^2 | B164: feed_caf2_ip | C164: =feed_ca_molL*feed_f_molL*feed_f_molL -> 2.547466551e-14
A165: CaF2 saturation percentage | B165: feed_caf2_sat_pct | C165: =feed_caf2_ip/caf2_ksp -> 0.001334796472
A167: BaSO4 saturation
A168: KSP for BaSO4 | B168: feed_baso4_ksp | C168: =((((3.872*feed_ion_strength-5.4453)*feed_ion_strength+0.6729)*feed_ion_strength+8.263)*feed_ion_strength+0.1374)*0.000000001 -> 2.314803425e-10 | E168: Ksp dependence on ion strength from ASTM D4692, Figure 3; method and fit parameters from TFSP, PerLorica, Inc.
A169: Ion product [Ba]*[SO4] | B169: feed_baso4_ip | C169: =C120/(ion_ba ion_mol_wt)/1000*C125/(ion_so4 ion_mol_wt)/1000 -> 2.273960655e-11
A170: BaSO4 saturation percentage | B170: feed_baso4_sat_pct | C170: =feed_baso4_ip/feed_baso4_ksp -> 0.09823558364
A172: SrSO4 saturation
A173: KSP for SrSO4 | B173: feed_srso4_ksp | C173: =IF(feed_ion_strength<=0.3,((((152941*feed_ion_strength-51018)*feed_ion_strength+3871.8)*feed_ion_strength+2216.3)*feed_ion_strength + 25.318)*0.00000001,(((507.35*feed_ion_strength-2516.8)*feed_ion_strength+4396.6)*feed_ion_strength-177.1)*0.00000001) -> 5.095950953e-07 | E173: Ksp dependence on ion strength from ASTM D4692, Figure 2; method and fit parameters from TFSP, PerLorica, Inc.
A174: Ion product [Sr]*[SO4] | B174: feed_srso4_ip | C174: =C121/(ion_sr ion_mol_wt)/1000*C125/(ion_so4 ion_mol_wt)/1000 -> 1.960376238e-08
A175: SrSO4 saturation percentage | B175: feed_srso4_sat_pct | C175: =feed_srso4_ip/feed_srso4_ksp -> 0.03846929172
A177: Treated Feed
A178: Acid for pretreatment | B178: pretreat_acid | C178: =IF(LEN(pretreat_acid_I)=0,0,VLOOKUP(pretreat_acid_I,pretreat_acid_table,2,FALSE)) -> 2 | E178: 1 for HCl, 2 for H2SO4, 0 for no acid pretreatment
A179: [H+] after acid pretreatment | B179: H_tfeed | C179: =IF(pretreat_acid=0,H_feed,10^-(treated_feed_pH)) -> 1e-07
A180: Mole fraction HCO3 in treated feed | B180: frac_HCO3_tfeed | C180: =IF(pretreat_acid=0,"n/a",1 / (H_tfeed / K1_feed + 1 + K2_feed / H_tfeed)) -> 0.8054793238 | E180: Assumes that acid dosing has little effect on the ion strength; therefore K1 and K2 need not be adjusted.
A181: Mole fraction CO3 in treated feed | B181: frac_CO3_tfeed | C181: =IF(pretreat_acid=0,"n/a",1 / (H_tfeed ^ 2 / (K1_feed * K2_feed) + H_tfeed / K2_feed + 1)) -> 0.0004304996115
A182: Mole fraction CO2 in treated feed | B182: frac_CO2_tfeed | C182: =IF(pretreat_acid=0,"n/a", 1 / (1 + K1_feed / H_tfeed + (K1_feed * K2_feed) / H_tfeed ^ 2)) -> 0.1940901765
A183: HCO3 in treated feed, meq/l | B183: HCO3_tfeed_meq | C183: =IF(pretreat_acid=0,C107,carbon_feed_mol*frac_HCO3_tfeed*1000) -> 2.591909775 | D183: meq/l
A184: CO3 in treated feed, meq/l | B184: CO3_tfeed_meq | C184: =IF(pretreat_acid=0,C108,carbon_feed_mol*frac_CO3_tfeed*1000*2) -> 0.002770564354 | D184: meq/l
A185: CO2 in treated feed, meq/l | B185: CO2_tfeed_meq | C185: =IF(pretreat_acid=0,C113,carbon_feed_mol*frac_CO2_tfeed*1000*2) -> 1.249105249 | D185: meq/l
A186: Alkalinity change in treated feed, meq/l | B186: alk_delta_tfeed | C186: =IF(pretreat_acid=0,0,HCO3_tfeed_meq+CO3_tfeed_meq-C107-C108) -> -0.27482312 | D186: meq/l
A187: Cl addition for treated feed, meq/l | B187: Cl_delta_tfeed | C187: =IF(pretreat_acid=1,-alk_delta_tfeed,0) -> 0 | D187: meq/l
A188: SO4 addition for treated feed, meq/l | B188: SO4_delta_tfeed | C188: =IF(pretreat_acid=2,-alk_delta_tfeed,0) -> 0.27482312 | D188: meq/l
A189: Cl addition for treated feed, mg/l | B189: Cl_delta_tfeed_ppm | C189: =Cl_delta_tfeed*(ion_cl ion_meq_weights) -> 0 | D189: mg/l
A190: SO4 addition for treated feed, mg/l | B190: SO4_delta_tfeed_ppm | C190: =SO4_delta_tfeed*(ion_so4 ion_meq_weights) -> 13.19975445 | D190: mg/l
A191: HCl addition for treated feed, mg/l | B191: HCl_feed_conc | C191: =IF(pretreat_acid=1,(Cl_delta_tfeed_ppm+1),0) -> 0 | D191: mg/l | E191: For 100% HCl.
A192: H2SO4 addition for treated feed, mg/l | B192: H2SO4_feed_conc | C192: =IF(pretreat_acid=2,(SO4_delta_tfeed_ppm+2),0) -> 15.19975445 | D192: mg/l | E192: For 100% H2SO4.
A194: Treated feed concentrations, meq/l
A195: Ca | B195: tfeed_meq_bal | C195: =C101 -> 3.499106683 | D195: meq/l
A196: Mg | C196: 1.483760264 | D196: meq/l
A197: Na | C197: 2.047933016 | D197: meq/l
A198: K | C198: 0.07686410477 | D198: meq/l
A199: Ba | C199: 2.917560088e-05 | D199: meq/l
A200: Sr | C200: 0.02515221825 | D200: meq/l
A201: HCO3 | C201: =HCO3_tfeed_meq -> 2.591909775 | D201: meq/l
A202: CO3 | C202: =CO3_tfeed_meq -> 0.002770564354 | D202: meq/l
A203: Cl | C203: =C109+Cl_delta_tfeed -> 1.140468356 | D203: meq/l
A204: SO4 | C204: =C110+SO4_delta_tfeed -> 3.392442757 | D204: meq/l
A205: F | C205: =C111 -> 0.005254009514 | D205: meq/l
A206: SiO2 | C206: =C112 -> 0.1851851852 | D206: meq/l
A207: CO2 | C207: =CO2_tfeed_meq -> 1.249105249 | D207: meq/l
A209: Treated feed concentrations, ppm, balanced
A210: Ca | B210: tfeed_ppm_bal | C210: =tfeed_meq_bal*ion_meq_weights -> 70.12209792 | D210: ppm
A211: Mg | C211: 18.03139661 | D211: ppm
A212: Na | C212: 47.08198003 | D212: ppm
A213: K | C213: 3.005232768 | D213: ppm
A214: Ba | C214: 0.002003488512 | D214: ppm
A215: Sr | C215: 1.101918682 | D215: ppm
A216: HCO3 | C216: 158.1324154 | D216: ppm
A217: CO3 | C217: 0.08313078344 | D217: ppm
A218: Cl | C218: 40.42960321 | D218: ppm
A219: SO4 | C219: 162.9390256 | D219: ppm
A220: F | C220: 0.09982618077 | D220: ppm
A221: SiO2 | C221: 10 | D221: ppm
A222: CO2 | B222: tfeed_gas_bal | C222: 27.50529759 | D222: ppm
A224: TDS of treated feed | B224: treated_feed_tds | C224: =SUM(tfeed_ppm_bal)-SUM(tfeed_gas_bal) -> 511.0286307 | D224: ppm
... 41 more rows

Sheet Train Design
A1: Train Design Calculations
A3: Calculation | B3: Range Name | C3: Value | D3: Units | E3: Guidance
A4: Flux guidance | E4: Used only for guidance on the input sheet.
A5: Min flux for this SDI | B5: flux_min | C5: =CHOOSE(feed_water_type,IF(feed_sdi<1,flux_min_SDI1_GW,IF(feed_sdi<3,flux_min_SDI3_GW,flux_min_SDI5_GW)),IF(feed_sdi<1,flux_min_SDI1_SW,IF(feed_sdi<3,flux_min_SDI3_SW,flux_min_SDI5_SW))) -> 16 | D5: gfd
A6: Max flux for this SDI | B6: flux_max | C6: =CHOOSE(feed_water_type,IF(feed_sdi<1,flux_max_SDI1_GW,IF(feed_sdi<3,flux_max_SDI3_GW,flux_max_SDI5_GW)),IF(feed_sdi<1,flux_max_SDI1_SW,IF(feed_sdi<3,flux_max_SDI3_SW,flux_max_SDI5_SW))) -> 20 | D6: gfd
A8: Full System
A9: Total feed flow | B9: design_Qfeed_full | C9: =design_flow_rate/target_recovery -> 29.76190476 | D9: gpm | E9: Estimated, based on the target recovery
A10: Total permeate flow | B10: design_Qperm_full | C10: =design_flow_rate -> 20.83333333 | D10: gpm
A11: Area required | B11: total_area_req | C11: =design_flow*1000000/design_flux -> 1578.947368 | D11: ft^2 | E11: Based on the design flux
A12: Area per element | C12: =sys_element_area_I -> 80 | D12: ft^2 | E12: For reference only
A13: Number of elements required | B13: total_elements_req | C13: =ROUNDUP(total_area_req/sys_element_area_I,0) -> 20 | D13: elements
A15: Element class | B15: element_class | C15: =IF(sys_element_diam<5, 1, IF(sys_element_diam<9,2,3)) -> 1 | E15: Shorthand for element diameter. 1 -> 4", 2 -> 8", 3 -> 16-18"
A17: Number of stages, vessels, and elements in series
A18: Maximum recovery per element | B18: max_Y_el | C18: =max_recovery -> 0.15
A19: Average recovery per element, absolute | B19: avg_Y_el_targ | C19: =avg_Y_el_targ_frac*max_Y_el -> 0.105
A20: Number of elements in series | B20: n_el_series | C20: =LN(1-target_recovery)/LN(1-avg_Y_el_targ) -> 10.85329366
A21: Maximum number of elements per vessel | B21: el_per_vess_max | C21: =CHOOSE(element_class,el_per_vess_max_8,el_per_vess_max_8,el_per_vess_max_16) -> 8 | E21: 16-18" elements use fewer elements per vessel than 8" or 4" elements
A22: Minimum number of elements per vessel | B22: el_per_vess_std | C22: =CHOOSE(element_class,el_per_vess_std_8,el_per_vess_std_8,el_per_vess_std_16) -> 6
A23: Number of stages | B23: n_stages | C23: =ROUNDUP(n_el_series/el_per_vess_max,0) -> 2
A24: Elements per vessel | B24: el_per_vess | C24: =IF(n_stages>1,MAX(el_per_vess_std,ROUNDUP(n_el_series/n_stages,0)),ROUNDUP(n_el_series,0)) -> 6
A25: Area per vessel | B25: area_per_vess | C25: =el_per_vess*sys_element_area_I -> 480 | D25: ft^2
A26: Total number of elements in series | B26: el_series | C26: =n_stages*el_per_vess -> 12
A27: Average recovery per element | B27: avg_Y_el | C27: =1-(1-target_recovery)^(1/el_series) -> 0.09546209422
A28: Total number of pressure vessels before train split | B28: n_vessels | C28: =ROUNDUP(total_elements_req/el_per_vess,0) -> 4
A29: Total number of elements before train split | B29: n_elements | C29: =n_vessels*el_per_vess -> 24
A31: Train Design
A32: Maximum permeate flow per rack | B32: max_flow_rack | C32: =CHOOSE(element_class, max_flow_rack_4, max_flow_rack_8, max_flow_rack_16) -> 0.5 | D32: MGD
A33: Number of operating trains | B33: op_trains | C33: =ROUNDUP(IF(op_trains_I>0,op_trains_I,MAX(min_op_trains,design_flow/max_flow_rack)),0) -> 2 | D33: trains | E33: Computed on the assumption that one rack equals one train.
A34: PVs per operating train | B34: PVs_per_train_prelim | C34: =ROUNDUP(n_vessels/op_trains,0) -> 2 | D34: PVs/train
A35: Elements per operating train | B35: el_per_train_prelim | C35: =PVs_per_train_prelim*el_per_vess -> 12 | D35: elements/train
A37: Feed flow per train | B37: design_Qfeed | C37: =design_Qfeed_full/op_trains -> 14.88095238 | D37: gpm
A38: Permeate flow per train | B38: design_Qperm | C38: =design_Qperm_full/op_trains -> 10.41666667 | D38: gpm
A40: Target staging ratio | B40: target_staging_ratio | C40: =(1-target_recovery)^(-1/n_stages) -> 1.825741858
A41: Average recovery per vessel | B41: avg_Y_vess | C41: =1-1/target_staging_ratio -> 0.4522774425
A43: Flow constraints
A44: Per feed flow specification
A45: Maximum feed flow per element specification | B45: max_feed_flow_spec | C45: =max_feed_flow_I -> 16 | D45: gpm
A47: Maximum feed flow per element pressure drop
A48: Maximum pressure drop in element | B48: max_element_dP | C48: =max_deltaP_el_I -> 10 | D48: psi
A49: Maximum average flow based on pressure drop | B49: max_element_Qavg | C49: =(max_deltaP_el_I/(sys_element_dp_coeff_I*SQRT(visc_ratio_feed)))^(1/sys_element_dp_exp) -> 12.78562852 | D49: gpm
A50: Average permeate flow per element | B50: avg_perm_flow | C50: =design_Qperm/el_per_train_prelim -> 0.8680555556 | D50: gpm | E50: "average" here is an average over the elements at the design flow
A51: Maximum feed flow based on pressure drop | B51: max_feed_flow_dP_el | C51: =max_element_Qavg+avg_perm_flow/2 -> 13.2196563 | D51: gpm
A53: Maximum feed flow per vessel pressure drop
A54: Maximum pressure drop in vessel | B54: max_vessel_dP | C54: =max_deltaP_ves_I -> 50 | D54: psi
A55: Maximum average flow in vessel, based on pressure drop | B55: max_vessel_Qavg | C55: =IF(max_vessel_dP=0,"n/a",(max_vessel_dP/(sys_element_dp_coeff_I*el_per_vess*SQRT(visc_ratio_feed)))^(1/sys_element_dp_exp)) -> 11.22442362 | D55: gpm
A56: Maximum feed flow in vessel, based on pressure drop | B56: max_feed_flow_dP_ves | C56: =IF(max_vessel_Qavg="n/a","n/a",-max_vessel_Qavg*LN(1-avg_Y_vess)/avg_Y_vess) -> 14.93983506 | D56: gpm | E56: Computed based on average recovery per vessel
A58: Per minimum concentrate flow specification
A59: Minimum concentrate flow per element specification | B59: min_conc_flow_spec | C59: =min_conc_flow_I -> 3 | D59: gpm
A60: Minimum feed flow, for average recovery per vessel | B60: min_feed_flow_conc | C60: =min_conc_flow_spec/(1-avg_Y_vess) -> 5.477225575 | D60: gpm
A62: All constraints
A63: Maximum feed flow per vessel | B63: max_feed_flow | C63: =MIN(max_feed_flow_spec,max_feed_flow_dP_el,max_feed_flow_dP_ves) -> 13.2196563 | D63: gpm | E63: The strictest of the above maxima
A64: Minimum feed flow per vessel | B64: min_feed_flow | C64: =min_feed_flow_conc -> 5.477225575 | D64: gpm
A66: Train assembly
A67: Target number of first-stage vessels | B67: nves_1_targ | C67: =CHOOSE(n_stages,PVs_per_train_prelim,PVs_per_train_prelim/(1+1/target_staging_ratio),PVs_per_train_prelim/(1+1/target_staging_ratio+1/target_staging_ratio/target_staging_ratio)) -> 1.292221264 | D67: vessels
A68: Minimum number of first-stage vessels | B68: nves_1_min | C68: =IF(max_feed_flow=0,"n/a",ROUNDUP(design_Qfeed/max_feed_flow,0)) -> 2 | D68: vessels
A69: Maximum number of first-stage vessels | B69: nves_1_max | C69: =IF(min_feed_flow=0,"n/a",ROUNDDOWN(design_Qfeed/min_feed_flow,0)) -> 2 | D69: vessels
A70: Number of first-stage vessels per train | B70: nves_1 | C70: =MAX(nves_1_min,MIN(nves_1_max,ROUND(nves_1_targ,0))) -> 2 | D70: vessels
A71: Feed flow per first-stage vessel | B71: Qfeed_1_guess | C71: =design_Qfeed/nves_1 -> 7.44047619 | D71: gpm
A72: Estimated concentrate flow per first-stage vessel | B72: Qconc_1_guess | C72: =Qfeed_1_guess*(1-avg_Y_vess) -> 4.075316648 | D72: gpm
A73: Estimated average flow per first-stage vessel | B73: Qavg_1_guess | C73: =(Qfeed_1_guess-Qconc_1_guess)/LN(Qfeed_1_guess/Qconc_1_guess) -> 5.590092285 | D73: gpm
A74: Estimated permeate flow per first-stage vessel | B74: Qperm_1_guess | C74: =Qfeed_1_guess-Qconc_1_guess -> 3.365159542 | D74: gpm
A75: Estimated concentrate flow from first stage | B75: Qconc_1_total_guess | C75: =Qconc_1_guess*nves_1 -> 8.150633296 | D75: gpm
A77: Target number of second-stage vessels | B77: nves_2_targ | C77: =IF(n_stages>=2,nves_1_targ/target_staging_ratio,0) -> 0.7077787357 | D77: vessels
A78: Minimum number of second-stage vessels | B78: nves_2_min | C78: =IF(n_stages>=2,IF(max_feed_flow=0,"n/a",ROUNDUP(Qconc_1_total_guess/max_feed_flow,0)),0) -> 1 | D78: vessels
A79: Maximum number of second-stage vessels | B79: nves_2_max | C79: =IF(n_stages>=2,IF(min_feed_flow=0,"n/a",ROUNDDOWN(Qconc_1_total_guess/min_feed_flow,0)),0) -> 1 | D79: vessels
A80: Number of second-stage vessels | B80: nves_2 | C80: =IF(n_stages>=2,MAX(nves_2_min,MIN(nves_2_max,ROUND(nves_2_targ,0))),0) -> 1 | D80: vessels
A81: Estimated feed flow per second-stage vessel | B81: Qfeed_2_guess | C81: =IF(n_stages>=2,Qconc_1_total_guess/nves_2,0) -> 8.150633296 | D81: gpm
A82: Estimated concentrate flow per second-stage vessel | B82: Qconc_2_guess | C82: =IF(n_stages>=2,Qfeed_2_guess*(1-avg_Y_vess),0) -> 4.464285714 | D82: gpm
A83: Estimated average flow per second-stage vessel | B83: Qavg_2_guess | C83: =IF(n_stages>=2,(Qfeed_2_guess-Qconc_2_guess)/LN(Qfeed_2_guess/Qconc_2_guess),0) -> 6.123639286 | D83: gpm
A84: Estimated permeate flow per second-stage vessel | B84: Qperm_2_guess | C84: =Qfeed_2_guess-Qconc_2_guess -> 3.686347582 | D84: gpm
A85: Estimated concentrate flow from second stage | B85: Qconc_2_total_guess | C85: =Qconc_2_guess*nves_2 -> 4.464285714 | D85: gpm
A87: Target number of third-stage vessels | B87: nves_3_targ | C87: =IF(n_stages>=3,nves_2_targ/target_staging_ratio,0) -> 0 | D87: vessels
A88: Minimum number of third-stage vessels | B88: nves_3_min | C88: =IF(n_stages>=3,IF(max_feed_flow=0,"n/a",ROUNDUP(Qconc_2_total_guess/max_feed_flow,0)),0) -> 0 | D88: vessels
A89: Maximum number of third-stage vessels | B89: nves_3_max | C89: =IF(n_stages>=3,IF(min_feed_flow=0,"n/a",ROUNDDOWN(Qconc_2_total_guess/min_feed_flow,0)),0) -> 0 | D89: vessels
A90: Number of third-stage vessels | B90: nves_3 | C90: =IF(n_stages>=3,MAX(nves_3_min,MIN(nves_3_max,ROUND(nves_3_targ,0))),0) -> 0 | D90: vessels
A91: Estimated feed flow per third-stage vessel | B91: Qfeed_3_guess | C91: =IF(n_stages>=3,Qconc_2_total_guess/nves_3,0) -> 0 | D91: gpm
A92: Estimated concentrate flow per third-stage vessel | B92: Qconc_3_guess | C92: =IF(n_stages>=3,Qfeed_3_guess*(1-avg_Y_vess),0) -> 0 | D92: gpm
A93: Estimated average flow per third-stage vessel | B93: Qavg_3_guess | C93: =IF(n_stages>=3,(Qfeed_3_guess-Qconc_3_guess)/LN(Qfeed_3_guess/Qconc_3_guess),0) -> 0 | D93: gpm
A94: Estimated permeate flow per third-stage vessel | B94: Qperm_3_guess | C94: =Qfeed_3_guess-Qconc_3_guess -> 0 | D94: gpm
A95: Estimated concentrate flow from third stage | B95: Qconc_3_total_guess | C95: =Qconc_3_guess*nves_3 -> 0 | D95: gpm
A97: Total number of vessels per train | B97: PVs_per_train | C97: =nves_1+nves_2+nves_3 -> 3 | D97: vessels
A98: Membrane area per train | B98: area_train | C98: =PVs_per_train*el_per_vess*sys_element_area_I -> 1440 | D98: ft^2
A99: Resulting total area, excluding redundancy | B99: total_area_op | C99: =area_train*op_trains -> 2880 | D99: ft^2
A100: Resulting target flux | B100: target_flux | C100: =design_flow*1000000/total_area_op -> 10.41666667 | D100: gfd
A102: Train configuration | B102: train_config | C102: =CHOOSE(n_stages,nves_1 & " vessels",nves_1 & ":" & nves_2, nves_1 & ":" & nves_2 & ":" & nves_3) -> 2:1
A104: Pressure guess
A105: Feed osmotic pressure | B105: pi_feed_sys | C105: =osmpres(tfeed_meq_bal,T_feed,ion_charge)*psi_per_atm -> 3.405393823 | D105: psi
A106: Concentrate osmotic pressure, 100% recovery | B106: pi_conc_guess | C106: =pi_feed_sys/(1-target_recovery) -> 11.35131274 | D106: psi
A107: Average osmotic pressure in system | B107: pi_avg_guess | C107: =(pi_conc_guess-pi_feed_sys)/LN(pi_conc_guess/pi_feed_sys) -> 6.599749506 | D107: psi
A108: Estimated pressure drop in stage 1 | B108: dP_1_guess | C108: =el_per_vess*sys_element_dp_coeff_I*Qavg_1_guess^sys_element_dp_exp*SQRT(visc_ratio_feed) -> 18.84199586 | D108: psi
A109: Estimated pressure drop in stage 2 | B109: dP_2_guess | C109: =IF(n_stages>=2,el_per_vess*sys_element_dp_coeff_I*Qavg_2_guess^sys_element_dp_exp)*SQRT(visc_ratio_feed) -> 21.4068998 | D109: psi
A110: Estimated pressure drop in stage 3 | B110: dP_3_guess | C110: =IF(n_stages>=3,el_per_vess*sys_element_dp_coeff_I*Qavg_3_guess^sys_element_dp_exp,0)*SQRT(visc_ratio_feed) -> 0 | D110: psi
A111: Estimated pressure drop in system | B111: dP_tot_guess | C111: =dP_1_guess+dP_2_guess+dP_3_guess -> 40.24889567 | D111: psi
A112: Temperature correction factor for feed temp | B112: A_temp_coeff_pguess | C112: =IF(T_feed<sys_element_ref_temp,sys_element_A_T_coeff_lo,sys_element_A_T_coeff_hi) -> 2900 | D112: Kelvins
A113: Temperature correction factor for A | B113: A_temp_corr_pguess | C113: =EXP(A_temp_coeff_pguess*(1/(sys_element_ref_temp+zeroC_in_K)-1/(temp_K))) -> 0.7135127221
A114: Element A value before feed pressure correction | B114: A_firstguess | C114: =sys_element_A_I*A_temp_corr_pguess*fouling_factor -> 0.1455565953 | D114: gfd/psi
A115: First guess net driving pressure required | B115: ndp_req_firstguess | C115: =target_flux/A_firstguess -> 71.56437429 | D115: psi
A116: Estimated feed pressure | B116: Pfeed_firstguess | C116: =ndp_req_firstguess+pi_avg_guess+dP_tot_guess/2 -> 98.28857163 | D116: psi | E116: First guess Pnet + Posm + dP/2
A117: Feed pressure correction factor for A | B117: A_pres_corr_guess | C117: =1-(Pfeed_firstguess/psi_per_atm)*sys_element_A_P_coeff -> 0.9966559414
A118: Estimated element A value | B118: A_guess | C118: =A_firstguess*A_pres_corr_guess -> 0.1450698455 | D118: gfd/psi
A119: Estimated net driving pressure required | B119: Pnet_guess | C119: =target_flux/A_guess -> 71.80449272 | D119: psi
A120: Estimated feed pressure | B120: Pfeed_guess | C120: =Pnet_guess+pi_avg_guess+dP_tot_guess/2 -> 98.52869006 | D120: psi | E120: Second guess Pnet + Posm + dP/2

Sheet Pressure Tuning
A1: Pressure Tuning Calculations
A2: Bold gold cells are used by the design macro and should not be adjusted.
A4: Calculation | B4: Range Name | C4: Value | D4: Units | E4: Guidance
A5: Pressure tuning routine in progress? | B5: tune_in_prog | C5: FALSE
A7: Feed flow per pressure vessel | B7: Qfeed_stg1_try | C7: =Qfeed_1_guess -> 7.44047619 | D7: gpm
A8: Stage 1 pressure | B8: P_stg1_try | C8: 94.39617227 | D8: psi
A9: Pressure adjustment, stage 2 | B9: P_adjust_2_try | C9: 0 | D9: psi | E9: May be a throttle on stage 1 or a boost on stage 2
A10: Pressure adjustment, stage 3 | B10: P_adjust_3_try | C10: 0 | D10: psi | E10: May be a throttle on stage 2 or a boost on stage 3
A12: Resulting feed pressure | B12: P_feed_try | C12: =P_stg1_try+IF(P_adj_method_12=0,P_adjust_2_try,0)+IF(P_adj_method_23=0,P_adjust_3_try,0) -> 94.39617227 | D12: psi | E12: Inputs to "Calc System" module
A13: Throttle pressure, stage 1 | B13: P_throttle_1_try | C13: =IF(P_adj_method_12=0,P_adjust_2_try,0)+IF(P_adj_method_23=0,P_adjust_3_try,0) -> 0 | D13: psi
A14: Throttle pressure, stage 2 | B14: P_throttle_2_try | C14: =IF(P_adj_method_23=0,P_adjust_3_try,0) -> 0 | D14: psi
A15: Throttle pressure, stage 3 | B15: P_throttle_3_try | C15: 0 | D15: psi | E15: The pressure tuning routine will never throttle Stage 3.
A16: Boost pressure, stage 2 | B16: P_boost_2_try | C16: =IF(P_adj_method_12=1,P_adjust_2_try,0) -> 0 | D16: psi
A17: Boost pressure, stage 3 | B17: P_boost_3_try | C17: =IF(P_adj_method_23=1,P_adjust_3_try,0) -> 0 | D17: psi
A19: Target flux, stage 1 | B19: flux_targ_1 | C19: =target_flux -> 10.41666667 | D19: gfd | E19: Equal to the target flux for the whole system.
A20: Permeate flux, stage 1 | B20: flux_result_1 | C20: =stg_1 perm_flux_v -> 11.46564068 | D20: gfd
A21: Absolute difference | B21: flux_diff_1 | C21: =flux_result_1-flux_targ_1 -> 1.048974009 | D21: gfd
A22: Percentage difference | B22: flux_pctdiff_1 | C22: =flux_diff_1/flux_targ_1 -> 0.1007015048
A23: Average NDP, stage 1 | B23: ndp_avg_1 | C23: =AVERAGE(P_net_out (el_1_1,el_1_2,el_1_3,el_1_4,el_1_5,el_1_6,el_1_7)) -> 79.01273831 | D23: psi
A25: Flow result, stage 1 | B25: Qperm_1 | C25: =(perm_flow_v stg_1)*nves_1*24*60 -> 11007.01505 | D25: gal/day
A26: Flow needed, stages 2 and 3 | B26: Qperm_need_23 | C26: =IF(nves_2=0,"n/a",design_Qperm*24*60-Qperm_1) -> 3992.984952 | D26: gal/day
A27: Area available, stages 2 and 3 | B27: area_avail_23 | C27: =IF(nves_2=0,"n/a",(nves_2+nves_3)*area_per_vess) -> 480 | D27: ft^2
A28: Target flux, stages 2 and 3 | B28: flux_targ_23 | C28: =target_flux -> 10.41666667 | D28: gfd
A29: Permeate flux, stage 2 | B29: flux_result_2 | C29: =IF(OR(Qperm_need_23<0,nves_2=0),"n/a",stg_2 perm_flux_v) -> 8.202487238 | D29: gfd
A30: Absolute difference | B30: flux_diff_2 | C30: =IF(OR(Qperm_need_23<0,nves_2=0),"n/a",flux_result_2-flux_targ_23) -> -2.214179428 | D30: gfd
A31: Percentage difference | B31: flux_pctdiff_2 | C31: =IF(OR(Qperm_need_23<0,nves_2=0),"n/a",flux_diff_2/flux_targ_23) -> -0.2125612251
A32: Average NDP, stage 2 | B32: ndp_avg_2 | C32: =IF(nves_2=0,"n/a",AVERAGE(P_net_out (el_2_1,el_2_2,el_2_3,el_2_4,el_2_5,el_2_6,el_2_7))) -> 56.49667421 | D32: psi
A34: Flow result, stages 1 and 2 | B34: Qperm_12 | C34: =((perm_flow_v stg_1)*nves_1+(perm_flow_v stg_2)*nves_2)*24*60 -> 14944.20892 | D34: gal/day
A35: Flow needed, stage 3 | B35: Qperm_need_3 | C35: =IF(nves_3=0,"n/a",design_Qperm*24*60-Qperm_12) -> n/a | D35: gal/day
A36: Area available, stage 3 | B36: area_avail_3 | C36: =IF(nves_3=0,"n/a",nves_3*area_per_vess) -> n/a | D36: ft^2
A37: Target flux, stage 3 | B37: flux_targ_3 | C37: =target_flux -> 10.41666667 | D37: gfd
A38: Permeate flux, stage 3 | B38: flux_result_3 | C38: =IF(OR(Qperm_need_3<0,nves_3=0),"n/a",stg_3 perm_flux_v) -> n/a | D38: gfd
A39: Absolute difference | B39: flux_diff_3 | C39: =IF(OR(Qperm_need_3<0,nves_3=0),"n/a",flux_result_3-flux_targ_3) -> n/a | D39: gfd
A40: Percentage difference | B40: flux_pctdiff_3 | C40: =IF(OR(Qperm_need_3<0,nves_3=0),"n/a",flux_diff_3/flux_targ_3) -> n/a
A41: Average NDP, stage 3 | B41: ndp_avg_3 | C41: =IF(nves_3=0,"n/a",AVERAGE(P_net_out (el_3_1,el_3_2,el_3_3,el_3_4,el_3_5,el_3_6,el_3_7))) -> n/a | D41: psi
A43: Pressure adjustment for next iteration
A45: Adjustments if Stage 1 has errors or is off-spec
A46: Is there an error in stage 1? | B46: error_stg1 | C46: =IF(soln_success,FALSE,(current_element_stage=1)) -> FALSE
A47: Is stage 1 operating within spec? | B47: stg1_in_spec | C47: =AND(NOT(error_stg1),flux_result_1>=flux_targ_1*(1-perm_flow_tol),flux_result_1<=flux_targ_1*(1+flux_tol_hi)) -> TRUE
A48: Stage 1 minimum pressure | B48: stg1_min_pres | D48: psi | E48: Zero indicates no minimum. Filled in by the design macro when Stage 1 hits an error.
A49: Stage 1 maximum pressure | B49: stg1_max_pres | C49: 98.52869006 | D49: psi | E49: Zero indicates no maximum. Filled in by the design macro when Stage 1 hits an error.
A52: Pressure change to counter error | B52: stg1_Pchange_err | C52: =IF(error_stg1,P_change_required,"n/a") -> n/a | D52: psi
A53: Stage 1 NDP adjustment to return to spec, percent | B53: stg1_Pchange_spec_pct | C53: =IF(stg1_in_spec,0,IF(error_stg1,"n/a",-flux_diff_1/flux_result_1)) -> 0
A54: Pressure change to return to spec | B54: stg1_Pchange_spec | C54: =IF(error_stg1,"n/a",stg1_Pchange_spec_pct*ndp_avg_1) -> 0 | D54: psi
A55: Pressure change for Stage 1 | B55: stg1_Pchange | C55: =IF(error_stg1,stg1_Pchange_err,IF(NOT(stg1_in_spec),stg1_Pchange_spec,"n/a")) -> n/a | D55: psi
A57: New minimum pressure for Stage 1 | B57: stg1_min_pres_new | C57: =IF(AND(error_stg1,P_change_required>0),P_stg1_try,stg1_min_pres) -> 0 | D57: psi | E57: Zero indicates no minimum.
A58: New maximum pressure for Stage 1 | B58: stg1_max_pres_new | C58: =IF(AND(error_stg1,P_change_required<0),P_stg1_try,stg1_max_pres) -> 98.52869006 | D58: psi | E58: Zero indicates no maximum.
A60: New pressure for Stage 1 | B60: stg1_newP_fix1 | C60: =P_stg1_try+IF(stg1_Pchange="n/a",0,stg1_Pchange) -> 94.39617227 | D60: psi
A61: New Stage 1 pressure within bounds? | B61: stg1_newP_fix1_OK | C61: =AND(OR(stg1_min_pres=0,stg1_newP_fix1>stg1_min_pres),OR(stg1_max_pres=0,stg1_newP_fix1<stg1_max_pres)) -> TRUE
A62: Adjust Stage 1? | B62: stg1_adjust_1 | C62: =OR(error_stg1,NOT(stg1_in_spec)) -> FALSE
A64: Signal error? | B64: pressure_error_stg1 | C64: =IF(OR(error_stg1,NOT(stg1_in_spec)),NOT(stg1_newP_fix1_OK),FALSE) -> FALSE | E64: We signal an error if Stage 1 is off spec and the new pressure is out of bounds.
A66: Adjustments if Stage 2 has errors or is off-spec
A67: Is there an error in stage 2? | B67: error_stg2 | C67: =IF(soln_success,FALSE,(current_element_stage=2)) -> FALSE
A68: Is stage 2 operating within spec? | B68: stg2_in_spec | C68: =IF(nves_2=0,TRUE,AND(NOT(error_stg2),flux_result_2>=flux_targ_23*(1-flux_tol_lo),flux_result_2<=flux_targ_23*(1+flux_tol_hi))) -> TRUE
A69: Stage 2 beginning pressure | B69: stg2_Pstart | C69: =IF(error_stg1,"n/a",el_2_1 P_feed_out-el_2_1 P_throttle_out) -> 76.05721961 | D69: psi
A70: Stage 2 minimum pressure | B70: stg2_min_pres | D70: psi | E70: Filled in by the design macro when Stage 2 hits an error.
A71: Stage 2 maximum pressure | B71: stg2_max_pres | D71: psi | E71: Filled in by the design macro when Stage 2 hits an error.
A73: Pressure change to counter error | B73: stg2_Pchange_err | C73: =IF(error_stg2,P_change_required,"n/a") -> n/a | D73: psi
A74: Stage 2 NDP adjustment to return to spec, percent | B74: stg2_Pchange_spec_pct | C74: =IF(stg2_in_spec,0,IF(error_stg2,"n/a",-flux_diff_2/flux_result_2)) -> 0
A75: Pressure change to return to spec | B75: stg2_Pchange_spec | C75: =IF(nves_2=0,0,IF(error_stg2,"n/a",stg2_Pchange_spec_pct*ndp_avg_2)) -> 0 | D75: psi
A76: Pressure change for Stage 2 | B76: stg2_Pchange | C76: =IF(error_stg2,stg2_Pchange_err,IF(NOT(stg2_in_spec),stg2_Pchange_spec,"n/a")) -> n/a | D76: psi
A78: New minimum pressure for Stage 2 | B78: stg2_min_pres_new | C78: =IF(AND(error_stg2,P_change_required>0),stg2_Pstart,stg2_min_pres) -> 0 | D78: psi | E78: Zero indicates no minimum.
A79: New maximum pressure for Stage 2 | B79: stg2_max_pres_new | C79: =IF(AND(error_stg2,P_change_required<0),stg2_Pstart,stg2_max_pres) -> 0 | D79: psi | E79: Zero indicates no maximum.
A81: New pressure for Stage 1 | B81: stg1_newP_fix2 | C81: =P_stg1_try+IF(stg2_Pchange="n/a",0,stg2_Pchange) -> 94.39617227 | D81: psi
A82: New Stage 1 pressure within bounds? | B82: stg1_newP_fix2_OK | C82: =AND(OR(stg1_min_pres=0,stg1_newP_fix2>stg1_min_pres),OR(stg1_max_pres=0,stg1_newP_fix2<stg1_max_pres)) -> TRUE
A83: Adjust Stage 1 if no adjustment so far? | B83: stg1_adjust_2 | C83: =IF(stg1_adjust_1,FALSE,AND(OR(error_stg2,NOT(stg2_in_spec)),stg1_newP_fix2_OK)) -> FALSE
A85: New starting pressure for Stage 2 | B85: stg2_newP_fix2 | C85: =stg2_Pstart+IF(stg2_Pchange="n/a",0,stg2_Pchange) -> 76.05721961 | D85: psi
A86: New Stage 2 pressure within bounds? | B86: stg2_newP_fix2_OK | C86: =AND(OR(stg2_min_pres=0,stg2_newP_fix2>stg2_min_pres),OR(stg2_max_pres=0,stg2_newP_fix2<stg2_max_pres)) -> TRUE
A87: Adjust Stage 2 if no adjustment so far? | B87: stg2_adjust_2 | C87: =IF(OR(stg1_adjust_1,stg1_adjust_2),FALSE,AND(OR(error_stg2,NOT(stg2_in_spec)),stg2_newP_fix2_OK)) -> FALSE
A89: Signal error? | B89: pressure_error_stg2 | C89: =IF(OR(error_stg2,NOT(stg2_in_spec)),NOT(OR(stg1_newP_fix2_OK,stg2_newP_fix2_OK)),FALSE) -> FALSE | E89: We signal an error if Stage 2 is off spec and we can't find an in-bounds pressure for Stage 1 or 2.
A91: Adjustments if Stage 3 has errors or is off-spec
A92: Is there an error in stage 3? | B92: error_stg3 | C92: =IF(soln_success,FALSE,(current_element_stage=3)) -> FALSE
A93: Is stage 3 operating within spec? | B93: stg3_in_spec | C93: =IF(nves_3=0,TRUE,AND(NOT(error_stg3),flux_result_3>=flux_targ_3*(1-flux_tol_lo),flux_result_3<=flux_targ_3*(1+flux_tol_hi))) -> TRUE
A94: Stage 3 beginning pressure | B94: stg3_Pstart | C94: =IF(error_stg2,"n/a",el_3_1 P_feed_out-el_3_1 P_throttle_out) -> 0 | D94: psi
A95: Stage 3 minimum pressure | B95: stg3_min_pres | D95: psi | E95: Filled in by the design macro when Stage 3 hits an error.
A96: Stage 3 maximum pressure | B96: stg3_max_pres | D96: psi | E96: Filled in by the design macro when Stage 3 hits an error.
A98: Pressure change to counter error | B98: stg3_Pchange_err | C98: =IF(error_stg3,P_change_required,"n/a") -> n/a | D98: psi
A99: Stage 3 NDP adjustment to return to spec, percent | B99: stg3_Pchange_spec_pct | C99: =IF(stg3_in_spec,0,IF(error_stg3,"n/a",-flux_diff_3/flux_result_3)) -> 0
A100: Pressure change to return to spec | B100: stg3_Pchange_spec | C100: =IF(nves_3=0,0,IF(error_stg3,"n/a",stg3_Pchange_spec_pct*ndp_avg_3)) -> 0 | D100: psi
A101: Pressure change for Stage 3 | B101: stg3_Pchange | C101: =IF(error_stg3,stg3_Pchange_err,IF(NOT(stg3_in_spec),stg3_Pchange_spec,"n/a")) -> n/a | D101: psi
A103: New minimum pressure for Stage 3 | B103: stg3_min_pres_new | C103: =IF(AND(error_stg3,P_change_required>0),stg3_Pstart,stg3_min_pres) -> 0 | D103: psi | E103: Zero indicates no minimum.
A104: New maximum pressure for Stage 3 | B104: stg3_max_pres_new | C104: =IF(AND(error_stg3,P_change_required<0),stg3_Pstart,stg3_max_pres) -> 0 | D104: psi | E104: Zero indicates no maximum.
A106: New pressure for Stage 1 | B106: stg1_newP_fix3 | C106: =P_stg1_try+IF(stg3_Pchange="n/a",0,stg3_Pchange) -> 94.39617227 | D106: psi
A107: New Stage 1 pressure within bounds? | B107: stg1_newP_fix3_OK | C107: =AND(OR(stg1_min_pres=0,stg1_newP_fix3>stg1_min_pres),OR(stg1_max_pres=0,stg1_newP_fix3<stg1_max_pres)) -> TRUE
A108: Adjust Stage 1 if no adjustment so far? | B108: stg1_adjust_3 | C108: =IF(OR(stg1_adjust_1,stg1_adjust_2,stg2_adjust_2),FALSE,AND(OR(error_stg3,NOT(stg3_in_spec)),stg1_newP_fix3_OK)) -> FALSE
A110: New starting pressure for Stage 3 | B110: stg3_newP_fix3 | C110: =stg3_Pstart+IF(stg3_Pchange="n/a",0,stg3_Pchange) -> 0 | D110: psi
A111: New Stage 3 pressure within bounds? | B111: stg3_newP_fix3_OK | C111: =AND(OR(stg3_min_pres=0,stg3_newP_fix3>stg3_min_pres),OR(stg3_max_pres=0,stg3_newP_fix3<stg3_max_pres)) -> TRUE
A112: Adjust Stage 3 if no adjustment so far? | B112: stg3_adjust_3 | C112: =IF(OR(stg1_adjust_1,stg1_adjust_2,stg2_adjust_2,stg1_adjust_3),FALSE,AND(OR(error_stg3,NOT(stg3_in_spec)),stg3_newP_fix3_OK)) -> FALSE
A114: New starting pressure for Stage 2 | B114: stg2_newP_fix3 | C114: =stg2_Pstart+IF(stg3_Pchange="n/a",0,stg3_Pchange) -> 76.05721961 | D114: psi
A115: New Stage 2 pressure within bounds? | B115: stg2_newP_fix3_OK | C115: =AND(OR(stg3_min_pres=0,stg2_newP_fix3>stg3_min_pres),OR(stg3_max_pres=0,stg2_newP_fix3<stg3_max_pres)) -> TRUE
A116: Adjust Stage 2 if no adjustment so far? | B116: stg2_adjust_3 | C116: =IF(OR(stg1_adjust_1,stg1_adjust_2,stg2_adjust_2,stg1_adjust_3,stg3_adjust_3),FALSE,AND(OR(error_stg3,NOT(stg3_in_spec)),stg2_newP_fix3_OK)) -> FALSE
A118: Signal error? | B118: pressure_error_stg3 | C118: =IF(OR(error_stg3,NOT(stg3_in_spec)),NOT(OR(stg1_newP_fix3_OK,stg3_newP_fix3_OK,stg2_newP_fix3_OK)),FALSE) -> FALSE | E118: We signal an error if Stage 3 is off spec and we can't find an in-bounds pressure for any stage.
A120: Adjustments for overall permeate flow
A121: Resulting permeate flow | B121: Qperm_result | C121: =perm_flow_sys*24*60 -> 14944.20892 | D121: gal/day
A122: Absolute difference from target flow | B122: Qperm_diff | C122: =Qperm_result-design_Qperm*24*60 -> -55.7910773 | D122: gal/day
A123: Percentage difference from target flow | B123: Qperm_pctdiff | C123: =Qperm_diff/(design_Qperm*24*60) -> -0.003719405153
A124: Is permeate flow equal to target, within tolerance? | B124: perm_flow_ok | C124: =OR(ABS(Qperm_diff)<=perm_flow_abs_tol,ABS(Qperm_pctdiff)<=perm_flow_tol) -> TRUE | E124: Tolerance is set in the CDAs.
A126: Required percentage adjustment to NDP | B126: Pchange_flow_pct | C126: =-Qperm_pctdiff -> 0.003719405153
A127: Overall average NDP | B127: ndp_avg | C127: =AVERAGE(ndp_avg_1,ndp_avg_2,ndp_avg_3) -> 67.75470626 | D127: psi
A128: Pressure change to correct permeate flow | B128: Pchange_flow | C128: =IF(perm_flow_ok,"n/a",Pchange_flow_pct*ndp_avg) -> n/a | D128: psi
A130: New pressure for Stage 1 | B130: stg1_newP_flow | C130: =P_stg1_try+IF(Pchange_flow="n/a",0,Pchange_flow) -> 94.39617227 | D130: psi
A131: New Stage 1 pressure within bounds? | B131: stg1_newP_flow_OK | C131: =AND(OR(stg1_min_pres=0,stg1_newP_flow>stg1_min_pres),OR(stg1_max_pres=0,stg1_newP_flow<stg1_max_pres)) -> TRUE
A132: Adjust Stage 1 if no adjustment so far? | B132: stg1_adjust_flow | C132: =IF(OR(stg1_adjust_1,stg1_adjust_2,stg2_adjust_2,stg1_adjust_3,stg3_adjust_3,stg2_adjust_3,perm_flow_ok),FALSE,stg1_newP_flow_OK) -> FALSE
A134: New starting pressure for Stage 2 | B134: stg2_newP_flow | C134: =stg2_Pstart+IF(Pchange_flow="n/a",0,Pchange_flow) -> 76.05721961 | D134: psi
A135: New Stage 2 pressure within bounds? | B135: stg2_newP_flow_OK | C135: =AND(OR(stg3_min_pres=0,stg2_newP_flow>stg3_min_pres),OR(stg3_max_pres=0,stg2_newP_flow<stg3_max_pres)) -> TRUE
A136: Adjust Stage 2 if no adjustment so far? | B136: stg2_adjust_flow | C136: =IF(OR(stg1_adjust_1,stg1_adjust_2,stg2_adjust_2,stg1_adjust_3,stg3_adjust_3,stg2_adjust_3,perm_flow_ok,stg1_adjust_flow),FALSE,stg2_newP_flow_OK) -> FALSE
A138: New starting pressure for Stage 3 | B138: stg3_newP_flow | C138: =stg3_Pstart+IF(Pchange_flow="n/a",0,Pchange_flow) -> 0 | D138: psi
A139: New Stage 3 pressure within bounds? | B139: stg3_newP_flow_OK | C139: =AND(OR(stg3_min_pres=0,stg3_newP_flow>stg3_min_pres),OR(stg3_max_pres=0,stg3_newP_flow<stg3_max_pres)) -> TRUE
A140: Adjust Stage 3 if no adjustment so far? | B140: stg3_adjust_flow | C140: =IF(OR(stg1_adjust_1,stg1_adjust_2,stg2_adjust_2,stg1_adjust_3,stg3_adjust_3,stg2_adjust_3,perm_flow_ok,stg1_adjust_flow,stg2_adjust_flow),FALSE,stg3_newP_flow_OK) -> FALSE
A142: Signal error? | B142: pressure_error_flow | C142: =IF(NOT(perm_flow_ok),NOT(OR(stg1_newP_flow_OK,stg3_newP_flow_OK,stg2_newP_flow_OK)),FALSE) -> FALSE | E142: We signal an error if the flow is off spec and we can't find an in-bounds pressure for any stage.
A144: Chosen adjustments
A145: Stage to adjust | B145: stage_adjust | C145: =IF(OR(stg1_adjust_1,stg1_adjust_2,stg1_adjust_3,stg1_adjust_flow),1,IF(OR(stg2_adjust_2,stg2_adjust_3,stg2_adjust_flow),2,IF(OR(stg3_adjust_3,stg3_adjust_flow),3,"none"))) -> none | F145: Cells below and to the right for internal use by the design macro
A146: New Stage 1 pressure | B146: P_stg1_new | C146: =IF(stg1_adjust_1,stg1_newP_fix1,IF(stg1_adjust_2,stg1_newP_fix2,IF(stg1_adjust_3,stg1_newP_fix3,IF(stg1_adjust_flow,stg1_newP_flow,P_stg1_try)))) -> 94.39617227 | D146: psi | G146: 98.47373464 | H146: 94.39617227 | I146: 94.39617227 | J146: 129.5964757 | K146: 120.6937753 | L146: 123.8359877 | M146: 123.8359877 | N146: 128.4586012 | O146: 121.947829 | P146: 123.8370343 | Q146: 123.8370343 | R146: 127.4919154 | S146: 122.9430318 | T146: 127.4296516 | U146: 123.0049574 | V146: 123.0049574 | W146: 126.4892784 | X146: 123.9086731 | Y146: 123.9086731 | Z146: 125.9279906 | AA146: 124.420198 | AB146: 124.420198 | AC146: 125.574607 | AD146: 124.7317024 | AE146: 124.7317024 | AF146: 106.1653484 | AG146: 107.0881031 | AH146: 106.1716573 | AI146: 107.0876463 | AJ146: 106.1722605 | AK146: 107.0876026 | AL146: 106.1723182 | AM146: 107.0875984 | AN146: 106.1723237 | AO146: 107.087598 | AP146: 106.1723243 | AQ146: 107.087598 | AR146: 106.1723243 | AS146: 107.087598 | AT146: 106.1723243 | AU146: 107.087598 | AV146: 106.1723243 | AW146: 107.087598 | AX146: 106.1723243 | AY146: 107.087598 | AZ146: 106.1723243 | BA146: 106.1723243 | BB146: 106.1723243 | BC146: 106.1716655 | BD146: 106.1716655 | BE146: 20.06271902 | BF146: 0 | BG146: 15.89460024 | BH146: 20.06271902 | BI146: 0 | BJ146: 15.89460024 | BK146: 20.06271902 | BL146: 0 | BM146: 15.89460024 | BN146: 20.06271902 | BO146: 0 | BP146: 15.89460024 | BQ146: 20.06271902 | BR146: 0 | BS146: 15.89460024 | BT146: 20.06271902 | BU146: 0 | BV146: 15.89460024 | BW146: 20.06271902 | BX146: 0 | BY146: 15.89460024 | BZ146: 20.06271902 | CA146: 0 | CB146: 15.89460024 | CC146: 20.06271902 | CD146: 0 | CE146: 15.89460024 | CF146: 20.06271902 | CG146: 0 | CH146: 15.89460024
A147: New Stage 2 pressure adjustment | B147: P_adjust_2_new | C147: =IF(stg2_adjust_2,stg2_Pchange,IF(stg2_adjust_3,stg3_Pchange,IF(stg2_adjust_flow,Pchange_flow,0)))+P_adjust_2_try -> 0 | D147: psi | G147: 0 | H147: 0 | I147: 0 | J147: 0 | K147: 0 | L147: 0 | M147: 5.760542259 | N147: 5.760542259 | O147: 5.760542259 | P147: 5.760542259 | Q147: 10.38220736 | R147: 10.38220736 | S147: 10.38220736 | T147: 10.38220736 | U147: 10.38220736 | V147: 14.81171569 | W147: 14.81171569 | X147: 14.81171569 | Y147: 17.42573802 | Z147: 17.42573802 | AA147: 17.42573802 | AB147: 18.93620039 | AC147: 18.93620039 | AD147: 18.93620039 | AE147: 18.93620039 | AF147: 7.793854043 | AG147: 7.793854043 | AH147: 7.793854043 | AI147: 7.793854043 | AJ147: 7.793854043 | AK147: 7.793854043 | AL147: 7.793854043 | AM147: 7.793854043 | AN147: 7.793854043 | AO147: 7.793854043 | AP147: 7.793854043 | AQ147: 7.793854043 | AR147: 7.793854043 | AS147: 7.793854043 | AT147: 7.793854043 | AU147: 7.793854043 | AV147: 7.793854043 | AW147: 7.793854043 | AX147: 7.793854043 | AY147: 7.793854043 | AZ147: 7.793854043 | BA147: 8.709127718 | BB147: 8.709127718 | BC147: 8.708532077 | BD147: 8.708532077 | BE147: 0 | BF147: 0 | BG147: 0 | BH147: 0 | BI147: 0 | BJ147: 0 | BK147: 0 | BL147: 0 | BM147: 0 | BN147: 0 | BO147: 0 | BP147: 0 | BQ147: 0 | BR147: 0 | BS147: 0 | BT147: 0 | BU147: 0 | BV147: 0 | BW147: 0 | BX147: 0 | BY147: 0 | BZ147: 0 | CA147: 0 | CB147: 0 | CC147: 0 | CD147: 0 | CE147: 0 | CF147: 0 | CG147: 0 | CH147: 0
A148: New Stage 3 pressure adjustment | B148: P_adjust_3_new | C148: =IF(stg3_adjust_3,stg3_Pchange,IF(stg3_adjust_flow,Pchange_flow,0))+P_adjust_3_try -> 0 | D148: psi | G148: 0 | H148: 0 | I148: 0 | J148: 0 | K148: 0 | L148: 0 | M148: 0 | N148: 0 | O148: 0 | P148: 0 | Q148: 0 | R148: 0 | S148: 0 | T148: 0 | U148: 0 | V148: 0 | W148: 0 | X148: 0 | Y148: 0 | Z148: 0 | AA148: 0 | AB148: 0 | AC148: 0 | AD148: 0 | AE148: 0 | AF148: 0 | AG148: 0 | AH148: 0 | AI148: 0 | AJ148: 0 | AK148: 0 | AL148: 0 | AM148: 0 | AN148: 0 | AO148: 0 | AP148: 0 | AQ148: 0 | AR148: 0 | AS148: 0 | AT148: 0 | AU148: 0 | AV148: 0 | AW148: 0 | AX148: 0 | AY148: 0 | AZ148: 0 | BA148: 0 | BB148: 0 | BC148: 0 | BD148: 0 | BE148: 0 | BF148: 0 | BG148: 0 | BH148: 0 | BI148: 0 | BJ148: 0 | BK148: 0 | BL148: 0 | BM148: 0 | BN148: 0 | BO148: 0 | BP148: 0 | BQ148: 0 | BR148: 0 | BS148: 0 | BT148: 0 | BU148: 0 | BV148: 0 | BW148: 0 | BX148: 0 | BY148: 0 | BZ148: 0 | CA148: 0 | CB148: 0 | CC148: 0 | CD148: 0 | CE148: 0 | CF148: 0 | CG148: 0 | CH148: 0
F149: Stage 1, element 6: Warning: Recovery is too large in this element. Try decreasing feed pressure or applying throttle pressure to the vessel. | G149: Could not reach target recovery. | H149: Calculation completed OK. | I149: Could not reach target recovery. | J149: Stage 1, element 6: Warning: Recovery is too large in this element. Try decreasing feed pressure or applying throttle pressure to the vessel. | K149: Could not reach target recovery. | L149: Could not reach target recovery. | M149: Could not reach target recovery. | N149: Stage 1, element 6: Warning: Recovery is too large in this element. Try decreasing feed pressure or applying throttle pressure to the vessel. | O149: Could not reach target recovery. | P149: Could not reach target recovery. | Q149: Could not reach target recovery. | R149: Stage 1, element 6: Warning: Recovery is too large in this element. Try decreasing feed pressure or applying throttle pressure to the vessel. | S149: Could not reach target recovery. | T149: Stage 1, element 6: Warning: Recovery is too large in this element. Try decreasing feed pressure or applying throttle pressure to the vessel. | U149: Could not reach target recovery. | V149: Could not reach target recovery. | W149: Stage 1, element 6: Warning: Recovery is too large in this element. Try decreasing feed pressure or applying throttle pressure to the vessel. | X149: Could not reach target recovery. | Y149: Could not reach target recovery. | Z149: Stage 1, element 6: Warning: Recovery is too large in this element. Try decreasing feed pressure or applying throttle pressure to the vessel. | AA149: Could not reach target recovery. | AB149: Could not reach target recovery. | AC149: Stage 1, element 6: Warning: Recovery is too large in this element. Try decreasing feed pressure or applying throttle pressure to the vessel. | AD149: Calculation completed OK. | AE149: Stage 1, element 8: Warning: Recovery is too large in this element. Try decreasing feed pressure or applying throttle pressure to the vessel. | AF149: Could not reach target recovery. | AG149: Stage 1, element 8: Warning: Recovery is too large in this element. Try decreasing feed pressure or applying throttle pressure to the vessel. | AH149: Could not reach target recovery. | AI149: Stage 1, element 8: Warning: Recovery is too large in this element. Try decreasing feed pressure or applying throttle pressure to the vessel. | AJ149: Could not reach target recovery. | AK149: Stage 1, element 8: Warning: Recovery is too large in this element. Try decreasing feed pressure or applying throttle pressure to the vessel. | AL149: Could not reach target recovery. | AM149: Stage 1, element 8: Warning: Recovery is too large in this element. Try decreasing feed pressure or applying throttle pressure to the vessel. | AN149: Could not reach target recovery. | AO149: Stage 1, element 8: Warning: Recovery is too large in this element. Try decreasing feed pressure or applying throttle pressure to the vessel. | AP149: Could not reach target recovery. | AQ149: Stage 1, element 8: Warning: Recovery is too large in this element. Try decreasing feed pressure or applying throttle pressure to the vessel. | AR149: Could not reach target recovery. | AS149: Stage 1, element 8: Warning: Recovery is too large in this element. Try decreasing feed pressure or applying throttle pressure to the vessel. | AT149: Could not reach target recovery. | AU149: Stage 1, element 8: Warning: Recovery is too large in this element. Try decreasing feed pressure or applying throttle pressure to the vessel. | AV149: Could not reach target recovery. | AW149: Stage 1, element 8: Warning: Recovery is too large in this element. Try decreasing feed pressure or applying throttle pressure to the vessel. | AX149: Could not reach target recovery. | AY149: Stage 1, element 8: Warning: Recovery is too large in this element. Try decreasing feed pressure or applying throttle pressure to the vessel. | AZ149: Could not reach target recovery. | BA149: Calculation completed OK. | BB149: Could not reach target recovery. | BC149: Calculation completed OK. | BD149: Stage 1, element 2: | BE149: Stage 1, element 1: Warning: Calculation did not converge. | BF149: Stage 1, element 1: Warning: Driving pressure is zero or negative. Try increasing feed pressure or using a booster pump. | BG149: Stage 1, element 2: | BH149: Stage 1, element 1: Warning: Calculation did not converge. | BI149: Stage 1, element 1: Warning: Driving pressure is zero or negative. Try increasing feed pressure or using a booster pump. | BJ149: Stage 1, element 2: | BK149: Stage 1, element 1: Warning: Calculation did not converge. | BL149: Stage 1, element 1: Warning: Driving pressure is zero or negative. Try increasing feed pressure or using a booster pump. | BM149: Stage 1, element 2: | BN149: Stage 1, element 1: Warning: Calculation did not converge. | BO149: Stage 1, element 1: Warning: Driving pressure is zero or negative. Try increasing feed pressure or using a booster pump. | BP149: Stage 1, element 2: | BQ149: Stage 1, element 1: Warning: Calculation did not converge. | BR149: Stage 1, element 1: Warning: Driving pressure is zero or negative. Try increasing feed pressure or using a booster pump. | BS149: Stage 1, element 2: | BT149: Stage 1, element 1: Warning: Calculation did not converge. | BU149: Stage 1, element 1: Warning: Driving pressure is zero or negative. Try increasing feed pressure or using a booster pump. | BV149: Stage 1, element 2: | BW149: Stage 1, element 1: Warning: Calculation did not converge. | BX149: Stage 1, element 1: Warning: Driving pressure is zero or negative. Try increasing feed pressure or using a booster pump. | BY149: Stage 1, element 2: | BZ149: Stage 1, element 1: Warning: Calculation did not converge. | CA149: Stage 1, element 1: Warning: Driving pressure is zero or negative. Try increasing feed pressure or using a booster pump. | CB149: Stage 1, element 2: | CC149: Stage 1, element 1: Warning: Calculation did not converge. | CD149: Stage 1, element 1: Warning: Driving pressure is zero or negative. Try increasing feed pressure or using a booster pump. | CE149: Stage 1, element 2: | CF149: Stage 1, element 1: Warning: Calculation did not converge. | CG149: Stage 1, element 1: Warning: Driving pressure is zero or negative. Try increasing feed pressure or using a booster pump.
A150: Signal error? | B150: pressure_error | C150: =OR(pressure_error_stg1,pressure_error_stg2,pressure_error_stg3,pressure_error_flow) -> FALSE
A151: Error message | B151: pressure_err_msg | C151: =IF(pressure_error,IF(pressure_error_stg1,"Can't find suitable pressure in Stage 1.",IF(pressure_error_stg2,"Can't find suitable pressure in Stage 2",IF(pressure_error_stg3,"Can't find suitable pressure in Stage 3","Can't find suitable pressures for the requested product flow"))),"") -> 
A152: Tuning complete? | B152: tuning_complete | C152: =AND(NOT(pressure_error),stage_adjust="none") -> TRUE
A154: Iteration count | B154: num_iterations_pressure | C154: 3 | E154: Filled in by the design macro.

Sheet Calc System
A1: Calc System: Train Design Detail Calculations
A3: Input Source | B3: Calculation | C3: Range Name | D3: Value | E3: Units | F3: Guidance
B4: Inputs
B5: Element Data - looked up from element table
B6: Selected element index | C6: element_index | D6: =MATCH(element_I,element_names,0) -> 4 | F6: index into the element data table; linked to dropdown on the input sheet
A7: element | B7: Name | C7: sys_element_name | D7: =VLOOKUP("name",element_table,element_index+1,FALSE) -> 4 inch Low Pressure RO
A8: element | B8: Length | C8: sys_element_length | D8: =VLOOKUP("length",element_table,element_index+1,FALSE) -> 40 | E8: in
A9: element | B9: Diameter | C9: sys_element_diam | D9: =VLOOKUP("diameter",element_table,element_index+1,FALSE) -> 4 | E9: in
A10: element | B10: Area | C10: sys_element_area_I | D10: =VLOOKUP("area",element_table,element_index+1,FALSE) -> 80 | E10: ft^2
A11: element | B11: A value | C11: sys_element_A_I | D11: =VLOOKUP("A_I",element_table,element_index+1,FALSE) -> 0.24 | E11: gfd/psi | F11: at zero pressure and osmotic pressure, and reference temperature; obtained from fit to manufacturer's programs run at a range of pressures and salinities
A12: element | B12: B minimum value | C12: sys_element_B_min_I | D12: =VLOOKUP("B_min_I",element_table,element_index+1,FALSE) -> 0.2 | E12: gfd | F12: at reference temperature, and minimum-B TDS; obtained from manufacturer's programs run at a range of salinities
A13: element | B13: B maximum value | C13: sys_element_B_max_I | D13: =VLOOKUP("B_max_I",element_table,element_index+1,FALSE) -> 0.36 | E13: gfd | F13: at reference temperature, and very large TDS; B will not be permitted to exceed this value before temp correction. Obtained from manufacturer's programs run at a range of salinities.
A14: element | B14: Delta-P coefficient | C14: sys_element_dp_coeff_I | D14: =VLOOKUP("dp_coeff_I",element_table,element_index+1,FALSE) -> 0.25 | E14: psi/gpm^exp | F14: deltaP = coeff * (avg flow)^exponent * sqrt(viscosity/ref. viscosity)
A15: element | B15: Delta-P exponent | C15: sys_element_dp_exp | D15: =VLOOKUP("dp_exp",element_table,element_index+1,FALSE) -> 1.4
A16: element | B16: A correction coeff for temperature below ref temp | C16: sys_element_A_T_coeff_lo | D16: =VLOOKUP("A_T_coeff_lo",element_table,element_index+1,FALSE) -> 2900 | E16: Kelvins | F16: correction factor is exp(coeff*(1/Tref-1/T)) [T in Kelvins]
A17: element | B17: A correction coeff for temperature above ref temp | C17: sys_element_A_T_coeff_hi | D17: =VLOOKUP("A_T_coeff_hi",element_table,element_index+1,FALSE) -> 2900 | E17: Kelvins
A18: element | B18: A correction coeff for applied pressure | C18: sys_element_A_P_coeff | D18: =VLOOKUP("A_P_coeff_I",element_table,element_index+1,FALSE) -> 0.0005 | E18: /atm | F18: correction factor is 1-coeff*pressure; ranges from 0.004 for seawater type elements to 0.007 for low-pressure elements
A19: element | B19: A correction coeff for osmotic pressure | C19: sys_element_A_S_coeff_I | D19: =VLOOKUP("A_S_coeff_I",element_table,element_index+1,FALSE) -> 3e-05 | E19: /psi | F19: correction factor is 1-coeff*PI_avg
A20: element | B20: B correction coeff for temperature | C20: sys_element_B_T_coeff | D20: =VLOOKUP("B_T_coeff",element_table,element_index+1,FALSE) -> 2700 | E20: Kelvins | F20: correction factor is exp(coeff*(1/Tref-1/T)) [T in Kelvins]
A21: element | B21: Salinity for minimum B | C21: sys_element_sal_min_B | D21: =VLOOKUP("sal_minB",element_table,element_index+1,FALSE) -> 500 | E21: ppm | F21: obtain from manufacturer's programs
A22: element | B22: B correction coeff for salinity below min | C22: sys_element_B_S_coeff_lo | D22: =VLOOKUP("B_S_coeff_lo",element_table,element_index+1,FALSE) -> 0.0008 | E22: /ppm | F22: correction factor is 1-coeff*(TDS-TDSminB)
A23: element | B23: B correction coeff for salinity above min | C23: sys_element_B_S_coeff_hi | D23: =VLOOKUP("B_S_coeff_hi",element_table,element_index+1,FALSE) -> 2.666666667e-05 | E23: /ppm | F23: correction factor is 1+coeff*(TDS-TDSminB)
A24: element | B24: Reference temperature | C24: sys_element_ref_temp | D24: =VLOOKUP("ref_temp_I",element_table,element_index+1,FALSE) -> 25 | E24: deg C | F24: temperature where A and B are determined
A25: element | B25: Reference feed TDS | C25: sys_element_ref_TDS | D25: =VLOOKUP("ref_tds",element_table,element_index+1,FALSE) -> 1500 | E25: ppm | F25: from element spec sheet
A26: element | B26: Concentration polarization coefficient | C26: sys_element_beta_coeff | D26: =VLOOKUP("beta_coeff",element_table,element_index+1,FALSE) -> 0.9 | F26: obtain from manufacturer's programs
A27: element | B27: Membrane type | C27: sys_element_type | D27: =VLOOKUP("type",element_table,element_index+1,FALSE) -> RO | F27: RO or NF
A28: CDA | B28: Min system recovery | C28: min_sys_recovery | D28: =IF(sys_element_type="RO",recov_min_ro,recov_min_nf) -> 0.5
A29: CDA | B29: Max system recovery | C29: max_sys_recovery | D29: =IF(sys_element_type="RO",recov_max_ro,recov_max_nf) -> 0.85
B31: Operating limits
A32: element | B32: Maximum feed pressure | C32: max_P_feed_I | D32: =VLOOKUP("max_P_feed_I",element_table,element_index+1,FALSE) -> 500 | E32: psi
A33: element | B33: Maximum recovery | C33: max_recovery | D33: =VLOOKUP("max_recovery",element_table,element_index+1,FALSE) -> 0.15
A34: element | B34: Maximum feed flow | C34: max_feed_flow_I | D34: =VLOOKUP("max_feed_flow_I",element_table,element_index+1,FALSE) -> 16 | E34: gpm
A35: element | B35: Minimum concentrate flow | C35: min_conc_flow_I | D35: =VLOOKUP("min_conc_flow_I",element_table,element_index+1,FALSE) -> 3 | E35: gpm
A36: element | B36: Maximum feed SDI | C36: max_feed_SDI | D36: =VLOOKUP("max_feed_SDI",element_table,element_index+1,FALSE) -> 5 | E36: (15 min)
A37: element | B37: Minimum feed pH for continuous operation | C37: min_feed_pH | D37: =VLOOKUP("min_feed_pH",element_table,element_index+1,FALSE) -> 3 | E37: s.u.
A38: element | B38: Maximum temperature | C38: max_temp | D38: =VLOOKUP("max_temp",element_table,element_index+1,FALSE) -> 45 | E38: deg C
A39: element | B39: Maximum pressure drop per element | C39: max_deltaP_el_I | D39: =VLOOKUP("max_deltaP_el_I",element_table,element_index+1,FALSE) -> 10 | E39: psi
A40: element | B40: Maximum pressure drop per vessel | C40: max_deltaP_ves_I | D40: =VLOOKUP("max_deltaP_ves_I",element_table,element_index+1,FALSE) -> 50 | E40: psi
B42: Ion passage coefficients | F42: based on element type (NF or RO)
B43: Ca | C43: ion_passage_coeffs | D43: =IF(sys_element_type="RO",ion_conc_pol_coeffs_ro,IF(sys_element_type="NF",ion_conc_pol_coeffs_nf,1)) -> 0.25
B44: Mg | D44: 0.25
B45: Na | D45: 1
B46: K | D46: 1.3
B47: Ba | D47: 0.25
B48: Sr | D48: 0.25
B49: HCO3 | D49: 1
B50: CO3 | D50: 0.25
B51: Cl | D51: 1
B52: SO4 | D52: 0.25
B53: F | D53: 0.7
B54: SiO2 | D54: 0.75
B55: CO2 | D55: 0
B57: Feed Water
B58: Feed concentrations
A59: water | B59: Ca | C59: sys_feed_ppm | D59: =tfeed_ppm_bal -> 70.12209792 | E59: ppm
A60: water | B60: Mg | D60: 18.03139661 | E60: ppm
A61: water | B61: Na | D61: 47.08198003 | E61: ppm
A62: water | B62: K | D62: 3.005232768 | E62: ppm
A63: water | B63: Ba | D63: 0.002003488512 | E63: ppm
A64: water | B64: Sr | D64: 1.101918682 | E64: ppm
A65: water | B65: HCO3 | D65: 158.1324154 | E65: ppm
A66: water | B66: CO3 | D66: 0.08313078344 | E66: ppm
A67: water | B67: Cl | D67: 40.42960321 | E67: ppm
A68: water | B68: SO4 | D68: 162.9390256 | E68: ppm
A69: water | B69: F | D69: 0.09982618077 | E69: ppm
A70: water | B70: SiO2 | D70: 10 | E70: ppm
A71: water | B71: CO2 | C71: sys_feed_gas_ppm | D71: 27.50529759 | E71: ppm
B73: System
B74: Maximum feed flow based on head loss | C74: sys_max_dP_flow | D74: =(max_deltaP_el_I/sys_element_dp_coeff_I)^(1/sys_element_dp_exp) -> 13.94211194 | E74: gpm | F74: At this feed flow, the element will experience its maximum head loss.
B76: Computation
B77: Factor to apply to delta P_net | C77: sys_step_factor | D77: 0.7
B78: Precision for iteration | C78: sys_iter_precision | D78: 0.0001 | F78: The tolerance permitted during iteration on P_net for a given element.
B80: Outputs, whole system
B81: Computation in progress? | C81: comp_in_prog | D81: FALSE
B82: Result of calculation | C82: calc_result | D82: Calculation completed OK.
B83: Number of stages | C83: num_stages_out | D83: 2
B84: Stage 1:2 ratio | C84: stage_1_2_ratio | D84: 2:1
B85: Stage 2:3 ratio | C85: stage_2_3_ratio
B86: Vessels in stage 1 | C86: num_vess_1_out | D86: 2
B87: Vessels in stage 2 | C87: num_vess_2_out | D87: 1
B88: Vessels in stage 3 | C88: num_vess_3_out
B89: Feed flow | C89: feed_flow_sys | D89: =stg_1 feed_flow_v * num_vess_1_out -> 14.88095238 | E89: gpm
B90: Concentrate flow | C90: conc_flow_sys | D90: =stg_2 conc_flow_v * num_vess_2_out -> 4.503029518 | E90: gpm
B91: Permeate flow | C91: perm_flow_sys | D91: =feed_flow_sys-conc_flow_sys -> 10.37792286 | E91: gpm
B92: Recovery | C92: recovery_rate | D92: =perm_flow_sys/feed_flow_sys -> 0.6973964164
B93: Feed TDS | C93: feed_tds_sys | D93: =stg_1 feed_tds_v -> 511.0286307 | E93: ppm
B94: Permeate TDS | C94: perm_tds_sys | D94: =(feed_tds_sys*feed_flow_sys-conc_tds_sys*conc_flow_sys)/perm_flow_sys -> 7.998909785 | E94: ppm
B95: Permeate TDS at 180 degrees C | C95: perm_tds_sys_180c | D95: =perm_tds_sys-D120/2 -> 6.176855955 | E95: ppm
B96: Concentrate TDS | C96: conc_tds_sys | D96: =stg_2 conc_tds_v -> 1670.337851 | E96: ppm
B97: Salt rejection | C97: salt_rej_sys | D97: =1-perm_tds_sys/feed_tds_sys -> 0.9843474332
B98: Train configuration | C98: train_configuration | D98: =CHOOSE(num_stages_out,"1 stage",stage_1_2_ratio,num_vess_1_out&":"&num_vess_2_out&":"&num_vess_3_out) -> 2:1
B99: Pressure vessels per train | C99: PVs_per_train_calc | D99: =CHOOSE(num_stages_out,num_vess_1_out,num_vess_1_out+num_vess_2_out,num_vess_1_out+num_vess_2_out+num_vess_3_out) -> 3
B100: Elements per train | C100: elements_per_train_calc | D100: =PVs_per_train_calc*el_per_vess -> 18
B101: Total membrane area per train | C101: area_per_train_calc | D101: =elements_per_train_calc*sys_element_area_I -> 1440 | E101: ft^2
B103: Total iterations, all elements | C103: total_iterations_sys | D103: =SUM(num_iterations_out) -> 50
B105: Concentrate LSI | C105: conc_LSI_sys | D105: =el_2_6 conc_LSI_out -> 0.7618951983
B106: Concentrate CaSO4 saturation | C106: conc_CaSO4_sat_sys | D106: =el_2_6 conc_CaSO4_sat_out -> 0.2104546261
B107: Concentrate BaSO4 saturation | C107: conc_BaSO4_sat_sys | D107: =el_2_6 conc_BaSO4_sat_out -> 0.5948262681
B108: Concentrate SrSO4 saturation | C108: conc_SrSO4_sat_sys | D108: =el_2_6 conc_SrSO4_sat_out -> 0.2059136988
B109: Concentrate CaF2 saturation | C109: conc_CaF2_sat_sys | D109: =el_2_6 conc_CaF2_sat_out -> 0.03115149438
B110: Concentrate SiO2 concentration | C110: conc_SiO2_conc_sys | D110: =OFFSET((el_2_6 conc_conc_out),(ion_sio2 ion_offset),0,1,1) -> 32.58847697 | E110: ppm
B111: Concentrate SiO2 saturation | C111: conc_SiO2_sat_sys | D111: =el_2_6 conc_SiO2_sat_out -> 0.3103664473
B113: Permeate ion concentrations
B114: Ca | C114: perm_ion_concs | D114: =(sys_feed_ppm*feed_flow_sys-(el_2_6 conc_conc_out)*conc_flow_sys)/perm_flow_sys -> 0.5479002298 | E114: ppm | F114: =perm_ion_concs/sys_feed_ppm -> 0.007813517365
B115: Mg | D115: 0.1408886305 | E115: ppm | F115: 0.007813517365
B116: Na | D116: 1.460541732 | E116: ppm | F116: 0.03102124699
B117: K | D117: 0.1208323493 | E117: ppm | F117: 0.0402073179
B118: Ba | D118: 1.565429228e-05 | E118: ppm | F118: 0.007813517365
B119: Sr | D119: 0.008609860754 | E119: ppm | F119: 0.007813517365
B120: HCO3 | D120: 3.64410766 | E120: ppm | F120: 0.02304465945
B121: CO3 | D121: 5.113551885e-05 | E121: ppm | F121: 0.0006151213393
B122: Cl | D122: 0.9316730645 | E122: ppm | F122: 0.02304432867
B123: SO4 | D123: 0.9439219433 | E123: ppm | F123: 0.005793099227
B124: F | D124: 0.001613871605 | E124: ppm | F124: 0.01616681709
B125: SiO2 | D125: 0.1987536537 | E125: ppm | F125: 0.01987536537
B126: CO2 | C126: perm_gas_concs | D126: 27.50549839 | E126: ppm | F126: 1.0000073
B128: Ion concentrations in blended product
B129: Ca | C129: blend_ion_concs | D129: =(perm_ion_concs*design_flow_rate+feed_ppm_bal*bp_flow_rate)/(design_flow_rate+bp_flow_rate) -> 0.5479002298 | E129: ppm
B130: Mg | D130: 0.1408886305 | E130: ppm
B131: Na | D131: 1.460541732 | E131: ppm
B132: K | D132: 0.1208323493 | E132: ppm
B133: Ba | D133: 1.565429228e-05 | E133: ppm
B134: Sr | D134: 0.008609860754 | E134: ppm
B135: HCO3 | D135: 3.64410766 | E135: ppm
B136: CO3 | D136: 5.113551885e-05 | E136: ppm
B137: Cl | D137: 0.9316730645 | E137: ppm
B138: SO4 | D138: 0.9439219433 | E138: ppm
B139: F | D139: 0.001613871605 | E139: ppm
B140: SiO2 | D140: 0.1987536537 | E140: ppm
B141: CO2 | C141: blend_gas_concs | D141: 27.50549839 | E141: ppm
B143: TDS of blended product | C143: blend_TDS | D143: =SUM(blend_ion_concs)-SUM(blend_gas_concs) -> 7.998909785 | E143: ppm
B144: TDS of blended product at 180 degrees C | C144: blend_TDS_180c | D144: =blend_TDS-D135/2 -> 6.176855955 | E144: ppm
A147: Output calculations below this line are used internally and vary in table structure as required by the design macros
D148: Stage 1 | E148: Stage 2 | F148: Stage 3
B149: Outputs, per stage | D149: stg_1 | E149: stg_2 | F149: stg_3
B150: Feed flow per vessel | C150: feed_flow_v | D150: =el_1_1 feed_flow_out -> 7.44047619 | E150: =el_2_1 feed_flow_out -> 7.237191931 | G150: gpm
B151: Permeate flow per vessel | C151: perm_flow_v | D151: =el_1_6 c_perm_flow_out -> 3.821880225 | E151: =el_2_6 c_perm_flow_out -> 2.734162413 | G151: gpm
B152: Concentrate flow per vessel | C152: conc_flow_v | D152: =el_1_6 conc_flow_out -> 3.618595965 | E152: =el_2_6 conc_flow_out -> 4.503029518 | G152: gpm
B153: Permeate flux | C153: perm_flux_v | D153: =(stg_1 perm_flow_v)*24*60/area_per_vess -> 11.46564068 | E153: =(stg_2 perm_flow_v)*24*60/area_per_vess -> 8.202487238 | G153: gfd
B154: Vessel ratio, this stage | C154: ratio_curr_v | D154: 2
B155: Vessel ratio, next stage | C155: ratio_next_v | D155: 1
B156: Recovery within stage | C156: recovery_v | D156: =el_1_6 c_recovery_out -> 0.5136607023 | E156: =el_2_6 c_recovery_out -> 0.3777932711
B157: Cumulative recovery | C157: c_recovery_v | D157: =(stg_1 perm_flow_v)/(stg_1 feed_flow_v) -> 0.5136607023 | E157: =1-(stg_2 conc_flow_v)/((stg_1 feed_flow_v)*(stg_1 ratio_curr_v)/(stg_1 ratio_next_v)) -> 0.6973964164
B158: Feed pressure | C158: P_feed_v | D158: =el_1_1 P_feed_out -> 94.39617227 | E158: =el_2_1 P_feed_out -> 76.05721961 | G158: psi
B159: Pressure drop for vessel | C159: deltaP_v | D159: =el_1_6 c_dP_out -> 18.33895266 | E159: =el_2_6 c_dP_out -> 19.83037687 | G159: psi
B160: Feed TDS | C160: feed_tds_v | D160: =el_1_1 feed_tds_out -> 511.0286307 | E160: =el_2_1 feed_tds_out -> 1044.760033 | G160: ppm
B161: Permeate TDS | C161: perm_tds_v | D161: =el_1_6 c_perm_tds_out -> 5.686185307 | E161: =el_2_6 c_perm_tds_out -> 14.46447738 | G161: ppm
B162: Concentrate TDS | C162: conc_tds_v | D162: =el_1_6 conc_tds_out -> 1044.760033 | E162: =el_2_6 conc_tds_out -> 1670.337851 | G162: ppm
B163: Salt rejection | C163: salt_rej_v | D163: =el_1_6 c_salt_rej_out -> 0.9888730592 | E163: =el_2_6 c_salt_rej_out -> 0.9861552156
A165: Format of the output calculations below:
A166: Outputs are computed on the element computation sheet. Some are copied to this sheet (with unit conversion). These are
A167: indicated by the code "copied" in column D here. Other outputs are computed on this sheet, via the template formulas in
A168: column D--those are used for computation, not just for reference! In these formulas, the code CURR indicates the current
A169: element, PREV indicates the previous element, and FIRST indicates the first element in the stage. Cumulative quantities
A170: are computed within each stage; per-stage outputs are elsewhere. Some template formulas refer to the previous element
A171: in a stage. Since these formulas will not be meaningful for the first element in a stage, they include a second version,
A172: which is used for the first element in a stage. The two versions are separated by a colon.
E173: Stage 1 | N173: Stage 2 | W173: Stage 3
E174: Element 1 | F174: Element 2 | G174: Element 3 | H174: Element 4 | I174: Element 5 | J174: Element 6 | K174: Element 7 | L174: Element 8 | N174: Element 1 | O174: Element 2 | P174: Element 3 | Q174: Element 4 | R174: Element 5 | S174: Element 6 | T174: Element 7 | U174: Element 8 | W174: Element 1 | X174: Element 2 | Y174: Element 3 | Z174: Element 4 | AA174: Element 5 | AB174: Element 6 | AC174: Element 7 | AD174: Element 8
B175: Outputs, per element | D175: elem_out_template | E175: el_1_1 | F175: el_1_2 | G175: el_1_3 | H175: el_1_4 | I175: el_1_5 | J175: el_1_6 | K175: el_1_7 | L175: el_1_8 | N175: el_2_1 | O175: el_2_2 | P175: el_2_3 | Q175: el_2_4 | R175: el_2_5 | S175: el_2_6 | T175: el_2_7 | U175: el_2_8 | W175: el_3_1 | X175: el_3_2 | Y175: el_3_3 | Z175: el_3_4 | AA175: el_3_5 | AB175: el_3_6 | AC175: el_3_7 | AD175: el_3_8
B176: Feed flow, gpm | C176: feed_flow_out | D176: copied | E176: =gpm_per_m3s*0.000469424751137285 -> 7.44047619 | F176: =gpm_per_m3s*0.000424346962926904 -> 6.725984232 | G176: =gpm_per_m3s*0.000381524710278638 -> 6.047242963 | H176: =gpm_per_m3s*0.000340707300934285 -> 5.400278861 | I176: =gpm_per_m3s*0.000301675820174069 -> 4.781622085 | J176: =gpm_per_m3s*0.000264250920814628 -> 4.188429945 | N176: =gpm_per_m3s*0.000456599407623116 -> 7.237191931 | O176: =gpm_per_m3s*0.000422588796024248 -> 6.698116935 | P176: =gpm_per_m3s*0.000390911224957482 -> 6.196021098 | Q176: =gpm_per_m3s*0.000361380199833562 -> 5.727948443 | R176: =gpm_per_m3s*0.000333827813254742 -> 5.291237606 | S176: =gpm_per_m3s*0.000308109225764435 -> 4.88359285
B177: Permeate flow, gpm | C177: perm_flow_out | D177: copied | E177: =gpm_per_m3s*0.0000450777882103808 -> 0.7144919587 | F177: =gpm_per_m3s*0.0000428222526482663 -> 0.6787412689 | G177: =gpm_per_m3s*0.0000408174093443534 -> 0.6469641016 | H177: =gpm_per_m3s*0.0000390314807602158 -> 0.6186567763 | I177: =gpm_per_m3s*0.0000374248993594413 -> 0.5931921398 | J177: =gpm_per_m3s*0.0000359512170030702 -> 0.5698339797 | N177: =gpm_per_m3s*0.000034010611598868 -> 0.539074996 | O177: =gpm_per_m3s*0.000031677571066766 -> 0.5020958369 | P177: =gpm_per_m3s*0.0000295310251239204 -> 0.4680726544 | Q177: =gpm_per_m3s*0.0000275523865788195 -> 0.4367108378 | R177: =gpm_per_m3s*0.0000257185874903067 -> 0.4076447554 | S177: =gpm_per_m3s*0.0000240100019082199 -> 0.3805633322
B178: Concentrate flow, gpm | C178: conc_flow_out | D178: copied | E178: =gpm_per_m3s*0.000424346962926904 -> 6.725984232 | F178: =gpm_per_m3s*0.000381524710278638 -> 6.047242963 | G178: =gpm_per_m3s*0.000340707300934285 -> 5.400278861 | H178: =gpm_per_m3s*0.000301675820174069 -> 4.781622085 | I178: =gpm_per_m3s*0.000264250920814628 -> 4.188429945 | J178: =gpm_per_m3s*0.000228299703811558 -> 3.618595965 | N178: =gpm_per_m3s*0.000422588796024248 -> 6.698116935 | O178: =gpm_per_m3s*0.000390911224957482 -> 6.196021098 | P178: =gpm_per_m3s*0.000361380199833562 -> 5.727948443 | Q178: =gpm_per_m3s*0.000333827813254742 -> 5.291237606 | R178: =gpm_per_m3s*0.000308109225764435 -> 4.88359285 | S178: =gpm_per_m3s*0.000284099223856215 -> 4.503029518
B179: Permeate flux, gfd | C179: perm_flux_out | D179: copied | E179: =gfd_per_mps*6.06516592599941E-06 -> 12.86085526 | F179: =gfd_per_mps*5.76168614184561E-06 -> 12.21734284 | G179: =gfd_per_mps*5.49193672030988E-06 -> 11.64535383 | H179: =gfd_per_mps*5.25164202918115E-06 -> 11.13582197 | I179: =gfd_per_mps*5.03547830074254E-06 -> 10.67745852 | J179: =gfd_per_mps*4.83719598990924E-06 -> 10.25701164 | N179: =gfd_per_mps*4.57608970584655E-06 -> 9.703349927 | O179: =gfd_per_mps*4.26218171477031E-06 -> 9.037725065 | P179: =gfd_per_mps*3.97336636184354E-06 -> 8.42530778 | Q179: =gfd_per_mps*3.70714276126211E-06 -> 7.86079508 | R179: =gfd_per_mps*3.46040714737465E-06 -> 7.337605598 | S179: =gfd_per_mps*3.23051887056386E-06 -> 6.85013998
B180: Recovery | C180: recovery_out | D180: CURR perm_flow_out / CURR feed_flow_out | E180: =el_1_1 perm_flow_out / el_1_1 feed_flow_out -> 0.09602771925 | F180: =el_1_2 perm_flow_out / el_1_2 feed_flow_out -> 0.1009133006 | G180: =el_1_3 perm_flow_out / el_1_3 feed_flow_out -> 0.1069849691 | H180: =el_1_4 perm_flow_out / el_1_4 feed_flow_out -> 0.1145601537 | I180: =el_1_5 perm_flow_out / el_1_5 feed_flow_out -> 0.1240566756 | J180: =el_1_6 perm_flow_out / el_1_6 feed_flow_out -> 0.136049543 | N180: =el_2_1 perm_flow_out / el_2_1 feed_flow_out -> 0.07448676242 | O180: =el_2_2 perm_flow_out / el_2_2 feed_flow_out -> 0.07496074521 | P180: =el_2_3 perm_flow_out / el_2_3 feed_flow_out -> 0.07554407047 | Q180: =el_2_4 perm_flow_out / el_2_4 feed_flow_out -> 0.07624210345 | R180: =el_2_5 perm_flow_out / el_2_5 feed_flow_out -> 0.07704147608 | S180: =el_2_6 perm_flow_out / el_2_6 feed_flow_out -> 0.0779269165
B182: Cumulative permeate flow, gpm | C182: c_perm_flow_out | D182: CURR perm_flow_out + PREV c_perm_flow_out:CURR perm_flow_out | E182: =el_1_1 perm_flow_out -> 0.7144919587 | F182: =el_1_2 perm_flow_out + el_1_1 c_perm_flow_out -> 1.393233228 | G182: =el_1_3 perm_flow_out + el_1_2 c_perm_flow_out -> 2.040197329 | H182: =el_1_4 perm_flow_out + el_1_3 c_perm_flow_out -> 2.658854106 | I182: =el_1_5 perm_flow_out + el_1_4 c_perm_flow_out -> 3.252046245 | J182: =el_1_6 perm_flow_out + el_1_5 c_perm_flow_out -> 3.821880225 | N182: =el_2_1 perm_flow_out -> 0.539074996 | O182: =el_2_2 perm_flow_out + el_2_1 c_perm_flow_out -> 1.041170833 | P182: =el_2_3 perm_flow_out + el_2_2 c_perm_flow_out -> 1.509243487 | Q182: =el_2_4 perm_flow_out + el_2_3 c_perm_flow_out -> 1.945954325 | R182: =el_2_5 perm_flow_out + el_2_4 c_perm_flow_out -> 2.35359908 | S182: =el_2_6 perm_flow_out + el_2_5 c_perm_flow_out -> 2.734162413
B183: Cumulative recovery within the stage | C183: c_recovery_out | D183: CURR c_perm_flow_out / FIRST feed_flow_out | E183: =el_1_1 c_perm_flow_out / el_1_1 feed_flow_out -> 0.09602771925 | F183: =el_1_2 c_perm_flow_out / el_1_1 feed_flow_out -> 0.1872505458 | G183: =el_1_3 c_perm_flow_out / el_1_1 feed_flow_out -> 0.274202521 | H183: =el_1_4 c_perm_flow_out / el_1_1 feed_flow_out -> 0.3573499918 | I183: =el_1_5 c_perm_flow_out / el_1_1 feed_flow_out -> 0.4370750154 | J183: =el_1_6 c_perm_flow_out / el_1_1 feed_flow_out -> 0.5136607023 | N183: =el_2_1 c_perm_flow_out / el_2_1 feed_flow_out -> 0.07448676242 | O183: =el_2_2 c_perm_flow_out / el_2_1 feed_flow_out -> 0.1438639244 | P183: =el_2_3 c_perm_flow_out / el_2_1 feed_flow_out -> 0.2085399284 | Q183: =el_2_4 c_perm_flow_out / el_2_1 feed_flow_out -> 0.2688825091 | R183: =el_2_5 c_perm_flow_out / el_2_1 feed_flow_out -> 0.3252088798 | S183: =el_2_6 c_perm_flow_out / el_2_1 feed_flow_out -> 0.3777932711
B185: Feed pressure, psi | C185: P_feed_out | D185: copied | E185: =psi_per_atm*6.42325614247391 -> 94.39617227 | F185: =psi_per_atm*6.12594855618943 -> 90.02693998 | G185: =psi_per_atm*5.86877752740171 -> 86.24755454 | H185: =psi_per_atm*5.64820924225232 -> 83.00608302 | I185: =psi_per_atm*5.46104127434127 -> 80.25546257 | J185: =psi_per_atm*5.30433858199418 -> 77.9525598 | N185: =psi_per_atm*5.17536878109913 -> 76.05721961 | O185: =psi_per_atm*4.88457523353911 -> 71.78371763 | P185: =psi_per_atm*4.62372357043873 -> 67.95024159 | Q185: =psi_per_atm*4.38991639625032 -> 64.51421136 | R185: =psi_per_atm*4.18055150905254 -> 61.43738498 | S185: =psi_per_atm*3.99328482992317 -> 58.68531386
